{"text_format":"1","workbook":"xlsx","n_sheets":25,"sheets":["Mod'Op","Fiche organisateur N1","Fiche organisateur N2","SCC","Rapport de Concours","CODE FCI","00","01","02","03","04","05","06","07","08","09","10","11","12","13","14","15","16","17","18"],"not_rendered":{"charts":0,"images":3,"macros":1,"external_links":1,"defined_names":5,"comments":2,"pivot_tables":0},"unopened":[],"bounds":{"document_bytes":16777216,"sheet_cells":100000,"rows_first":2000,"rows_last":500,"rows_between":2000,"halvings":0,"cell_chars":16384,"cell_head_chars":4096},"cells_cut":0,"cells_raw":0,"read":"whole","date_system":"1900"}

{"sheet":"Mod'Op","index":0,"n_rows":73,"n_cols":1,"rows_kept":73,"cut":false,"hidden":false,"merged":[[23,0,23,7],[25,0,25,7]]}
[]
[]
[]
[]
[]
[]
[]
[]
[]
[]
[]
[]
[]
[]
[]
[]
[]
[]
[]
[]
[]
[]
[]
["Epreuve de travail sur Ovins - TRADITIONAL STYLE "]
[]
["Comment utiliser ce fichier ?"]
[]
["Attention"]
["Ce fichier est conçu pour la gestion des concours TRADITIONAL STYLE 1 ou 2 ou 3 et HWT"]
[]
["1. Phase préparatoire"]
[]
["Dans l'onglet \"Fiche Organisateur N°1\" => compléter les cases grises."]
[]
["Dans l'onglet \"Fiche Organisateur N°2\" => compléter les cases grises (Voir recommandations au bas de la feuille)"]
[]
["Dans l'onglet \"00\" => compléter les cases gris clair sous le contrôle du juge :  "]
[" => liste des épreuves"]
[" => pointages attribués (entrer le chiffre simple, la barre de fraction se met automatiquement)"]
[]
[]
["Si le pointage total n'est pas de 100 points/1 120/2, 150/3, un message \"CHEK POINTS \" apparaît."]
["Sinon, le message est \"TOTAL = OK\""]
[]
["2. Phase de concours"]
[]
["Imprimer la feuille (vierge) du concurrent qui doit passer et la donner au juge pour son brouillon."]
[]
["Pendant le passage du concurrent, le juge renseigne les cases en gris clair et gris foncé."]
[]
["Lorsque le concurrent est passé, le juge remet au secrétariat cette feuille de pointage manuscrite renseignée."]
["Le secrétariat retranscrit dans Excel (dans le bon onglet ! ) les pointages sur la feuille du concurrent"]
["ATTENTION : bien vérifier que les noms du concurrent et du chien correspondent !"]
[]
["Pendant le déroulement du concours, les tableaux de l'onglet \"Rapport de concours\" se met à jour"]
["automatiquement en temps réel."]
[]
["Pendant le déroulement du concours, il est possible de mettre à jour le classement en appuyant sur le"]
["bouton \"CLASSER\" (Attention : il est possible que le bouton ne fonctionne pas sous open Office)."]
[]
["3. Fin du concours"]
[]
["Lorsque toutes les feuilles sont saisies, le rapport du concours doit donc être à jour."]
["Il ne reste qu'à appuyer sur le bouton \"CLASSER\" pour que les lignes de concurrents soient dans l'ordre"]
["croissant des résultats."]
[]
["ATTENTION CEPENDANT : ne pas faire une confiance aveugle à l'informatique !"]
[" => vérifier la cohérence des chiffres et sonder quelques feuilles pour détecter d'éventuelles erreurs…"]
[]
["La cellule \"Observations\" du \"Rapport de concours\" doit être renseignée par le juge."]
["Il peut le faire manuellement après impression de la feuille."]
[]
["Lorsque tout est OK, éditer les feuilles pour le juge, la CC et les concurents…"]

{"sheet":"Fiche organisateur N1","index":1,"n_rows":32,"n_cols":22,"rows_kept":32,"cut":false,"hidden":false,"merged":[[1,2,1,8],[2,2,2,8],[7,2,7,8],[9,2,9,8],[12,4,12,5]]}
[]
[]
[]
[]
[]
[]
[]
[null,null,"COLLECTING STYLE"]
[]
[null,null,"Organisateur ==> Fiche N°1"]
[]
[]
[null,null,null,"Date : ",null,null," [ JJ.MM.AAAA ]"]
[]
[null,null,null,"ORGANISATION : "]
[null,null,null,"Ville",null,null,null,null,null,null,null,null,null,null,null,null,null,null,null,1]
[]
[null,null,null,"Contact : ",null,null,null,null,null,null,null,null,null,null,null,null,null,null,null,2]
[null,null,null,"Coordonnées",null,null,null,null,null,null,null,null,null,null,null,null,null,null,null,3,null,0]
[null,null,null,"E-mail : "]
[null,null,null,"Tel"]
[]
[null,null,null,"adresse évènement "]
[]
[null,null,null,"IHT",3]
[]
[null,null,null,"Juge"]
[]
[]
[]
[]
[null,null,null,"IHT",{"$f":"$E$25","v":3}]

{"sheet":"Fiche organisateur N2","index":2,"n_rows":37,"n_cols":23,"rows_kept":37,"cut":false,"hidden":false,"merged":[[13,1,13,10],[0,3,0,10],[1,3,1,10],[3,3,3,10]]}
[]
[]
[]
[null,null,null," COLLECTING STYLE ",null,null,null,null,null,null,null,null,null,null,null,null,null,"MODE D'EMPLOI"]
[null,null,null,null,{"$f":"'Rapport de Concours'!G5","v":"ORGANISATION : "},{"$f":"'Rapport de Concours'!H5","v":0},null,null,null,null,null,null,null,null,null,null,null,"1. Copier/coller dans la zone orangée le catalogue issu du fichier de la SCC"]
[null,null,null,null,{"$f":"'Rapport de Concours'!G6","v":"Ville"},{"$f":"'Rapport de Concours'!H6","v":0},null,null,null,null,null,null,null,null,null,null,null,"2. Cliquer sur la bouton : \"Formatage catalogue\""]
[null,null,null,null,{"$f":"'Rapport de Concours'!G7","v":"Contact : "},{"$f":"'Rapport de Concours'!H7","v":0},null,null,null,null,null,null,null,null,null,null,null,"3. Mettre les N° du tirage au sort des chiens dans les cases de la colonne P"]
[null,null,null,null,{"$f":"'Rapport de Concours'!G8","v":"Coordonnées"},{"$f":"'Rapport de Concours'!H8","v":0},"EVENTS DATE",{"$f":"'Fiche organisateur N1'!$E$13","v":0},null,null,"-",null,null,null,null,null,null,"4. Cliquer sur le bouton :  \"Trier et Copier\""]
[null,null,null,null,{"$f":"'Rapport de Concours'!G9","v":"E-mail : "},{"$f":"'Rapport de Concours'!H9","v":0}]
[null,null,null,null,{"$f":"'Rapport de Concours'!G10","v":"Tel"},{"$f":"'Rapport de Concours'!H10","v":0}]
[null,null,null,null,{"$f":"'Rapport de Concours'!G11","v":"adresse évènement "},{"$f":"'Rapport de Concours'!H11","v":0}]
[null,null,null,null,{"$f":"'Rapport de Concours'!G12","v":"Juge"},{"$f":"'Rapport de Concours'!H12","v":0},null,null,null,null,null,null,null,null,null,"(Vous pouvez également remplir manuellement les colonnes grises de la fiche organisateur si vous le souhaitez)"]
[]
[null,"Organisateur ==> Fiche  N°2"]
[null,null,null,null,null,null,null,null,null,null,null,null,null,null,null,"    METTRE LE TIRAGE AU SORT DANS CETTE COLONNE"]
[null,"START N°","Propriétaires","Conducteurs","Noms des Chiens","Affixe","Races + Sexe","N° FAPAC","Identifiants","N° Carnet de Travail","Code FCI",null,null,null,null,"NOM DU CHIEN","AFFIXE","RACE SEXE","FAPAC","IDENTIFIANT","CT","PROPRIETAIRE","CONDUCTEUR"]
[null,null,null,null,null,null,null,null,null,null,297,{"$f":"'01'!B39","v":"-"},{"$f":"'01'!F39","v":"-"},{"$f":"IF(L17=\"-\",\"X\",IF(L17=0,\"N.C.\",_xlfn.RANK.EQ(L17,$L$17:$L$34,0)))","v":"X"}]
[null,null,null,null,null,null,null,null,null,null,297,{"$f":"'02'!B39","v":"-"},{"$f":"'02'!F39","v":"-"},{"$f":"IF(L18=\"-\",\"X\",IF(L18=0,\"N.C.\",_xlfn.RANK.EQ(L18,$L$17:$L$34,0)))","v":"X"}]
[null,null,null,null,null,null,null,null,null,null,297,{"$f":"'03'!B39","v":"-"},{"$f":"'03'!F39","v":"-"},"X"]
[null,null,null,null,null,null,null,null,null,null,297,{"$f":"'04'!B39","v":"-"},{"$f":"'04'!F39","v":"-"},"X"]
[null,null,null,null,null,null,null,null,null,null,297,{"$f":"'05'!B39","v":"-"},{"$f":"'05'!F39","v":"-"},"X"]
[null,null,null,null,null,null,null,null,null,null,297,{"$f":"'06'!B39","v":"-"},{"$f":"'06'!F39","v":"-"},"X"]
[null,null,null,null,null,null,null,null,null,null,297,{"$f":"'07'!B39","v":"-"},{"$f":"'07'!F39","v":"-"},"X"]
[null,null,null,null,null,null,null,null,null,null,297,{"$f":"'08'!B39","v":"-"},{"$f":"'08'!F39","v":"-"},"X"]
[null,null,null,null,null,null,null,null,null,null,297,{"$f":"'09'!B39","v":"-"},{"$f":"'09'!F39","v":"-"},"X"]
[null,null,null,null,null,null,null,null,null,null,297,{"$f":"'10'!B39","v":"-"},{"$f":"'10'!F39","v":"-"},"X"]
[null,null,null,null,null,null,null,null,null,null,297,{"$f":"'11'!B39","v":"-"},{"$f":"'11'!F39","v":"-"},"X"]
[null,null,null,null,null,null,null,null,null,null,297,{"$f":"'12'!B39","v":"-"},{"$f":"'12'!F39","v":"-"},"X"]
[null,null,null,null,null,null,null,null,null,null,297,{"$f":"'13'!B39","v":"-"},{"$f":"'13'!F39","v":"-"},"X"]
[null,null,null,null,null,null,null,null,null,null,297,{"$f":"'14'!B39","v":"-"},{"$f":"'14'!F39","v":"-"},"X"]
[null,null,null,null,null,null,null,null,null,null,297,{"$f":"'15'!B39","v":"-"},{"$f":"'15'!F39","v":"-"},"X"]
[null,null,null,null,null,null,null,null,null,null,297,{"$f":"'16'!B39","v":"-"},{"$f":"'16'!F39","v":"-"},"X"]
[null,null,null,null,null,null,null,null,null,null,297,{"$f":"'17'!B39","v":"-"},{"$f":"'17'!F39","v":"-"},"X"]
[null,null,null,null,null,null,null,null,null,null,297,{"$f":"'18'!B39","v":"-"},{"$f":"'18'!F39","v":"-"},"X"]
[]
[]
[null,null,null,"NE  PAS  UTILISER  CETTE  FICHE  COMME  RAPPORT  DE  CONCOURS  !"]

{"sheet":"SCC","index":3,"n_rows":19,"n_cols":8,"rows_kept":19,"cut":false,"hidden":true,"merged":[]}
["DATE","ORGANISATEUR","Code Race FCI","FAPAC","IDENTIFIANT","RESULTAT","NIVEAU IHT TS","qualificatif 1"]
[{"$f":"'Fiche organisateur N2'!$H$8","v":"00:00:00"},{"$f":"'Fiche organisateur N2'!$F$5","v":0},{"$f":"'Rapport de Concours'!K17","v":"-"},{"$f":"'Rapport de Concours'!H17","v":0},{"$f":"'Rapport de Concours'!I17","v":0},{"$f":"'Rapport de Concours'!N17","v":"-"},{"$f":"'Fiche organisateur N1'!$E$25","v":3},{"$f":"'Rapport de Concours'!L17","v":"-"}]
[{"$f":"'Fiche organisateur N2'!$H$8","v":"00:00:00"},{"$f":"'Fiche organisateur N2'!$F$5","v":0},{"$f":"'Rapport de Concours'!K18","v":"-"},{"$f":"'Rapport de Concours'!H18","v":0},{"$f":"'Rapport de Concours'!I18","v":0},{"$f":"'Rapport de Concours'!N18","v":"-"},{"$f":"'Fiche organisateur N1'!$E$25","v":3},{"$f":"'Rapport de Concours'!L18","v":"-"}]
[{"$f":"'Fiche organisateur N2'!$H$8","v":"00:00:00"},{"$f":"'Fiche organisateur N2'!$F$5","v":0},{"$f":"'Rapport de Concours'!K19","v":"-"},{"$f":"'Rapport de Concours'!H19","v":0},{"$f":"'Rapport de Concours'!I19","v":0},{"$f":"'Rapport de Concours'!N19","v":"-"},{"$f":"'Fiche organisateur N1'!$E$25","v":3},{"$f":"'Rapport de Concours'!L19","v":"-"}]
[{"$f":"'Fiche organisateur N2'!$H$8","v":"00:00:00"},{"$f":"'Fiche organisateur N2'!$F$5","v":0},{"$f":"'Rapport de Concours'!K20","v":"-"},{"$f":"'Rapport de Concours'!H20","v":0},{"$f":"'Rapport de Concours'!I20","v":0},{"$f":"'Rapport de Concours'!N20","v":"-"},{"$f":"'Fiche organisateur N1'!$E$25","v":3},{"$f":"'Rapport de Concours'!L20","v":"-"}]
[{"$f":"'Fiche organisateur N2'!$H$8","v":"00:00:00"},{"$f":"'Fiche organisateur N2'!$F$5","v":0},{"$f":"'Rapport de Concours'!K21","v":"-"},{"$f":"'Rapport de Concours'!H21","v":0},{"$f":"'Rapport de Concours'!I21","v":0},{"$f":"'Rapport de Concours'!N21","v":"-"},{"$f":"'Fiche organisateur N1'!$E$25","v":3},{"$f":"'Rapport de Concours'!L21","v":"-"}]
[{"$f":"'Fiche organisateur N2'!$H$8","v":"00:00:00"},{"$f":"'Fiche organisateur N2'!$F$5","v":0},{"$f":"'Rapport de Concours'!K22","v":"-"},{"$f":"'Rapport de Concours'!H22","v":0},{"$f":"'Rapport de Concours'!I22","v":0},{"$f":"'Rapport de Concours'!N22","v":"-"},{"$f":"'Fiche organisateur N1'!$E$25","v":3},{"$f":"'Rapport de Concours'!L22","v":"-"}]
[{"$f":"'Fiche organisateur N2'!$H$8","v":"00:00:00"},{"$f":"'Fiche organisateur N2'!$F$5","v":0},{"$f":"'Rapport de Concours'!K23","v":"-"},{"$f":"'Rapport de Concours'!H23","v":0},{"$f":"'Rapport de Concours'!I23","v":0},{"$f":"'Rapport de Concours'!N23","v":"-"},{"$f":"'Fiche organisateur N1'!$E$25","v":3},{"$f":"'Rapport de Concours'!L23","v":"-"}]
[{"$f":"'Fiche organisateur N2'!$H$8","v":"00:00:00"},{"$f":"'Fiche organisateur N2'!$F$5","v":0},{"$f":"'Rapport de Concours'!K24","v":"-"},{"$f":"'Rapport de Concours'!H24","v":0},{"$f":"'Rapport de Concours'!I24","v":0},{"$f":"'Rapport de Concours'!N24","v":"-"},{"$f":"'Fiche organisateur N1'!$E$25","v":3},{"$f":"'Rapport de Concours'!L24","v":"-"}]
[{"$f":"'Fiche organisateur N2'!$H$8","v":"00:00:00"},{"$f":"'Fiche organisateur N2'!$F$5","v":0},{"$f":"'Rapport de Concours'!K25","v":"-"},{"$f":"'Rapport de Concours'!H25","v":0},{"$f":"'Rapport de Concours'!I25","v":0},{"$f":"'Rapport de Concours'!N25","v":"-"},{"$f":"'Fiche organisateur N1'!$E$25","v":3},{"$f":"'Rapport de Concours'!L25","v":"-"}]
[{"$f":"'Fiche organisateur N2'!$H$8","v":"00:00:00"},{"$f":"'Fiche organisateur N2'!$F$5","v":0},{"$f":"'Rapport de Concours'!K26","v":"-"},{"$f":"'Rapport de Concours'!H26","v":0},{"$f":"'Rapport de Concours'!I26","v":0},{"$f":"'Rapport de Concours'!N26","v":"-"},{"$f":"'Fiche organisateur N1'!$E$25","v":3},{"$f":"'Rapport de Concours'!L26","v":"-"}]
[{"$f":"'Fiche organisateur N2'!$H$8","v":"00:00:00"},{"$f":"'Fiche organisateur N2'!$F$5","v":0},{"$f":"'Rapport de Concours'!K27","v":"-"},{"$f":"'Rapport de Concours'!H27","v":0},{"$f":"'Rapport de Concours'!I27","v":0},{"$f":"'Rapport de Concours'!N27","v":"-"},{"$f":"'Fiche organisateur N1'!$E$25","v":3},{"$f":"'Rapport de Concours'!L27","v":"-"}]
[{"$f":"'Fiche organisateur N2'!$H$8","v":"00:00:00"},{"$f":"'Fiche organisateur N2'!$F$5","v":0},{"$f":"'Rapport de Concours'!K28","v":"-"},{"$f":"'Rapport de Concours'!H28","v":0},{"$f":"'Rapport de Concours'!I28","v":0},{"$f":"'Rapport de Concours'!N28","v":"-"},{"$f":"'Fiche organisateur N1'!$E$25","v":3},{"$f":"'Rapport de Concours'!L28","v":"-"}]
[{"$f":"'Fiche organisateur N2'!$H$8","v":"00:00:00"},{"$f":"'Fiche organisateur N2'!$F$5","v":0},{"$f":"'Rapport de Concours'!K29","v":"-"},{"$f":"'Rapport de Concours'!H29","v":0},{"$f":"'Rapport de Concours'!I29","v":0},{"$f":"'Rapport de Concours'!N29","v":"-"},{"$f":"'Fiche organisateur N1'!$E$25","v":3},{"$f":"'Rapport de Concours'!L29","v":"-"}]
[{"$f":"'Fiche organisateur N2'!$H$8","v":"00:00:00"},{"$f":"'Fiche organisateur N2'!$F$5","v":0},{"$f":"'Rapport de Concours'!K30","v":"-"},{"$f":"'Rapport de Concours'!H30","v":0},{"$f":"'Rapport de Concours'!I30","v":0},{"$f":"'Rapport de Concours'!N30","v":"-"},{"$f":"'Fiche organisateur N1'!$E$25","v":3},{"$f":"'Rapport de Concours'!L30","v":"-"}]
[{"$f":"'Fiche organisateur N2'!$H$8","v":"00:00:00"},{"$f":"'Fiche organisateur N2'!$F$5","v":0},{"$f":"'Rapport de Concours'!K31","v":"-"},{"$f":"'Rapport de Concours'!H31","v":0},{"$f":"'Rapport de Concours'!I31","v":0},{"$f":"'Rapport de Concours'!N31","v":"-"},{"$f":"'Fiche organisateur N1'!$E$25","v":3},{"$f":"'Rapport de Concours'!L31","v":"-"}]
[{"$f":"'Fiche organisateur N2'!$H$8","v":"00:00:00"},{"$f":"'Fiche organisateur N2'!$F$5","v":0},{"$f":"'Rapport de Concours'!K32","v":"-"},{"$f":"'Rapport de Concours'!H32","v":0},{"$f":"'Rapport de Concours'!I32","v":0},{"$f":"'Rapport de Concours'!N32","v":"-"},{"$f":"'Fiche organisateur N1'!$E$25","v":3},{"$f":"'Rapport de Concours'!L32","v":"-"}]
[{"$f":"'Fiche organisateur N2'!$H$8","v":"00:00:00"},{"$f":"'Fiche organisateur N2'!$F$5","v":0},{"$f":"'Rapport de Concours'!K33","v":"-"},{"$f":"'Rapport de Concours'!H33","v":0},{"$f":"'Rapport de Concours'!I33","v":0},{"$f":"'Rapport de Concours'!N33","v":"-"},{"$f":"'Fiche organisateur N1'!$E$25","v":3},{"$f":"'Rapport de Concours'!L33","v":"-"}]
[{"$f":"'Fiche organisateur N2'!$H$8","v":"00:00:00"},{"$f":"'Fiche organisateur N2'!$F$5","v":0},{"$f":"'Rapport de Concours'!K34","v":"-"},{"$f":"'Rapport de Concours'!H34","v":0},{"$f":"'Rapport de Concours'!I34","v":0},{"$f":"'Rapport de Concours'!N34","v":"-"},{"$f":"'Fiche organisateur N1'!$E$25","v":3},{"$f":"'Rapport de Concours'!L34","v":"-"}]

{"sheet":"Rapport de Concours","index":4,"n_rows":44,"n_cols":26,"rows_kept":44,"cut":false,"hidden":false,"merged":[[41,1,41,12],[0,3,0,12],[1,3,1,11],[4,11,4,12],[13,1,13,12]]}
[]
[null,null,null,"COLLECTING STYLE "]
[]
[null,null,null,null,null,null,null,null,null,"IHT",{"$f":"'Fiche organisateur N1'!$E$32","v":3},{"$f":"'Fiche organisateur N1'!$E$32","v":3}]
[null,null,null,null,null,null,"ORGANISATION : ",{"$f":"'Fiche organisateur N1'!E15","v":0},null,null,"Date",{"$f":"'Fiche organisateur N1'!$E$13","v":0}]
[null,null,null,null,null,null,"Ville",{"$f":"'Fiche organisateur N1'!E16","v":0}]
[null,null,null,null,null,null,"Contact : ",{"$f":"'Fiche organisateur N1'!E18","v":0}]
[null,null,null,null,null,null,"Coordonnées",{"$f":"'Fiche organisateur N1'!E19","v":0}]
[null,null,null,null,null,null,"E-mail : ",{"$f":"'Fiche organisateur N1'!E20","v":0}]
[null,null,null,null,null,null,"Tel",{"$f":"'Fiche organisateur N1'!E21","v":0}]
[null,null,null,null,null,null,"adresse évènement ",{"$f":"'Fiche organisateur N1'!E23","v":0}]
[null,null,null,null,null,null,"Juge",{"$f":"'Fiche organisateur N1'!E27","v":0}]
[]
[null,"RAPPORT DE CONCOURS "]
[]
[null,null,"Propriétaires","Conducteurs","Noms des Chiens","Affixe","Races + Sexe","N° FAPAC","Identifiants","N° Carnet de Travail","Résultats","Qualif.1","Classement"]
[null,{"$f":"IF(M17=\"X\",\"-\",M17)","v":"-"},{"$f":"'Fiche organisateur N2'!C17","v":0},{"$f":"'Fiche organisateur N2'!D17","v":0},{"$f":"'Fiche organisateur N2'!E17","v":0},{"$f":"'Fiche organisateur N2'!F17","v":0},{"$f":"'Fiche organisateur N2'!G17","v":0},{"$f":"'Fiche organisateur N2'!H17","v":0},{"$f":"'Fiche organisateur N2'!I17","v":0},{"$f":"'Fiche organisateur N2'!J17","v":0},{"$f":"'01'!B39","v":"-"},{"$f":"'01'!F39","v":"-"},{"$f":"IF(K17=\"-\",\"X\",IF(K17=0,\"N.C.\",_xlfn.RANK.EQ(K17,$K$17:$K$34,0)))","v":"X"},{"$f":"IF(K17=\"-\",\"-\",IF(K17>V20,\"5\",IF(K17>W20,\"4\",IF(K17>X20,\"3\",IF(K17>Y20,\"2\",IF(K17>0.1,\"1 \",\"0 \"))))))","v":"-"}]
[null,{"$f":"IF(M18=\"X\",\"-\",M18)","v":"-"},{"$f":"'Fiche organisateur N2'!C18","v":0},{"$f":"'Fiche organisateur N2'!D18","v":0},{"$f":"'Fiche organisateur N2'!E18","v":0},{"$f":"'Fiche organisateur N2'!F18","v":0},{"$f":"'Fiche organisateur N2'!G18","v":0},{"$f":"'Fiche organisateur N2'!H18","v":0},{"$f":"'Fiche organisateur N2'!I18","v":0},{"$f":"'Fiche organisateur N2'!J18","v":0},{"$f":"'02'!B39","v":"-"},{"$f":"'02'!F39","v":"-"},{"$f":"IF(K18=\"-\",\"X\",IF(K18=0,\"N.C.\",_xlfn.RANK.EQ(K18,$K$17:$K$34,0)))","v":"X"},{"$f":"IF(K18=\"-\",\"-\",IF(K18>V21,\"5\",IF(K18>W21,\"4\",IF(K18>X21,\"3\",IF(K18>Y21,\"2\",IF(K18>0.1,\"1 \",\"0 \"))))))","v":"-"}]
[null,{"$f":"IF(M19=\"X\",\"-\",M19)","v":"-"},{"$f":"'Fiche organisateur N2'!C19","v":0},{"$f":"'Fiche organisateur N2'!D19","v":0},{"$f":"'Fiche organisateur N2'!E19","v":0},{"$f":"'Fiche organisateur N2'!F19","v":0},{"$f":"'Fiche organisateur N2'!G19","v":0},{"$f":"'Fiche organisateur N2'!H19","v":0},{"$f":"'Fiche organisateur N2'!I19","v":0},{"$f":"'Fiche organisateur N2'!J19","v":0},{"$f":"'03'!B39","v":"-"},{"$f":"'03'!F39","v":"-"},{"$f":"IF(K19=\"-\",\"X\",IF(K19=0,\"N.C.\",_xlfn.RANK.EQ(K19,$K$17:$K$34,0)))","v":"X"},{"$f":"IF(K19=\"-\",\"-\",IF(K19>V22,\"5\",IF(K19>W22,\"4\",IF(K19>X22,\"3\",IF(K19>Y22,\"2\",IF(K19>0.1,\"1 \",\"0 \"))))))","v":"-"}]
[null,{"$f":"IF(M20=\"X\",\"-\",M20)","v":"-"},{"$f":"'Fiche organisateur N2'!C20","v":0},{"$f":"'Fiche organisateur N2'!D20","v":0},{"$f":"'Fiche organisateur N2'!E20","v":0},{"$f":"'Fiche organisateur N2'!F20","v":0},{"$f":"'Fiche organisateur N2'!G20","v":0},{"$f":"'Fiche organisateur N2'!H20","v":0},{"$f":"'Fiche organisateur N2'!I20","v":0},{"$f":"'Fiche organisateur N2'!J20","v":0},{"$f":"'04'!B39","v":"-"},{"$f":"'04'!F39","v":"-"},{"$f":"IF(K20=\"-\",\"X\",IF(K20=0,\"N.C.\",_xlfn.RANK.EQ(K20,$K$17:$K$34,0)))","v":"X"},{"$f":"IF(K20=\"-\",\"-\",IF(K20>V23,\"5\",IF(K20>W23,\"4\",IF(K20>X23,\"3\",IF(K20>Y23,\"2\",IF(K20>0.1,\"1 \",\"0 \"))))))","v":"-"},null,null,null,null,null,"IHT1",100,{"$f":"U20*89.999/100","v":89.998999999999995},{"$f":"U20*79.999/100","v":79.998999999999995},{"$f":"U20*69.999/100","v":69.998999999999995},{"$f":"U20*59.999/100","v":59.999000000000002},0.1]
[null,{"$f":"IF(M21=\"X\",\"-\",M21)","v":"-"},{"$f":"'Fiche organisateur N2'!C21","v":0},{"$f":"'Fiche organisateur N2'!D21","v":0},{"$f":"'Fiche organisateur N2'!E21","v":0},{"$f":"'Fiche organisateur N2'!F21","v":0},{"$f":"'Fiche organisateur N2'!G21","v":0},{"$f":"'Fiche organisateur N2'!H21","v":0},{"$f":"'Fiche organisateur N2'!I21","v":0},{"$f":"'Fiche organisateur N2'!J21","v":0},{"$f":"'05'!B39","v":"-"},{"$f":"'05'!F39","v":"-"},{"$f":"IF(K21=\"-\",\"X\",IF(K21=0,\"N.C.\",_xlfn.RANK.EQ(K21,$K$17:$K$34,0)))","v":"X"},{"$f":"IF(K21=\"-\",\"-\",IF(K21>V24,\"5\",IF(K21>W24,\"4\",IF(K21>X24,\"3\",IF(K21>Y24,\"2\",IF(K21>0.1,\"1 \",\"0 \"))))))","v":"-"},null,null,null,null,null,"IHT1",100,{"$f":"U21*89.999/100","v":89.998999999999995},{"$f":"U21*79.999/100","v":79.998999999999995},{"$f":"U21*69.999/100","v":69.998999999999995},{"$f":"U21*59.999/100","v":59.999000000000002},0.1]
[null,{"$f":"IF(M22=\"X\",\"-\",M22)","v":"-"},{"$f":"'Fiche organisateur N2'!C22","v":0},{"$f":"'Fiche organisateur N2'!D22","v":0},{"$f":"'Fiche organisateur N2'!E22","v":0},{"$f":"'Fiche organisateur N2'!F22","v":0},{"$f":"'Fiche organisateur N2'!G22","v":0},{"$f":"'Fiche organisateur N2'!H22","v":0},{"$f":"'Fiche organisateur N2'!I22","v":0},{"$f":"'Fiche organisateur N2'!J22","v":0},{"$f":"'06'!B39","v":"-"},{"$f":"'06'!F39","v":"-"},{"$f":"IF(K22=\"-\",\"X\",IF(K22=0,\"N.C.\",_xlfn.RANK.EQ(K22,$K$17:$K$34,0)))","v":"X"},{"$f":"IF(K22=\"-\",\"-\",IF(K22>V25,\"5\",IF(K22>W25,\"4\",IF(K22>X25,\"3\",IF(K22>Y25,\"2\",IF(K22>0.1,\"1 \",\"0 \"))))))","v":"-"},null,null,null,null,null,"IHT1",100,{"$f":"U22*89.999/100","v":89.998999999999995},{"$f":"U22*79.999/100","v":79.998999999999995},{"$f":"U22*69.999/100","v":69.998999999999995},{"$f":"U22*59.999/100","v":59.999000000000002},0.1]
[null,{"$f":"IF(M23=\"X\",\"-\",M23)","v":"-"},{"$f":"'Fiche organisateur N2'!C23","v":0},{"$f":"'Fiche organisateur N2'!D23","v":0},{"$f":"'Fiche organisateur N2'!E23","v":0},{"$f":"'Fiche organisateur N2'!F23","v":0},{"$f":"'Fiche organisateur N2'!G23","v":0},{"$f":"'Fiche organisateur N2'!H23","v":0},{"$f":"'Fiche organisateur N2'!I23","v":0},{"$f":"'Fiche organisateur N2'!J23","v":0},{"$f":"'07'!B39","v":"-"},{"$f":"'07'!F39","v":"-"},{"$f":"IF(K23=\"-\",\"X\",IF(K23=0,\"N.C.\",_xlfn.RANK.EQ(K23,$K$17:$K$34,0)))","v":"X"},{"$f":"IF(K23=\"-\",\"-\",IF(K23>V26,\"5\",IF(K23>W26,\"4\",IF(K23>X26,\"3\",IF(K23>Y26,\"2\",IF(K23>0.1,\"1 \",\"0 \"))))))","v":"-"},null,null,null,null,null,"IHT1",100,{"$f":"U23*89.999/100","v":89.998999999999995},{"$f":"U23*79.999/100","v":79.998999999999995},{"$f":"U23*69.999/100","v":69.998999999999995},{"$f":"U23*59.999/100","v":59.999000000000002},0.1]
[null,{"$f":"IF(M24=\"X\",\"-\",M24)","v":"-"},{"$f":"'Fiche organisateur N2'!C24","v":0},{"$f":"'Fiche organisateur N2'!D24","v":0},{"$f":"'Fiche organisateur N2'!E24","v":0},{"$f":"'Fiche organisateur N2'!F24","v":0},{"$f":"'Fiche organisateur N2'!G24","v":0},{"$f":"'Fiche organisateur N2'!H24","v":0},{"$f":"'Fiche organisateur N2'!I24","v":0},{"$f":"'Fiche organisateur N2'!J24","v":0},{"$f":"'08'!B39","v":"-"},{"$f":"'08'!F39","v":"-"},{"$f":"IF(K24=\"-\",\"X\",IF(K24=0,\"N.C.\",_xlfn.RANK.EQ(K24,$K$17:$K$34,0)))","v":"X"},{"$f":"IF(K24=\"-\",\"-\",IF(K24>V27,\"5\",IF(K24>W27,\"4\",IF(K24>X27,\"3\",IF(K24>Y27,\"2\",IF(K24>0.1,\"1 \",\"0 \"))))))","v":"-"},null,null,null,null,null,"IHT1",100,{"$f":"U24*89.999/100","v":89.998999999999995},{"$f":"U24*79.999/100","v":79.998999999999995},{"$f":"U24*69.999/100","v":69.998999999999995},{"$f":"U24*59.999/100","v":59.999000000000002},0.1]
[null,{"$f":"IF(M25=\"X\",\"-\",M25)","v":"-"},{"$f":"'Fiche organisateur N2'!C25","v":0},{"$f":"'Fiche organisateur N2'!D25","v":0},{"$f":"'Fiche organisateur N2'!E25","v":0},{"$f":"'Fiche organisateur N2'!F25","v":0},{"$f":"'Fiche organisateur N2'!G25","v":0},{"$f":"'Fiche organisateur N2'!H25","v":0},{"$f":"'Fiche organisateur N2'!I25","v":0},{"$f":"'Fiche organisateur N2'!J25","v":0},{"$f":"'09'!B39","v":"-"},{"$f":"'09'!F39","v":"-"},{"$f":"IF(K25=\"-\",\"X\",IF(K25=0,\"N.C.\",_xlfn.RANK.EQ(K25,$K$17:$K$34,0)))","v":"X"},{"$f":"IF(K25=\"-\",\"-\",IF(K25>V28,\"5\",IF(K25>W28,\"4\",IF(K25>X28,\"3\",IF(K25>Y28,\"2\",IF(K25>0.1,\"1 \",\"0 \"))))))","v":"-"},null,null,null,null,null,"IHT1",100,{"$f":"U25*89.999/100","v":89.998999999999995},{"$f":"U25*79.999/100","v":79.998999999999995},{"$f":"U25*69.999/100","v":69.998999999999995},{"$f":"U25*59.999/100","v":59.999000000000002},0.1]
[null,{"$f":"IF(M26=\"X\",\"-\",M26)","v":"-"},{"$f":"'Fiche organisateur N2'!C26","v":0},{"$f":"'Fiche organisateur N2'!D26","v":0},{"$f":"'Fiche organisateur N2'!E26","v":0},{"$f":"'Fiche organisateur N2'!F26","v":0},{"$f":"'Fiche organisateur N2'!G26","v":0},{"$f":"'Fiche organisateur N2'!H26","v":0},{"$f":"'Fiche organisateur N2'!I26","v":0},{"$f":"'Fiche organisateur N2'!J26","v":0},{"$f":"'10'!B39","v":"-"},{"$f":"'10'!F39","v":"-"},{"$f":"IF(K26=\"-\",\"X\",IF(K26=0,\"N.C.\",_xlfn.RANK.EQ(K26,$K$17:$K$34,0)))","v":"X"},{"$f":"IF(K26=\"-\",\"-\",IF(K26>V29,\"5\",IF(K26>W29,\"4\",IF(K26>X29,\"3\",IF(K26>Y29,\"2\",IF(K26>0.1,\"1 \",\"0 \"))))))","v":"-"},null,null,null,null,null,"IHT1",100,{"$f":"U26*89.999/100","v":89.998999999999995},{"$f":"U26*79.999/100","v":79.998999999999995},{"$f":"U26*69.999/100","v":69.998999999999995},{"$f":"U26*59.999/100","v":59.999000000000002},0.1]
[null,{"$f":"IF(M27=\"X\",\"-\",M27)","v":"-"},{"$f":"'Fiche organisateur N2'!C27","v":0},{"$f":"'Fiche organisateur N2'!D27","v":0},{"$f":"'Fiche organisateur N2'!E27","v":0},{"$f":"'Fiche organisateur N2'!F27","v":0},{"$f":"'Fiche organisateur N2'!G27","v":0},{"$f":"'Fiche organisateur N2'!H27","v":0},{"$f":"'Fiche organisateur N2'!I27","v":0},{"$f":"'Fiche organisateur N2'!J27","v":0},{"$f":"'11'!B39","v":"-"},{"$f":"'11'!F39","v":"-"},{"$f":"IF(K27=\"-\",\"X\",IF(K27=0,\"N.C.\",_xlfn.RANK.EQ(K27,$K$17:$K$34,0)))","v":"X"},{"$f":"IF(K27=\"-\",\"-\",IF(K27>V30,\"5\",IF(K27>W30,\"4\",IF(K27>X30,\"3\",IF(K27>Y30,\"2\",IF(K27>0.1,\"1 \",\"0 \"))))))","v":"-"},null,null,null,null,null,"IHT1",100,{"$f":"U27*89.999/100","v":89.998999999999995},{"$f":"U27*79.999/100","v":79.998999999999995},{"$f":"U27*69.999/100","v":69.998999999999995},{"$f":"U27*59.999/100","v":59.999000000000002},0.1]
[null,{"$f":"IF(M28=\"X\",\"-\",M28)","v":"-"},{"$f":"'Fiche organisateur N2'!C28","v":0},{"$f":"'Fiche organisateur N2'!D28","v":0},{"$f":"'Fiche organisateur N2'!E28","v":0},{"$f":"'Fiche organisateur N2'!F28","v":0},{"$f":"'Fiche organisateur N2'!G28","v":0},{"$f":"'Fiche organisateur N2'!H28","v":0},{"$f":"'Fiche organisateur N2'!I28","v":0},{"$f":"'Fiche organisateur N2'!J28","v":0},{"$f":"'12'!B39","v":"-"},{"$f":"'12'!F39","v":"-"},{"$f":"IF(K28=\"-\",\"X\",IF(K28=0,\"N.C.\",_xlfn.RANK.EQ(K28,$K$17:$K$34,0)))","v":"X"},{"$f":"IF(K28=\"-\",\"-\",IF(K28>V31,\"5\",IF(K28>W31,\"4\",IF(K28>X31,\"3\",IF(K28>Y31,\"2\",IF(K28>0.1,\"1 \",\"0 \"))))))","v":"-"},null,null,null,null,null,"IHT1",100,{"$f":"U28*89.999/100","v":89.998999999999995},{"$f":"U28*79.999/100","v":79.998999999999995},{"$f":"U28*69.999/100","v":69.998999999999995},{"$f":"U28*59.999/100","v":59.999000000000002},0.1]
[null,{"$f":"IF(M29=\"X\",\"-\",M29)","v":"-"},{"$f":"'Fiche organisateur N2'!C29","v":0},{"$f":"'Fiche organisateur N2'!D29","v":0},{"$f":"'Fiche organisateur N2'!E29","v":0},{"$f":"'Fiche organisateur N2'!F29","v":0},{"$f":"'Fiche organisateur N2'!G29","v":0},{"$f":"'Fiche organisateur N2'!H29","v":0},{"$f":"'Fiche organisateur N2'!I29","v":0},{"$f":"'Fiche organisateur N2'!J29","v":0},{"$f":"'13'!B39","v":"-"},{"$f":"'13'!F39","v":"-"},{"$f":"IF(K29=\"-\",\"X\",IF(K29=0,\"N.C.\",_xlfn.RANK.EQ(K29,$K$17:$K$34,0)))","v":"X"},{"$f":"IF(K29=\"-\",\"-\",IF(K29>V32,\"5\",IF(K29>W32,\"4\",IF(K29>X32,\"3\",IF(K29>Y32,\"2\",IF(K29>0.1,\"1 \",\"0 \"))))))","v":"-"},null,null,null,null,null,"IHT1",100,{"$f":"U29*89.999/100","v":89.998999999999995},{"$f":"U29*79.999/100","v":79.998999999999995},{"$f":"U29*69.999/100","v":69.998999999999995},{"$f":"U29*59.999/100","v":59.999000000000002},0.1]
[null,{"$f":"IF(M30=\"X\",\"-\",M30)","v":"-"},{"$f":"'Fiche organisateur N2'!C30","v":0},{"$f":"'Fiche organisateur N2'!D30","v":0},{"$f":"'Fiche organisateur N2'!E30","v":0},{"$f":"'Fiche organisateur N2'!F30","v":0},{"$f":"'Fiche organisateur N2'!G30","v":0},{"$f":"'Fiche organisateur N2'!H30","v":0},{"$f":"'Fiche organisateur N2'!I30","v":0},{"$f":"'Fiche organisateur N2'!J30","v":0},{"$f":"'14'!B39","v":"-"},{"$f":"'14'!F39","v":"-"},{"$f":"IF(K30=\"-\",\"X\",IF(K30=0,\"N.C.\",_xlfn.RANK.EQ(K30,$K$17:$K$34,0)))","v":"X"},{"$f":"IF(K30=\"-\",\"-\",IF(K30>V33,\"5\",IF(K30>W33,\"4\",IF(K30>X33,\"3\",IF(K30>Y33,\"2\",IF(K30>0.1,\"1 \",\"0 \"))))))","v":"-"},null,null,null,null,null,"IHT1",100,{"$f":"U30*89.999/100","v":89.998999999999995},{"$f":"U30*79.999/100","v":79.998999999999995},{"$f":"U30*69.999/100","v":69.998999999999995},{"$f":"U30*59.999/100","v":59.999000000000002},0.1]
[null,{"$f":"IF(M31=\"X\",\"-\",M31)","v":"-"},{"$f":"'Fiche organisateur N2'!C31","v":0},{"$f":"'Fiche organisateur N2'!D31","v":0},{"$f":"'Fiche organisateur N2'!E31","v":0},{"$f":"'Fiche organisateur N2'!F31","v":0},{"$f":"'Fiche organisateur N2'!G31","v":0},{"$f":"'Fiche organisateur N2'!H31","v":0},{"$f":"'Fiche organisateur N2'!I31","v":0},{"$f":"'Fiche organisateur N2'!J31","v":0},{"$f":"'15'!B39","v":"-"},{"$f":"'15'!F39","v":"-"},{"$f":"IF(K31=\"-\",\"X\",IF(K31=0,\"N.C.\",_xlfn.RANK.EQ(K31,$K$17:$K$34,0)))","v":"X"},{"$f":"IF(K31=\"-\",\"-\",IF(K31>V34,\"5\",IF(K31>W34,\"4\",IF(K31>X34,\"3\",IF(K31>Y34,\"2\",IF(K31>0.1,\"1 \",\"0 \"))))))","v":"-"},null,null,null,null,null,"IHT1",100,{"$f":"U31*89.999/100","v":89.998999999999995},{"$f":"U31*79.999/100","v":79.998999999999995},{"$f":"U31*69.999/100","v":69.998999999999995},{"$f":"U31*59.999/100","v":59.999000000000002},0.1]
[null,{"$f":"IF(M32=\"X\",\"-\",M32)","v":"-"},{"$f":"'Fiche organisateur N2'!C32","v":0},{"$f":"'Fiche organisateur N2'!D32","v":0},{"$f":"'Fiche organisateur N2'!E32","v":0},{"$f":"'Fiche organisateur N2'!F32","v":0},{"$f":"'Fiche organisateur N2'!G32","v":0},{"$f":"'Fiche organisateur N2'!H32","v":0},{"$f":"'Fiche organisateur N2'!I32","v":0},{"$f":"'Fiche organisateur N2'!J32","v":0},{"$f":"'16'!B39","v":"-"},{"$f":"'16'!F39","v":"-"},{"$f":"IF(K32=\"-\",\"X\",IF(K32=0,\"N.C.\",_xlfn.RANK.EQ(K32,$K$17:$K$34,0)))","v":"X"},{"$f":"IF(K32=\"-\",\"-\",IF(K32>V35,\"5\",IF(K32>W35,\"4\",IF(K32>X35,\"3\",IF(K32>Y35,\"2\",IF(K32>0.1,\"1 \",\"0 \"))))))","v":"-"},null,null,null,null,null,"IHT1",100,{"$f":"U32*89.999/100","v":89.998999999999995},{"$f":"U32*79.999/100","v":79.998999999999995},{"$f":"U32*69.999/100","v":69.998999999999995},{"$f":"U32*59.999/100","v":59.999000000000002},0.1]
[null,{"$f":"IF(M33=\"X\",\"-\",M33)","v":"-"},{"$f":"'Fiche organisateur N2'!C33","v":0},{"$f":"'Fiche organisateur N2'!D33","v":0},{"$f":"'Fiche organisateur N2'!E33","v":0},{"$f":"'Fiche organisateur N2'!F33","v":0},{"$f":"'Fiche organisateur N2'!G33","v":0},{"$f":"'Fiche organisateur N2'!H33","v":0},{"$f":"'Fiche organisateur N2'!I33","v":0},{"$f":"'Fiche organisateur N2'!J33","v":0},{"$f":"'17'!B39","v":"-"},{"$f":"'17'!F39","v":"-"},{"$f":"IF(K33=\"-\",\"X\",IF(K33=0,\"N.C.\",_xlfn.RANK.EQ(K33,$K$17:$K$34,0)))","v":"X"},{"$f":"IF(K33=\"-\",\"-\",IF(K33>V36,\"5\",IF(K33>W36,\"4\",IF(K33>X36,\"3\",IF(K33>Y36,\"2\",IF(K33>0.1,\"1 \",\"0 \"))))))","v":"-"},null,null,null,null,null,"IHT1",100,{"$f":"U33*89.999/100","v":89.998999999999995},{"$f":"U33*79.999/100","v":79.998999999999995},{"$f":"U33*69.999/100","v":69.998999999999995},{"$f":"U33*59.999/100","v":59.999000000000002},0.1]
[null,{"$f":"IF(M34=\"X\",\"-\",M34)","v":"-"},{"$f":"'Fiche organisateur N2'!C34","v":0},{"$f":"'Fiche organisateur N2'!D34","v":0},{"$f":"'Fiche organisateur N2'!E34","v":0},{"$f":"'Fiche organisateur N2'!F34","v":0},{"$f":"'Fiche organisateur N2'!G34","v":0},{"$f":"'Fiche organisateur N2'!H34","v":0},{"$f":"'Fiche organisateur N2'!I34","v":0},{"$f":"'Fiche organisateur N2'!J34","v":0},{"$f":"'18'!B39","v":"-"},{"$f":"'18'!F39","v":"-"},{"$f":"IF(K34=\"-\",\"X\",IF(K34=0,\"N.C.\",_xlfn.RANK.EQ(K34,$K$17:$K$34,0)))","v":"X"},{"$f":"IF(K34=\"-\",\"-\",IF(K34>V37,\"5\",IF(K34>W37,\"4\",IF(K34>X37,\"3\",IF(K34>Y37,\"2\",IF(K34>0.1,\"1 \",\"0 \"))))))","v":"-"},null,null,null,null,null,"IHT1",100,{"$f":"U34*89.999/100","v":89.998999999999995},{"$f":"U34*79.999/100","v":79.998999999999995},{"$f":"U34*69.999/100","v":69.998999999999995},{"$f":"U34*59.999/100","v":59.999000000000002},0.1]
[null,null,null,null,null,null,null,null,null,null,null,null,null,null,null,null,null,null,null,"IHT1",100,{"$f":"U35*89.999/100","v":89.998999999999995},{"$f":"U35*79.999/100","v":79.998999999999995},{"$f":"U35*69.999/100","v":69.998999999999995},{"$f":"U35*59.999/100","v":59.999000000000002},0.1]
[null,null,null,null,null,null,null,null,null,null,null,null,null,null,null,null,null,null,null,"IHT1",100,89.998999999999995,79.998999999999995,69.998999999999995,59.999000000000002,0.1]
[null,null,null,{"$f":"COUNTA('Fiche organisateur N2'!E17:E34)","v":0},"(= inscrits)",null,null,null,null,null,null,null,null,null,null,null,null,null,null,"IHT1",100,89.998999999999995,79.998999999999995,69.998999999999995,59.999000000000002,0.1]
[null,null,"Nombre de chiens",{"$f":"COUNT(K17:K34)","v":0},"(=entrés sur le terrain)",3,{"$f":"D38*F38","v":0}," <====  Montant de la redevance CC (chèque global à l'ordre de CC/ CUNTRP)  à joindre au présent rapport"]
[null,null,null,{"$f":"COUNT(K17:K34)-COUNTIF(K17:K34,\"=0\")","v":0},"(=ayant un score non nul)"]
[]
[]
[null,"Observations"]
[]
[null,null,null,null,null,null,null,"juge",{"$f":"'Fiche organisateur N1'!$E$27","v":0},null,"Signature :"]

{"sheet":"CODE FCI","index":5,"n_rows":355,"n_cols":4,"rows_kept":355,"cut":false,"hidden":true,"merged":[]}
[]
[null," NOMS DE RACE FCI    (liste à jour au 28 mai 2015)","CODES RACE\nFCI"," NOMS DE RACE EN LANGUE D'ORIGINE"]
[null,"AFFENPINSCHER",186,"AFFENPINSCHER"]
[null,"AIREDALE TERRIER",7,"AIREDALE TERRIER"]
[null,"AKITA",255,"AKITA"]
[null,"AKITA AMERICAIN",344,"AMERICAN AKITA"]
[null,"ANGLO FRANCAIS DE PETITE VENERIE",325,"ANGLO FRANCAIS DE PETITE VENERIE"]
[null,"ARIEGEOIS",20,"ARIEGEOIS"]
[null,"AZAWAKH",307,"AZAWAKH"]
[null,"BANGKAEW DE THAILANDE",358,"THAI BANGKAEW DOG"]
[null,"BARBET",105,"BARBET"]
[null,"BARBU TCHEQUE",245,"CESKY FOUSEK"]
[null,"BARZOÏ",193,"RUSSKAYA PSOVAYA BORZAYA"]
[null,"BASENJI",43,"BASENJI"]
[null,"BASSET ARTESIEN NORMAND",34,"BASSET ARTESIEN NORMAND"]
[null,"BASSET BLEU DE GASCOGNE",35,"BASSET BLEU DE GASCOGNE"]
[null,"BASSET DE WESTPHALIE",100,"WESTFÄLISCHE DACHSBRACKE"]
[null,"BASSET DES ALPES",254,"ALPENLÄNDISCHE DACHSBRACKE"]
[null,"BASSET FAUVE DE BRETAGNE",36,"BASSET FAUVE DE BRETAGNE"]
[null,"BASSET HOUND",163,"BASSET HOUND"]
[null,"BASSET SUEDOIS",130,"DREVER"]
[null,"BEAGLE",161,"BEAGLE"]
[null,"BEAGLE HARRIER",290,"BEAGLE HARRIER"]
[null,"BEARDED COLLIE",271,"BEARDED COLLIE"]
[null,"BEDLINGTON TERRIER",9,"BEDLINGTON TERRIER"]
[null,"BERGER ALLEMAND",166,"DEUTSCHER SCHÄFERHUND"]
[null,"BERGER AMERICAIN MINIATURE",916,"AMERICAN SHEPERD MINIATURE"]
[null,"BERGER AUSTRALIEN",342,"AUSTRALIAN SHEPHERD"]
[null,"BERGER BERGAMASQUE",194,"CANE DA PASTORE BERGAMASCO"]
[null,"BERGER BLANC SUISSE",347,"BERGER BLANC SUISSE / WEISSER SCHWEIZER SCHAFERHUND"]
[null,"BERGER D'ASIE CENTRALE",335,"SREDNEASIATSKAÏA OVTCHARKA"]
[null,"BERGER DE BEAUCE",44,"BERGER DE BEAUCE"]
[null,"BERGER DE BOSNIE-HERZEGOVINE ET DE CROATIE",355,"TORNJAK"]
[null,"BERGER DE BRIE",113,"BERGER DE BRIE"]
[null,"BERGER DE LA MAREMME ET DES ABRUZZES",201,"CANE DA PASTORE MAREMMANO-ABRUZZESE"]
[null,"BERGER DE LA SERRA DE AIRES",93,"CÃO DA SERRA DE AIRES"]
[null,"BERGER DE L'EUROPE DU SUD-EST",357,"CIOBANESC ROMANESC DE BUCOVINA"]
[null,"BERGER DE PICARDIE",176,""]
[null,"BERGER DE RUSSIE MERIDIONALE",326,"IOUJNOROUSSKAÏA OVTCHARKA"]
[null,"BERGER DES PYRENEES A FACE RASE",138,"BERGER DES PYRENEES A FACE RASE"]
[null,"BERGER DES PYRENEES A POIL LONG",141,"BERGER DES PYRENEES A POIL LONG"]
[null,"BERGER DU CAUCASE",328,"KAVKAZSKAÏA OVTCHARKA"]
[null,"BERGER DU KARST",278,"KRASZKI OVCAR"]
[null,"BERGER FINNOIS DE LAPONIE",284,"LAPINPOROKOIRA"]
[null,"BERGER HOLLANDAIS",223,"HOLLANDSE HERDERSHOND"]
[null,"BERGER POLONAIS DE PLAINE",251,"POLSKI OWCZAREK NIZINNY"]
[null,"BICHON A POIL FRISE",215,""]
[null,"BICHON BOLONAIS",196,"BOLOGNESE"]
[null,"BICHON HAVANAIS",250,"BICHON HAVANAIS"]
[null,"BICHON MALTAIS",65,"MALTESE"]
[null,"BILLY",25,"BILLY"]
[null,"BORDER COLLIE",297,"BORDER COLLIE"]
[null,"BORDER TERRIER",10,"BORDER TERRIER"]
[null,"BOULEDOGUE FRANCAIS",101,"BOULEDOGUE FRANCAIS"]
[null,"BOUVIER AUSTRALIEN",287,"AUSTRALIAN CATTLE DOG"]
[null,"BOUVIER AUSTRALIEN COURTE QUEUE",351,"AUSTRALIAN STUMPY TAIL CATTLE DOG"]
[null,"BOUVIER BERNOIS",45,"BERNER SENNENHUND , DÜRRBÄCHLER"]
[null,"BOUVIER DE L'APPENZELL",46,"APPENZELLER SENNENHUND"]
[null,"BOUVIER DE L'ENTLEBUCH",47,"ENTLEBUCHER SENNENHUND"]
[null,"BOUVIER DES ARDENNES",171,"BOUVIER DES ARDENNES"]
[null,"BOUVIER DES FLANDRES",191,"BOUVIER DES FLANDRES"]
[null,"BOXER",144,"BOXER"]
[null,"BRACHET ALLEMAND",299,"DEUTSCHE BRACKE"]
[null,"BRACHET DE STYRIE A POIL DUR",62,"STEIRISCHE RAUHHAARBRACKE"]
[null,"BRACHET NOIR ET FEU",63,"BRANDLBRACKE"]
[null,"BRACHET POLONAIS",52,"OGAR POLSKI"]
[null,"BRACHET TYROLIEN",68,"TIROLER BRACKE"]
[null,"BRAQUE ALLEMAND A POIL COURT",119,"DEUTSCH KURZHAAR"]
[null,"BRAQUE D AUVERGNE",180,"BRAQUE D'AUVERGNE"]
[null,"BRAQUE DE BURGOS",90,"PERDIGUERO DE BURGOS"]
[null,"BRAQUE DE L ARIEGE",177,"BRAQUE DE L'ARIEGE"]
[null,"BRAQUE DE WEIMAR",99,"WEIMARANER"]
[null,"BRAQUE DU BOURBONNAIS",179,"BRAQUE DU BOURBONNAIS"]
[null,"BRAQUE FRANCAIS, TYPE GASCOGNE",133,""]
[null,"BRAQUE FRANCAIS, TYPE PYRENEES",134,""]
[null,"BRAQUE HONGROIS A POIL COURT",57,"RÖVIDSZÖRU MAGYAR VIZSLA"]
[null,"BRAQUE HONGROIS A POIL DUR",239,"DRÖTZÖRÜ MAGYAR VIZSLA"]
[null,"BRAQUE ITALIEN",202,"BRACCO ITALIANO"]
[null,"BRAQUE SAINT GERMAIN",115,"BRAQUE SAINT GERMAIN"]
[null,"BRAQUE SLOVAQUE A POIL DUR",320,"SLOVENSKI HRUBOSRSTY STAVAC (OHAR)"]
[null,"BRIQUET DE PROVENCE",911,""]
[null,"BRIQUET GRIFFON VENDEEN",19,"BRIQUET GRIFFON VENDEEN"]
[null,"BROHOLMER",315,"BROHOLMER"]
[null,"BRUNO SAINT-HUBERT FRANCAIS",905,"JURA LAUFHUND - CHIEN COURANT"]
[null,"BUHUND NORVEGIEN",237,"NORSK BUHUND"]
[null,"BULL TERRIER",11,"BULL TERRIER"]
[null,"BULL TERRIER MINIATURE",359,"MINIATURE BULL TERRIER"]
[null,"BULLDOG",149,"BULLDOG"]
[null,"BULLMASTIFF",157,"BULLMASTIFF"]
[null,"CAIRN TERRIER",4,"CAIRN TERRIER"]
[null,"CANICHE",172,"CANICHE"]
[null,"CARLIN",253,"PUG"]
[null,"CAVALIER KING CHARLES",136,"CAVALIER KING CHARLES SPANIEL"]
[null,"CHIEN A LOUTRE",294,"OTTERHOUND"]
[null,"CHIEN CHINOIS A CRETE",288,"CHINESE CRESTED DOG"]
[null,"CHIEN COURANT DE BOSNIE A POIL DUR",155,"BOSANSKI OSTRODLAKI GONIC - BARAK"]
[null,"CHIEN COURANT DE HALDEN",267,"HALDENSTOVER"]
[null,"CHIEN COURANT DE HAMILTON",132,"HAMILTONSTOVARE"]
[null,"CHIEN COURANT DE HYGEN",266,"HYGENHUND"]
[null,"CHIEN COURANT DE LA VALLE DE LA SAVE",154,"POSAVSKI GONIC"]
[null,"CHIEN COURANT DE MONTAGNE DU MONTENEGRO",279,"CRNOGORSKI  PLANINSKI GONIC"]
[null,"CHIEN COURANT DE SCHILLER",131,"SCHILLERSTÖVARE"]
[null,"CHIEN COURANT DE TRANSYLVANIE",241,"ERDELYI KOPO"]
[null,"CHIEN COURANT D'ISTRIE A POIL DUR",152,"ISTARSKI OSTRODLAKI GONIC"]
[null,"CHIEN COURANT D'ISTRIE A POIL RAS",151,"ISTARSKI KRATKODLAKI GONIC"]
[null,"CHIEN COURANT DU SMALAND",129,"SMALANDSSTOVARE"]
[null,"CHIEN COURANT ESPAGNOL",204,"SABUESO ESPAÑOL"]
[null,"CHIEN COURANT FINLANDAIS",51,"SUOMENAJOKOIRA"]
[null,"CHIEN COURANT GREC",214,"HELLINIKOS ICHNILATIS"]
[null,"CHIEN COURANT ITALIEN A POIL DUR",198,"SEGUGIO ITALIANO A PELO FORTE"]
[null,"CHIEN COURANT ITALIEN A POIL RAS",337,"SEGUGIO ITALIANO A PELO RAZO"]
[null,"CHIEN COURANT NORVEGIEN",203,"DUNKER"]
[null,"CHIEN COURANT POLONAIS",354,"GONZCY POLSKI"]
[null,"CHIEN COURANT SERBE",150,"SERBSKI GONIC"]
[null,"CHIEN COURANT SLOVAQUE",244,"SLOVENSKY KOPOV"]
[null,"CHIEN COURANT SUISSE",59,"SCHWEIZER LAUFHUND"]
[null,"CHIEN COURANT TRICOLORE SERBE",229,"SERPSKI TROBOJNI GONIC"]
[null,"CHIEN D'ARRET ALLEMAND A POIL DUR",98,"DEUTSCH DRAHTHAAR"]
[null,"CHIEN D'ARRET ALLEMAND A POIL LONG",117," DEUTSCH LANGHAAR"]
[null,"CHIEN D'ARRET ALLEMAND A POIL RAIDE",232,"DEUTSCH STICHELHAAR"]
[null,"CHIEN D'ARRET DANOIS ANCESTRAL",281,"GAMMEL DANSK HONSHUND"]
[null,"CHIEN D'ARRET FRISON",222,"STABYHOUN"]
[null,"CHIEN D'ARRET PORTUGAIS",187,"PERDIGUEIRO PORTUGUES"]
[null,"CHIEN D'ARTOIS",28,"CHIEN D'ARTOIS"]
[null,"CHIEN DE BERGER ANGLAIS ANCESTRAL",16,"OLD ENGLISH SHEEPDOG"]
[null,"CHIEN DE BERGER BELGE",15,"BELGISCHE HERDERSHOND"]
[null,"CHIEN DE BERGER CATALAN",87,"PERRO DE PASTOR CATALAN - GOS D'ATURA CATALA"]
[null,"CHIEN DE BERGER CROATE",277,"HRVATSKI OVCAR"]
[null,"CHIEN DE BERGER D ANATOLIE",331,"COBAN KOPEGI"]
[null,"CHIEN DE BERGER DE MAJORQUE",321,"PERRO DE PASTOR MALLORQUIN - CA DE BESTIAR"]
[null,"CHIEN DE BERGER DES SHETLAND",88,"SHETLAND SHEEPDOG"]
[null,"CHIEN DE BERGER DES TATRAS",252,"POLSKI OWCZAREK PODHALANSKI"]
[null,"CHIEN DE BERGER ISLANDAIS",289,"ISLENSKUR FJARHUNDUR"]
[null,"CHIEN DE BERGER ROUMAIN DE MIORITZA",349,"CIOBANESC ROMÂNESC MIORITIC"]
[null,"CHIEN DE BERGER ROUMAIN DES CARPATHES",350,"CIOBANESC  ROMÂNESC CARPATIN"]
[null,"CHIEN DE BERGER YOUGOSLAVE DE CHARPLANINA",41,"JUGOSLOVENSKI OVCARSKI PAS"]
[null,"CHIEN DE CANAAN",273,"CANAAN DOG"]
[null,"CHIEN DE CASTRO LABOREIRO",170,"CAO DE CASTRO LABOREIRO"]
[null,"CHIEN DE COUR ITALIEN",343,"CANE CORSO"]
[null,"CHIEN DE FERME DANO-SUEDOIS",356,"DANSK-SVENSK GARDSHUND"]
[null,"CHIEN DE GARENNE DES CANARIES",329,"PODENCO CANARIO"]
[null,"CHIEN DE GARENNE PORTUGAIS",94,"PODENGO PORTUGUÈS"]
[null,"CHIEN DE LA SERRA DA ESTRELA",173,"CAO DA SERRA DA ESTRELA"]
[null,"CHIEN DE LEONBERG",145,"LEONBERGER"]
[null,"CHIEN DE MONTAGNE DE L'ATLAS",247,"AÏDI"]
[null,"CHIEN DE MONTAGNE DES PYRENEES",137,"CHIEN DE MONTAGNE DES PYRENEES"]
[null,"CHIEN DE PERDRIX DE DRENTE",224,"DRENTSCHE PATRIJSHOND"]
[null,"CHIEN DE RHODESIE A CRETE DORSALE",146,"RHODESIAN RIDGEBACK"]
[null,"CHIEN DE ROUGE DE BAVIERE",217,"BAYRISCHER GEBIRGSSCHWEISSHUND"]
[null,"CHIEN DE ROUGE DU HANOVRE",213,"HANNOVERSCHER SCHWEISSHUND"]
[null,"CHIEN DE SAINT HUBERT",84,"CHIEN DE SAINT HUBERT"]
[null,"CHIEN DE TAÏWAN",348,"TAÏWAN DOG"]
[null,"CHIEN D'EAU AMERICAIN",301,"AMERICAN WATER SPANIEL"]
[null,"CHIEN D'EAU ESPAGNOL",336,"PERRO DE AGUA ESPAÑOL"]
[null,"CHIEN D'EAU FRISON",221,"WETTERHOUN"]
[null,"CHIEN D'EAU PORTUGAIS",37,"CÃO DE AGUA PORTUGUÊS"]
[null,"CHIEN D'EAU ROMAGNOL",298,"LAGOTTO ROMAGNOLO"]
[null,"CHIEN D'ELAN NORVEGIEN GRIS",242,"NORSK ELKHUND GRA"]
[null,"CHIEN D'ELAN NORVEGIEN NOIR",268,"NORSK ELGHUND SORT"]
[null,"CHIEN D'ELAN SUEDOIS / JÄMTHUND",42,"JÄMTHUND"]
[null,"CHIEN D'OURS DE CARELIE",48,"KARJALANKARHUKOIRA"]
[null,"CHIEN D'OYSEL ALLEMAND",104,"DEUTSCHER WACHTELHUND"]
[null,"CHIEN DU GROENLAND",274,"GRONLANDSHUND"]
[null,"CHIEN DU PHARAON",248,"PHARAOH HOUND"]
[null,"CHIEN FINNOIS DE LAPONIE",189,"SUOMENLAPINKOIRA"]
[null,"CHIEN FONNESE",913,"CANE FONNESE"]
[null,"CHIEN LOUP DE SAARLOOS",311,"SAARLOOS WOLFHOND"]
[null,"CHIEN LOUP TCHECOSLOVAQUE",332,"CESKOSLOVENSKY VECIAK"]
[null,"CHIEN N. ET F. POUR LA CHASSE AU RATON",300,"BLACK AND TAN COONHOUND"]
[null,"CHIEN NORVEGIEN DE MACAREUX",265,"NORSK LUNDEHUND"]
[null,"CHIEN NU DU MEXIQUE",234,"XOLOITZCUINTLE"]
[null,"CHIEN NU DU PEROU",310,"PERRO SIN PELO DEL PERU"]
[null,"CHIEN PARTICOLORE A POIL FRISE",912,"CHIEN PARTICOLORE A POIL FRISE"]
[null,"CHIEN THAILANDAIS A CRETE DORSALE",338,"THAI RIDGEBACK DOG"]
[null,"CHIHUAHUA",218,"CHIHUAHUA"]
[null,"CHOW CHOW",205,"CHOW-CHOW"]
[null,"CIMARRON URUGUAYEN",353,"CIMARRON URUGUAYO"]
[null,"CIRNECO DE L ETNA",199,"CIRNECO DELL'ETNA"]
[null,"CLUMBER SPANIEL",109,"CLUMBER SPANIEL"]
[null,"COCKER SPANIEL AMERICAIN",167,"AMERICAN COCKER SPANIEL"]
[null,"COCKER SPANIEL ANGLAIS",5,"ENGLISH COCKER SPANIEL"]
[null,"COLLIE A POIL COURT",296,"SMOOTH COLLEY"]
[null,"COLLIE A POIL LONG",156,"ROUGH COLLEY"]
[null,"CONTINENTAL BULLDOG",915,"CONTINENTAL BULLDOG"]
[null,"COTON DE TULEAR",283,"COTON DE TULEAR"]
[null,"CROISE",null,"CROISE"]
[null,"CURSINU",901,"U'CURSINU"]
[null,"DALMATIEN",153,"DALMATIEN"]
[null,"DANDIE DINMONT TERRIER",168,"DANDIE DINMONT TERRIER"]
[null,"DOBERMANN",143,"DOBERMANN"]
[null,"DOGUE ALLEMAND",235,"DEUTSCHE DOGGE"]
[null,"DOGUE ARGENTIN",292,"DOGO ARGENTINO"]
[null,"DOGUE DE BORDEAUX",116,"DOGUE DE BORDEAUX"]
[null,"DOGUE DE MAJORQUE",249,"PERRO DOGO MALLORQUIN"]
[null,"DOGUE DES CANARIES",346,"DOGO CANARIO"]
[null,"DOGUE DU TIBET",230,"DO-KHYI"]
[null,"ENGLISH SPRINGER SPANIEL",125,"ENGLISH SPRINGER SPANIEL"]
[null,"EPAGNEUL BLEU DE PICARDIE",106,"EPAGNEUL BLEU DE PICARDIE"]
[null,"EPAGNEUL BRETON",95,"EPAGNEUL BRETON"]
[null,"EPAGNEUL DE PONT AUDEMER",114,"EPAGNEUL DE PONT AUDEMER"]
[null,"EPAGNEUL DE SAINT USUGE",906,"EPAGNEUL DE SAINT USUGE"]
[null,"EPAGNEUL D'EAU IRLANDAIS",124,"IRISH WATER SPANIEL"]
[null,"EPAGNEUL FRANCAIS",175,"EPAGNEUL FRANCAIS"]
[null,"EPAGNEUL JAPONAIS",206,"CHIN"]
[null,"EPAGNEUL KING CHARLES",128,"KING CHARLES SPANIEL"]
[null,"EPAGNEUL NAIN CONTINENTAL",77,""]
[null,"EPAGNEUL PEKINOIS",207,"PEKINGESE"]
[null,"EPAGNEUL PICARD",108,"EPAGNEUL PICARD"]
[null,"EPAGNEUL TIBETAIN",231,"TIBETAN SPANIEL"]
[null,"EURASIER",291,"EURASIEN"]
[null,"FIELD SPANIEL",123,"FIELD SPANIEL"]
[null,"FILA BRASILEIRO",225,"FILA BRASILEIRO"]
[null,"FILA DE SAINT  MIGUEL",340,"CAO DE FILA DE SAO MIGUEL"]
[null,"FOX HOUND ANGLAIS",159,"ENGLISH FOXHOUND"]
[null,"FOX TERRIER POIL DUR",169,"FOX TERRIER WIRE"]
[null,"FOX TERRIER POIL LISSE",12,"FOX TERRIER SMOOTH"]
[null,"FOXHOUND AMERICAIN",303,"AMERICAN FOXHOUND"]
[null,"FRANCAIS BLANC ET NOIR",220,"FRANCAIS"]
[null,"FRANCAIS BLANC ET ORANGE",316,""]
[null,"FRANCAIS TRICOLORE",219,"FRANCAIS"]
[null,"GASCON SAINTONGEOIS",21,"GASCON SAINTONGEOIS"]
[null,"GOLDEN RETRIEVER",111,"GOLDEN RETRIEVER"]
[null,"GRAND ANGLO FRANCAIS BLANC ET NOIR",323,"GRAND ANGLO FRANCAIS"]
[null,"GRAND ANGLO-FRANCAIS BLANC ET ORANGE",324,"GRAND ANGLO-FRANCAIS"]
[null,"GRAND ANGLO-FRANCAIS TRICOLORE",322,"GRAND ANGLO FRANCAIS"]
[null,"GRAND BASSET GRIFFON VENDEEN",33,"GRAND BASSET GRIFFON VENDEEN"]
[null,"GRAND BLEU DE GASCOGNE",22,"GRAND BLEU DE GASCOGNE"]
[null,"GRAND BOUVIER SUISSE",58,"GROSSER SCHWEIZER SENNENHUND"]
[null,"GRAND EPAGNEUL DE MUNSTER",118,"GROSSER MÜNSTERLÄNDER VORSTEHHUND"]
[null,"GRAND GRIFFON VENDEEN",282,"GRAND GRIFFON VENDEEN"]
[null,"GREYHOUND",158,"GREYHOUND"]
[null,"GRIFFON A POIL DUR KORTHALS",107,"GRIFFON A POIL DUR KORTHALS"]
[null,"GRIFFON BELGE",81,"GRIFFON BELGE"]
[null,"GRIFFON BLEU DE GASCOGNE",32,"GRIFFON BLEU DE GASCOGNE"]
[null,"GRIFFON BRUXELLOIS",80,"GRIFFON BRUXELLOIS"]
[null,"GRIFFON FAUVE DE BRETAGNE",66,"GRIFFON FAUVE DE BRETAGNE"]
[null,"GRIFFON NIVERNAIS",17,"GRIFFON NIVERNAIS"]
[null,"HARRIER",295,"HARRIER"]
[null,"HOKKAIDO",261,"HOKKAIDO"]
[null,"HOVAWART",190,"HOVAWART"]
[null,"HUSKY DE SIBERIE",270,"SIBERIAN HUSKY"]
[null,"JINDO COREEN",334,"KOREA JINDO DOG"]
[null,"KAI",317,"KAI"]
[null,"KELPIE AUSTRALIEN",293,"AUSTRALIAN KELPIE"]
[null,"KISHU",318,"KISHU"]
[null,"KOMONDOR",53,"KOMONDOR"]
[null,"KROMFOHRLANDER",192,"KROMFOHRLÄNDER"]
[null,"KUVASZ",54,"KUVASZ"]
[null,"LAIKA DE SIBERIE OCCIDENTALE",306,"ZAPADNO SIBIRSKAÏA LAÏKA"]
[null,"LAIKA DE SIBERIE ORIENTALE",305,"VOSTOTCHNO SIBIRSKAÏA LAÏKA"]
[null,"LAIKA RUSSO EUROPEEN",304,"RUSSKO EVROPEÏSKAÏA LAÏKA"]
[null,"LAKELAND TERRIER",70,"LAKELAND TERRIER"]
[null,"LANDSEER",226,"LANDSEER - TYPE CONTINENTAL EUROPEEN"]
[null,"LAPPHUND SUEDOIS",135,"SVENSK LAPPHUND"]
[null,"LEVRIER AFGHAN",228,"AFGHAN HOUND"]
[null,"LEVRIER ECOSSAIS",164,"DEERHOUND - SCOTTISH DEERHOUND"]
[null,"LEVRIER ESPAGNOL",285,"GALGO ESPAÑOL"]
[null,"LEVRIER HONGROIS",240,"MAGYAR AGAR"]
[null,"LEVRIER IRLANDAIS",160,"IRISH WOLFHOUND"]
[null,"LEVRIER POLONAIS",333,"CHART POLSKI"]
[null,"LHASSA APSO",227,"LHASSA APSO"]
[null,"MALAMUTE DE L'ALASKA",243,"ALASKAN MALAMUTE"]
[null,"MANCHESTER TERRIER",71,"MANCHESTER TERRIER"]
[null,"MASTIFF",264,"MASTIFF"]
[null,"MATIN DE L'ALENTEJO",96,"RAFEIRO DO ALENTEJO"]
[null,"MATIN DES PYRENEES",92,"MASTIN DEL PIRINEO"]
[null,"MATIN ESPAGNOL",91,"MASTIN ESPANOL"]
[null,"MATIN NAPOLITAIN",197,"MASTINO NAPOLETANO"]
[null,"MUDI",238,"MUDI"]
[null,"NORFOLK TERRIER",272,"NORFOLK TERRIER"]
[null,"NORWICH TERRIER",72,"NORWICH TERRIER"]
[null,"PETIT BASSET GRIFFON VENDEEN",67,"PETIT BASSET GRIFFON VENDEEN"]
[null,"PETIT BLEU DE GASCOGNE",31,"PETIT BLEU DE GASCOGNE"]
[null,"PETIT BRABANCON",82,"PETIT BRABANCON"]
[null,"PETIT CHIEN COURANT SUISSE",60,"SCHWEIZERISCHER NIEDERLAUFHUND"]
[null,"PETIT CHIEN HOLLANDAIS DE CHASSE AU GIBIER D'EAU",314,"KOOIKERHONDJE"]
[null,"PETIT CHIEN LION",233,"PETIT CHIEN LION"]
[null,"PETIT CHIEN RUSSE",352,"RUSSKIY TOY"]
[null,"PETIT EPAGNEUL DE MUNSTER",102,"KLEINER MÜNSTERLÄNDER VORSTEHHUND"]
[null,"PETIT LEVRIER ITALIEN",200,"PICCOLO LEVRIERO ITALIANO"]
[null,"PINSCHER ALLEMAND",184,"DEUTSCHER PINSCHER"]
[null,"PINSCHER AUTRICHIEN",64,"ÖSTERREICHISCHER PINSCHER"]
[null,"PINSCHER NAIN",185,"ZWERGPINSCHER"]
[null,"PODENCO D'IBIZA",89,"PODENCO IBICENCO"]
[null,"POINTER ANGLAIS",1,"ENGLISH POINTER"]
[null,"POITEVIN",24,"POITEVIN"]
[null,"PORCELAINE",30,"PORCELAINE"]
[null,"PUDELPOINTER",216,"PUDELPOINTER"]
[null,"PULI",55,"PULI"]
[null,"PUMI",56,"PUMI"]
[null,"RATIER DE PRAGUE",917,"PRAZSKY KRYSARIK"]
[null,"RETRIEVER A POIL BOUCLE",110,"CURLY COATED RETRIEVER"]
[null,"RETRIEVER A POIL PLAT",121,"FLAT COATED RETRIEVER"]
[null,"RETRIEVER DE LA BAIE DE CHESAPEAKE",263,"CHESAPEAKE BAY RETRIEVER"]
[null,"RETRIEVER DE LA NOUVELLE ECOSSE",312,"NOVA SCOTIA DUCK TOLLING RETRIEVER"]
[null,"RETRIEVER DU LABRADOR",122,"LABRADOR RETRIEVER"]
[null,"ROTTWEILER",147,"ROTTWEILER"]
[null,"SAINT BERNARD",61,"ST. BERNHARDSHUND"]
[null,"SALUKI",269,"SALUKI"]
[null,"SAMOYEDE",212,"SAMOIEDSKAÏA SABAKA"]
[null,"SCHAPENDOES NEERLANDAIS",313,"NEDERLANDSE SCHAPENDOES"]
[null,"SCHIPPERKE",83,"SCHIPPERKE"]
[null,"SCHNAUZER",182,"SCHNAUZER"]
[null,"SCHNAUZER GEANT",181,"RIESENSCHNAUZER"]
[null,"SCHNAUZER NAIN",183,"ZWERGSCHNAUZER"]
[null,"SEALYHAM TERRIER",74,"SEALYHAM TERRIER"]
[null,"SETTER ANGLAIS",2,"ENGLISH SETTER"]
[null,"SETTER GORDON",6,"GORDON SETTER"]
[null,"SETTER IRLANDAIS ROUGE",120,"IRISH RED SETTER"]
[null,"SETTER IRLANDAIS ROUGE & BLANC",330,"IRISH RED AND WHITE SETTER"]
[null,"SHAR PEI",309,"SHAR PEI"]
[null,"SHIBA",257,"SHIBA"]
[null,"SHIH TZU",208,"SHIH TZU"]
[null,"SHIKOKU",319,"SHIKOKU"]
[null,"SKYE TERRIER",75,"SKYE TERRIER"]
[null,"SLOUGHI",188,"SLOUGHI"]
[null,"SMOUS DES PAYS BAS",308,"HOLLANDSE SMOUSHOND"]
[null,"SPINONE",165,"SPINONE ITALIANO"]
[null,"SPITZ",97,""]
[null,"SPITZ DE NORRBOTTEN",276,"NORRBOTTENSPETS"]
[null,"SPITZ DES VISIGOTHS",14,"VÄSTGÖTASPETS"]
[null,"SPITZ FINLANDAIS",49,"SUOMENPYSTYKORVA - FINNISH SPITZ"]
[null,"SPITZ JAPONAIS",262,"NIHON SUPITTSU"]
[null,"STAFFORDSHIRE BULL TERRIER",76,"STAFFORDSHIRE BULL TERRIER"]
[null,"STAFFORDSHIRE TERRIER AMERICAIN",286,"AMERICAN STAFFORDSHIRE TERRIER"]
[null,"SUSSEX SPANIEL",127,"SUSSEX SPANIEL"]
[null,"TCHOUVATCH SLOVAQUE",142,"SLOVENSKY CUVAC"]
[null,"TECKEL",148,"DACHSHUND - TECKEL"]
[null,"TERRE NEUVE",50,"NEWFOUNDLAND"]
[null,"TERRIER AUSTRALIEN",8,"AUSTRALIAN TERRIER"]
[null,"TERRIER AUSTRALIEN A POIL SOYEUX",236,"AUSTRALIAN SILKY TERRIER"]
[null,"TERRIER BRESILIEN",341,"TERRIER BRASILEIRO"]
[null,"TERRIER D'AGREMENT ANGLAIS NOIR ET FEU",13,"ENGLISH TOY TERRIER BLACK AND TAN"]
[null,"TERRIER DE BOSTON",140,"BOSTON TERRIER"]
[null,"TERRIER DE CHASSE ALLEMAND",103,"DEUTSCHER JAGDTERRIER"]
[null,"TERRIER DU REVEREND RUSSELL",339,"PARSON RUSSELL TERRIER"]
[null,"TERRIER ECOSSAIS",73,"SCOTTISH TERRIER"]
[null,"TERRIER IRLANDAIS",139,"IRISH TERRIER"]
[null,"TERRIER IRLANDAIS A POIL DOUX",40,"IRISH SOFT COATED WHEATEN TERRIER"]
[null,"TERRIER IRLANDAIS GLEN OF IMAAL",302,"IRISH GLEN OF IMAAL TERRIER"]
[null,"TERRIER JACK RUSSELL",345,"JACK RUSSELL TERRIER"]
[null,"TERRIER JAPONAIS",259,"NIHON TERIA"]
[null,"TERRIER KERRY BLUE",3,"KERRY BLUE TERRIER"]
[null,"TERRIER NOIR RUSSE",327,"TCHIORNY TERRIER"]
[null,"TERRIER TCHEQUE",246,"CESKY TERRIER"]
[null,"TERRIER TIBETAIN",209,"TIBETAN TERRIER"]
[null,"TOSA",260,"TOSA"]
[null,"VOLPINO ITALIEN",195,"VOLPINO ITALIANO"]
[null,"WELSH CORGI CARDIGAN",38,"WELSH CORGI CARDIGAN"]
[null,"WELSH CORGI PEMBROKE",39,"WELSH CORGI PEMBROKE"]
[null,"WELSH SPRINGER SPANIEL",126,"WELSH SPRINGER SPANIEL"]
[null,"WELSH TERRIER",78,"WELSH TERRIER"]
[null,"WEST HIGHLAND WHITE TERRIER",85,"WEST HIGHLAND WHITE TERRIER"]
[null,"WHIPPET",162,"WHIPPET"]
[null,"YORKSHIRE TERRIER",86,"YORKSHIRE TERRIER"]

{"sheet":"00","index":6,"n_rows":41,"n_cols":37,"rows_kept":41,"cut":false,"hidden":true,"merged":[[40,2,40,9],[15,1,17,7],[18,1,20,7],[21,1,23,7],[24,1,26,7],[27,1,29,7],[30,1,32,7],[33,1,35,7],[36,1,36,7],[15,8,17,8],[18,8,20,8],[18,9,20,9],[21,8,23,8],[21,9,23,9],[24,8,26,8],[24,9,26,9],[2,1,2,8],[14,1,14,7],[37,3,37,9],[38,5,38,8],[13,0,13,9],[30,8,32,8],[30,9,32,9],[33,8,35,8],[33,9,35,9],[33,0,35,0],[15,0,17,0],[18,0,20,0],[21,0,23,0],[24,0,26,0],[27,0,29,0],[30,0,32,0],[38,1,38,2],[38,3,38,4],[6,3,6,4],[27,8,29,8],[27,9,29,9],[11,1,12,1],[37,1,37,2],[15,9,17,9]]}
[null,null,null,null,null,null,"IHT CS",{"$f":"'Fiche organisateur N1'!$E$25","v":3}]
[]
[]
[]
[null,"IHT CS "]
["Organisation",{"$f":"'01'!B6","v":0}]
["Ville",{"$f":"'01'!B7","v":0},"Date : ",{"$f":"'Fiche organisateur N2'!$H$8","v":0}]
["Contact : ",{"$f":"'01'!B8","v":0}]
[]
[null,0,null,null,0]
[null,"FEUILLE DE PREPARATION",null,null,0]
[null,"AVEC LE JUGE",null,null,0]
[null,null,null,null,0]
[]
["EXERCICES ","OBSERVATIONS",null,null,null,null,null,null,"MOINS","MAX"]
["OUTRUN/RECHERCHE",null,null,null,null,null,null,null,null,20]
[]
[]
["LIFT/ PRISE DE POSSESSION",null,null,null,null,null,null,null,null,10]
[]
[]
["FETCH/ AMENEE",null,null,null,null,null,null,null,null,20]
[]
[null,null,null,null,null,null,null,null,null,null,null,null,null,null,null,null,null,null,null,null,1,2,3]
[{"$f":"IF(H1=1,U25,IF(H1=2,V25,W25))","v":"DRIVE/ TRIANGLE"},null,null,null,null,null,null,null,null,{"$f":"IF(H1=1,AF25,IF(H1=2,AG25,AH25))","v":30},null,null,null,null,null,null,null,null,null,null,"DRIVE/POUSSE","DRIVE/ TRIANGLE","DRIVE/ TRIANGLE",null,null,null,null,null,null,null,null,15,30,30]
[null,null,null,null,null,null,null,null,null,null,null,null,null,null,null,null,null,null,null,null,"DRIVE/ TOGETHER","SHEDDING/ SEPARATION","SHEDDING/ SEPARATION",null,null,null,null,null,null,null,null,15,10,5]
[null,null,null,null,null,null,null,null,null,null,null,null,null,null,null,null,null,null,null,null,"SHEDDINGRACE/ COULOIR DE TRI ","PENNING/LOADING TRAILER -ENTREE PARC/BETALLIERE","PENNING/ENTREE EN PARC ",null,null,null,null,null,null,null,null,10,10,10]
[{"$f":"IF(H1=1,U26,IF(H1=2,V26,W26))","v":"SHEDDING/ SEPARATION"},null,null,null,null,null,null,null,null,{"$f":"IF(H1=1,AF26,IF(H1=2,AG26,AH26))","v":5},null,null,null,null,null,null,null,null,null,null,"PENNING/ENTREE EN PARC",null,"SINGLE/CROSS MALTESE",null,null,null,null,null,null,null,null,10,null,5]
[]
[]
[{"$f":"IF(H1=1,U27,IF(H1=2,V27,W27))","v":"PENNING/ENTREE EN PARC "},null,null,null,null,null,null,null,null,{"$f":"IF(H1=1,AF27,IF(H1=2,AG27,AH27))","v":10},null,null,null,null,null,null,null,null,null,null,null,null,null,null,{"$f":"X31*89.999/100","v":0},{"$f":"X31*79.999/100","v":0},{"$f":"X31*69.999/100","v":0},{"$f":"X31*59.999/100","v":0},0.1,null,null,100,{"$f":"AF31*89.999/100","v":89.998999999999995},{"$f":"AF31*79.999/100","v":79.998999999999995},{"$f":"AF31*69.999/100","v":69.998999999999995},{"$f":"AF31*59.999/100","v":59.999000000000002},0.1]
[]
[]
[{"$f":"IF(H1=1,U28,IF(H1=2,V28,W28))","v":"SINGLE/CROSS MALTESE"},null,null,null,null,null,null,null,null,{"$f":"IF(H1=1,AF28,IF(H1=2,AG28,AH28))","v":5}]
[]
[]
["POINTS TOTAL",null,null,null,null,null,null,null,{"$f":"SUM(I16:I36)","v":0},{"$f":"SUM(J16:J36)","v":100}]
[null,null,null,"CLASSEMENT"]
["GENERAL POINTS",{"$f":"IF((I37)=0,\"-\",J37-I37)","v":"-"},null,"EVALUATION",null,{"$f":"IF(B39=\"-\",\"-\",IF(B39>AG31,\"EXCELLENT\",IF(B39>AH31,\"TRES BON\",IF(B39>AI31,\"BON\",IF(B39>AJ31,\"Sans qualificatif\",IF(B39>0.1,\"Sans qualificatif \",\"éliminé \"))))))","v":"-"},null,null,null,{"$f":"'Rapport de Concours'!$D$38","v":0}]
["Observations :  "]
[{"$f":"'Rapport de Concours'!H44","v":"juge"},{"$f":"'Fiche organisateur N1'!$E$27","v":0},{"$f":"'Rapport de Concours'!K44","v":"Signature :"}]

{"sheet":"01","index":7,"n_rows":41,"n_cols":37,"rows_kept":41,"cut":false,"hidden":false,"merged":[[38,5,38,8],[39,1,39,10],[40,2,40,10],[12,0,12,10],[30,0,32,0],[33,0,35,0],[38,1,38,2],[38,3,38,4],[37,1,37,2],[30,1,32,8],[30,9,32,9],[30,10,32,10],[33,1,35,8],[33,9,35,9],[33,10,35,10],[36,1,36,8],[37,3,37,10],[27,1,29,8],[27,9,29,9],[27,10,29,10],[24,0,26,0],[27,0,29,0],[24,1,26,8],[24,9,26,9],[24,10,26,10],[13,0,13,10],[15,0,17,0],[18,0,20,0],[21,0,23,0],[15,1,17,8],[15,9,17,9],[15,10,17,10],[18,1,20,8],[18,9,20,9],[18,10,20,10],[14,1,14,8],[21,1,23,8],[21,9,23,9],[21,10,23,10],[4,7,4,9],[6,2,6,3],[6,4,6,10],[7,4,7,10],[8,2,8,3],[8,4,8,10],[9,2,9,3],[9,4,9,10],[10,2,10,3],[10,4,10,10],[11,2,11,3],[11,4,11,10]]}
[null,null,null,null,null,null,null,"IHT CS",{"$f":"'Fiche organisateur N1'!$E$32","v":3}]
[]
[null,"IHT COLLECTING STYLE"]
[]
[]
["ORGANISATION : ",{"$f":"'Fiche organisateur N1'!E15","v":0}]
["Lieu:  ",{"$f":"'Fiche organisateur N1'!E16","v":0},"Date : ",null,{"$f":"'Fiche organisateur N2'!$H$8","v":0}]
["Contact : ",{"$f":"'Fiche organisateur N1'!E18","v":0}]
["Propriétaire",{"$f":"'Fiche organisateur N2'!$C$17","v":0},"Races + Sexe",null,{"$f":"'Fiche organisateur N2'!$G$17","v":0}]
["Conducteur",{"$f":"'Fiche organisateur N2'!$D$17","v":0}]
["Nom chien",{"$f":"'Fiche organisateur N2'!$E$17","v":0}]
["Affixe",{"$f":"'Fiche organisateur N2'!$F$17","v":0},"Identifiant",null,{"$f":"'Fiche organisateur N2'!$I$17","v":0}]
[]
[]
["EXERCICES ","OBSERVATIONS",null,null,null,null,null,null,null,"MOINS","MAX"]
["OUTRUN/RECHERCHE",null,null,null,null,null,null,null,null,null,20]
[]
[]
["LIFT/ PRISE DE POSSESSION",null,null,null,null,null,null,null,null,null,10]
[]
[]
["FETCH/ AMENEE",null,null,null,null,null,null,null,null,null,20]
[]
[null,null,null,null,null,null,null,null,null,null,null,null,null,null,null,null,null,null,null,null,1,2,3]
[{"$f":"IF(I1=1,U25,IF(I1=2,V25,W25))","v":"DRIVE/ TRIANGLE"},null,null,null,null,null,null,null,null,null,{"$f":"IF(I1=1,AF25,IF(I1=2,AG25,AH25))","v":30},null,null,null,null,null,null,null,null,null,"DRIVE/POUSSE","DRIVE/ TRIANGLE","DRIVE/ TRIANGLE",null,null,null,null,null,null,null,null,15,30,30]
[null,null,null,null,null,null,null,null,null,null,null,null,null,null,null,null,null,null,null,null,"DRIVE/ TOGETHER","SHEDDING/ SEPARATION","SHEDDING/ SEPARATION",null,null,null,null,null,null,null,null,15,10,5]
[null,null,null,null,null,null,null,null,null,null,null,null,null,null,null,null,null,null,null,null,"SHEDDINGRACE/ COULOIR DE TRI ","PENNING/LOADING TRAILER -ENTREE PARC/BETALLIERE","PENNING/ENTREE EN PARC ",null,null,null,null,null,null,null,null,10,10,10]
[{"$f":"IF(I1=1,U26,IF(I1=2,V26,W26))","v":"SHEDDING/ SEPARATION"},null,null,null,null,null,null,null,null,null,{"$f":"IF(I1=1,AF26,IF(I1=2,AG26,AH26))","v":5},null,null,null,null,null,null,null,null,null,"PENNING/ENTREE EN PARC",null,"SINGLE/CROSS MALTESE",null,null,null,null,null,null,null,null,10,null,5]
[]
[]
[{"$f":"IF(I1=1,U27,IF(I1=2,V27,W27))","v":"PENNING/ENTREE EN PARC "},null,null,null,null,null,null,null,null,null,{"$f":"IF(I1=1,AF27,IF(I1=2,AG27,AH27))","v":10},null,null,null,null,null,null,null,null,null,null,null,null,null,{"$f":"X31*89.999/100","v":0},{"$f":"X31*79.999/100","v":0},{"$f":"X31*69.999/100","v":0},{"$f":"X31*59.999/100","v":0},0.1,null,null,100,{"$f":"AF31*89.999/100","v":89.998999999999995},{"$f":"AF31*79.999/100","v":79.998999999999995},{"$f":"AF31*69.999/100","v":69.998999999999995},{"$f":"AF31*59.999/100","v":59.999000000000002},0.1]
[]
[]
[{"$f":"IF(I1=1,U28,IF(I1=2,V28,W28))","v":"SINGLE/CROSS MALTESE"},null,null,null,null,null,null,null,null,null,{"$f":"IF(I1=1,AF28,IF(I1=2,AG28,AH28))","v":5}]
[]
[]
["POINTS TOTAL",null,null,null,null,null,null,null,null,{"$f":"SUM(J16:J36)","v":0},{"$f":"SUM(K16:K36)","v":100}]
[null,null,null,"CLASSEMENT"]
["GENERAL POINTS",{"$f":"IF((J37)=0,\"-\",K37-J37)","v":"-"},null,"EVALUATION",null,{"$f":"IF(B39=\"-\",\"-\",IF(B39>AG31,\"EXCELLENT\",IF(B39>AH31,\"TRES BON\",IF(B39>AI31,\"BON\",IF(B39>AJ31,\"Sans qualificatif\",IF(B39>0.1,\"Sans qualificatif \",\"éliminé \"))))))","v":"-"},null,null,null,{"$f":"'Fiche organisateur N2'!$N$17","v":"X"},{"$f":"'Rapport de Concours'!$D$38","v":0}]
["Observations :  "]
[{"$f":"'Rapport de Concours'!H44","v":"juge"},{"$f":"'Fiche organisateur N1'!$E$27","v":0},{"$f":"'Rapport de Concours'!K44","v":"Signature :"}]

{"sheet":"02","index":8,"n_rows":41,"n_cols":38,"rows_kept":41,"cut":false,"hidden":false,"merged":[[40,2,40,10],[7,4,7,10],[8,4,8,10],[9,4,9,10],[10,4,10,10],[11,4,11,10],[12,0,12,10],[13,0,13,10],[14,1,14,8],[15,1,17,8],[15,10,17,10],[15,9,17,9],[18,9,20,9],[21,9,23,9],[21,10,23,10],[21,1,23,8],[24,1,26,8],[38,5,38,8],[38,1,38,2],[39,1,39,10],[38,3,38,4],[36,1,36,8],[37,1,37,2],[30,9,32,9],[33,9,35,9],[30,1,32,8],[33,1,35,8],[37,3,37,10],[15,0,17,0],[18,0,20,0],[21,0,23,0],[24,0,26,0],[27,0,29,0],[30,0,32,0],[30,10,32,10],[33,0,35,0],[33,10,35,10],[24,10,26,10],[24,9,26,9],[27,10,29,10],[27,9,29,9],[27,1,29,8],[4,7,4,9],[6,4,6,10],[18,10,20,10],[6,2,6,3],[8,2,8,3],[9,2,9,3],[10,2,10,3],[11,2,11,3],[18,1,20,8]]}
[null,null,null,null,null,null,null,"IHT CS",{"$f":"'Fiche organisateur N1'!$E$32","v":3}]
[]
[null,"IHT COLLECTING STYLE"]
[]
[]
["ORGANISATION : ",{"$f":"'Fiche organisateur N1'!E15","v":0}]
["Lieu:  ",{"$f":"'Fiche organisateur N1'!E16","v":0},"Date : ",null,{"$f":"'Fiche organisateur N2'!$H$8","v":0}]
["Contact : ",{"$f":"'Fiche organisateur N1'!E18","v":0}]
["Propriétaire",{"$f":"'Fiche organisateur N2'!$C$18","v":0},"Races + Sexe",null,{"$f":"'Fiche organisateur N2'!$G$18","v":0}]
["Conducteur",{"$f":"'Fiche organisateur N2'!$D$18","v":0}]
["Nom chien",{"$f":"'Fiche organisateur N2'!$E$18","v":0}]
["Affixe",{"$f":"'Fiche organisateur N2'!$F$18","v":0},"Identifiant",null,{"$f":"'Fiche organisateur N2'!$I$18","v":0}]
[]
[]
["EXERCICES ","OBSERVATIONS",null,null,null,null,null,null,null,"MOINS","MAX"]
["OUTRUN/RECHERCHE",null,null,null,null,null,null,null,null,null,20]
[]
[]
["LIFT/ PRISE DE POSSESSION",null,null,null,null,null,null,null,null,null,10]
[]
[]
["FETCH/ AMENEE",null,null,null,null,null,null,null,null,null,20]
[]
[null,null,null,null,null,null,null,null,null,null,null,null,null,null,null,null,null,null,null,null,1,2,3]
[{"$f":"IF(I1=1,U25,IF(I1=2,V25,W25))","v":"DRIVE/ TRIANGLE"},null,null,null,null,null,null,null,null,null,{"$f":"IF(I1=1,AF25,IF(I1=2,AG25,AH25))","v":30},null,null,null,null,null,null,null,null,null,"DRIVE/POUSSE","DRIVE/ TRIANGLE","DRIVE/ TRIANGLE",null,null,null,null,null,null,null,null,15,30,30]
[null,null,null,null,null,null,null,null,null,null,null,null,null,null,null,null,null,null,null,null,"DRIVE/ TOGETHER","SHEDDING/ SEPARATION","SHEDDING/ SEPARATION",null,null,null,null,null,null,null,null,15,10,5]
[null,null,null,null,null,null,null,null,null,null,null,null,null,null,null,null,null,null,null,null,"SHEDDINGRACE/ COULOIR DE TRI ","PENNING/LOADING TRAILER -ENTREE PARC/BETALLIERE","PENNING/ENTREE EN PARC ",null,null,null,null,null,null,null,null,10,10,10]
[{"$f":"IF(I1=1,U26,IF(I1=2,V26,W26))","v":"SHEDDING/ SEPARATION"},null,null,null,null,null,null,null,null,null,{"$f":"IF(I1=1,AF26,IF(I1=2,AG26,AH26))","v":5},null,null,null,null,null,null,null,null,null,"PENNING/ENTREE EN PARC",null,"SINGLE/CROSS MALTESE",null,null,null,null,null,null,null,null,10,null,5]
[]
[]
[{"$f":"IF(I1=1,U27,IF(I1=2,V27,W27))","v":"PENNING/ENTREE EN PARC "},null,null,null,null,null,null,null,null,null,{"$f":"IF(I1=1,AF27,IF(I1=2,AG27,AH27))","v":10},null,null,null,null,null,null,null,null,null,null,null,100,{"$f":"W31*89.999/100","v":89.998999999999995},{"$f":"W31*79.999/100","v":79.998999999999995},{"$f":"W31*69.999/100","v":69.998999999999995},{"$f":"W31*59.999/100","v":59.999000000000002},0.1,null,null,100,{"$f":"AE31*89.999/100","v":89.998999999999995},{"$f":"AE31*79.999/100","v":79.998999999999995},{"$f":"AE31*69.999/100","v":69.998999999999995},{"$f":"AE31*59.999/100","v":59.999000000000002},0.1,null,0.1]
[]
[]
[{"$f":"IF(I1=1,U28,IF(I1=2,V28,W28))","v":"SINGLE/CROSS MALTESE"},null,null,null,null,null,null,null,null,null,{"$f":"IF(I1=1,AF28,IF(I1=2,AG28,AH28))","v":5}]
[]
[]
["POINTS TOTAL",null,null,null,null,null,null,null,null,{"$f":"SUM(J16:J36)","v":0},{"$f":"SUM(K16:K36)","v":100}]
[null,null,null,"CLASSEMENT"]
["GENERAL POINTS",{"$f":"IF((J37)=0,\"-\",K37-J37)","v":"-"},null,"EVALUATION",null,{"$f":"IF(B39=\"-\",\"-\",IF(B39>AG31,\"EXCELLENT\",IF(B39>AH31,\"TRES BON\",IF(B39>AI31,\"BON\",IF(B39>AJ31,\"Sans qualificatif\",IF(B39>0.1,\"Sans qualificatif \",\"éliminé \"))))))","v":"-"},null,null,null,{"$f":"'Fiche organisateur N2'!$N$18","v":"X"},{"$f":"'Rapport de Concours'!$D$38","v":0}]
["Observations :  "]
[{"$f":"'Rapport de Concours'!H44","v":"juge"},{"$f":"'Fiche organisateur N1'!$E$27","v":0},{"$f":"'Rapport de Concours'!K44","v":"Signature :"}]

{"sheet":"03","index":9,"n_rows":41,"n_cols":36,"rows_kept":41,"cut":false,"hidden":false,"merged":[[4,7,4,9],[6,4,6,10],[7,4,7,10],[8,4,8,10],[9,4,9,10],[14,1,14,8],[15,1,17,8],[18,1,20,8],[21,1,23,8],[10,4,10,10],[11,4,11,10],[12,0,12,10],[13,0,13,10],[15,9,17,9],[15,0,17,0],[15,10,17,10],[18,0,20,0],[21,0,23,0],[24,0,26,0],[27,0,29,0],[30,0,32,0],[24,9,26,9],[33,0,35,0],[27,9,29,9],[24,1,26,8],[33,9,35,9],[33,1,35,8],[40,2,40,10],[33,10,35,10],[37,3,37,10],[30,9,32,9],[30,1,32,8],[30,10,32,10],[36,1,36,8],[37,1,37,2],[38,1,38,2],[38,3,38,4],[38,5,38,8],[39,1,39,10],[24,10,26,10],[27,1,29,8],[27,10,29,10],[21,10,23,10],[18,10,20,10],[18,9,20,9],[21,9,23,9],[6,2,6,3],[8,2,8,3],[9,2,9,3],[10,2,10,3],[11,2,11,3]]}
[null,null,null,null,null,null,null,"IHT CS",{"$f":"'Fiche organisateur N1'!$E$32","v":3}]
[]
[null,"IHT COLLECTING STYLE"]
[]
[]
["ORGANISATION : ",{"$f":"'Fiche organisateur N1'!E15","v":0}]
["Lieu:  ",{"$f":"'Fiche organisateur N1'!E16","v":0},"Date : ",null,{"$f":"'Fiche organisateur N2'!$H$8","v":0}]
["Contact : ",{"$f":"'Fiche organisateur N1'!E18","v":0}]
["Propriétaire",{"$f":"'Fiche organisateur N2'!$C$1","v":0},"Races + Sexe",null,{"$f":"'Fiche organisateur N2'!$G$19","v":0}]
["Conducteur",{"$f":"'Fiche organisateur N2'!$D$19","v":0}]
["Nom chien",{"$f":"'Fiche organisateur N2'!$E$19","v":0}]
["Affixe",{"$f":"'Fiche organisateur N2'!$F$19","v":0},"Identifiant",null,{"$f":"'Fiche organisateur N2'!$I$19","v":0}]
[]
[]
["EXERCICES ","OBSERVATIONS",null,null,null,null,null,null,null,"MOINS","MAX"]
["OUTRUN/RECHERCHE",null,null,null,null,null,null,null,null,null,20]
[]
[]
["LIFT/ PRISE DE POSSESSION",null,null,null,null,null,null,null,null,null,10]
[]
[]
["FETCH/ AMENEE",null,null,null,null,null,null,null,null,null,20]
[]
[null,null,null,null,null,null,null,null,null,null,null,null,null,null,null,null,null,null,null,null,1,2,3]
[{"$f":"IF(I1=1,U25,IF(I1=2,V25,W25))","v":"DRIVE/ TRIANGLE"},null,null,null,null,null,null,null,null,null,{"$f":"IF(I1=1,AF25,IF(I1=2,AG25,AH25))","v":30},null,null,null,null,null,null,null,null,null,"DRIVE/POUSSE","DRIVE/ TRIANGLE","DRIVE/ TRIANGLE",null,null,null,null,null,null,null,null,15,30,30]
[null,null,null,null,null,null,null,null,null,null,null,null,null,null,null,null,null,null,null,null,"DRIVE/ TOGETHER","SHEDDING/ SEPARATION","SHEDDING/ SEPARATION",null,null,null,null,null,null,null,null,15,10,5]
[null,null,null,null,null,null,null,null,null,null,null,null,null,null,null,null,null,null,null,null,"SHEDDINGRACE/ COULOIR DE TRI ","PENNING/LOADING TRAILER -ENTREE PARC/BETALLIERE","PENNING/ENTREE EN PARC ",null,null,null,null,null,null,null,null,10,10,10]
[{"$f":"IF(I1=1,U26,IF(I1=2,V26,W26))","v":"SHEDDING/ SEPARATION"},null,null,null,null,null,null,null,null,null,{"$f":"IF(I1=1,AF26,IF(I1=2,AG26,AH26))","v":5},null,null,null,null,null,null,null,null,null,"PENNING/ENTREE EN PARC",null,"SINGLE/CROSS MALTESE",null,null,null,null,null,null,null,null,10,null,5]
[]
[]
[{"$f":"IF(I1=1,U27,IF(I1=2,V27,W27))","v":"PENNING/ENTREE EN PARC "},null,null,null,null,null,null,null,null,null,{"$f":"IF(I1=1,AF27,IF(I1=2,AG27,AH27))","v":10},null,null,null,null,null,null,null,null,null,null,null,null,{"$f":"W31*89.999/100","v":0},{"$f":"W31*79.999/100","v":0},{"$f":"W31*69.999/100","v":0},{"$f":"W31*59.999/100","v":0},0.1,null,null,100,{"$f":"AE31*89.999/100","v":89.998999999999995},{"$f":"AE31*79.999/100","v":79.998999999999995},{"$f":"AE31*69.999/100","v":69.998999999999995},{"$f":"AE31*59.999/100","v":59.999000000000002},0.1]
[]
[]
[{"$f":"IF(I1=1,U28,IF(I1=2,V28,W28))","v":"SINGLE/CROSS MALTESE"},null,null,null,null,null,null,null,null,null,{"$f":"IF(I1=1,AF28,IF(I1=2,AG28,AH28))","v":5}]
[]
[]
["POINTS TOTAL",null,null,null,null,null,null,null,null,{"$f":"SUM(J16:J36)","v":0},{"$f":"SUM(K16:K36)","v":100}]
[null,null,null,"CLASSEMENT"]
["GENERAL POINTS",{"$f":"IF((J37)=0,\"-\",K37-J37)","v":"-"},null,"EVALUATION",null,{"$f":"IF(B39=\"-\",\"-\",IF(B39>AG31,\"EXCELLENT\",IF(B39>AH31,\"TRES BON\",IF(B39>AI31,\"BON\",IF(B39>AJ31,\"Sans qualificatif\",IF(B39>0.1,\"Sans qualificatif \",\"éliminé \"))))))","v":"-"},null,null,null,{"$f":"'Fiche organisateur N2'!$N$19","v":"X"},{"$f":"'Rapport de Concours'!$D$38","v":0}]
["Observations :  "]
[{"$f":"'Rapport de Concours'!H44","v":"juge"},{"$f":"'Fiche organisateur N1'!$E$27","v":0},{"$f":"'Rapport de Concours'!K44","v":"Signature :"}]

{"sheet":"04","index":10,"n_rows":41,"n_cols":37,"rows_kept":41,"cut":false,"hidden":false,"merged":[[38,5,38,8],[39,1,39,10],[40,2,40,10],[12,0,12,10],[13,0,13,10],[14,1,14,8],[15,1,17,8],[18,1,20,8],[21,1,23,8],[24,1,26,8],[27,1,29,8],[30,1,32,8],[15,9,17,9],[18,9,20,9],[21,9,23,9],[37,1,37,2],[30,10,32,10],[21,0,23,0],[21,10,23,10],[24,0,26,0],[24,10,26,10],[27,0,29,0],[27,10,29,10],[15,0,17,0],[15,10,17,10],[18,0,20,0],[18,10,20,10],[38,1,38,2],[38,3,38,4],[33,9,35,9],[33,1,35,8],[37,3,37,10],[24,9,26,9],[27,9,29,9],[33,0,35,0],[33,10,35,10],[36,1,36,8],[30,9,32,9],[30,0,32,0],[11,2,11,3],[11,4,11,10],[6,2,6,3],[6,4,6,10],[7,4,7,10],[8,2,8,3],[8,4,8,10],[4,7,4,9],[9,2,9,3],[9,4,9,10],[10,2,10,3],[10,4,10,10]]}
[null,null,null,null,null,null,null,"IHT CS",{"$f":"'Fiche organisateur N1'!$E$32","v":3}]
[]
[null,"IHT COLLECTING STYLE"]
[]
[]
["ORGANISATION : ",{"$f":"'Fiche organisateur N1'!E15","v":0}]
["Lieu:  ",{"$f":"'Fiche organisateur N1'!E16","v":0},"Date : ",null,{"$f":"'Fiche organisateur N2'!$H$8","v":0}]
["Contact : ",{"$f":"'Fiche organisateur N1'!E18","v":0}]
["Propriétaire",{"$f":"'Fiche organisateur N2'!$C$20","v":0},"Races + Sexe",null,{"$f":"'Fiche organisateur N2'!$G$20","v":0}]
["Conducteur",{"$f":"'Fiche organisateur N2'!$D$20","v":0}]
["Nom chien",{"$f":"'Fiche organisateur N2'!$E$20","v":0}]
["Affixe",{"$f":"'Fiche organisateur N2'!$F$20","v":0},"Identifiant",null,{"$f":"'Fiche organisateur N2'!$I$20","v":0}]
[]
[]
["EXERCICES ","OBSERVATIONS",null,null,null,null,null,null,null,"MOINS","MAX"]
["OUTRUN/RECHERCHE",null,null,null,null,null,null,null,null,null,20]
[]
[]
["LIFT/ PRISE DE POSSESSION",null,null,null,null,null,null,null,null,null,10]
[]
[]
["FETCH/ AMENEE",null,null,null,null,null,null,null,null,null,20]
[]
[null,null,null,null,null,null,null,null,null,null,null,null,null,null,null,null,null,null,null,null,1,2,3]
[{"$f":"IF(I1=1,U25,IF(I1=2,V25,W25))","v":"DRIVE/ TRIANGLE"},null,null,null,null,null,null,null,null,null,{"$f":"IF(I1=1,AF25,IF(I1=2,AG25,AH25))","v":30},null,null,null,null,null,null,null,null,null,"DRIVE/POUSSE","DRIVE/ TRIANGLE","DRIVE/ TRIANGLE",null,null,null,null,null,null,null,null,15,30,30]
[null,null,null,null,null,null,null,null,null,null,null,null,null,null,null,null,null,null,null,null,"DRIVE/ TOGETHER","SHEDDING/ SEPARATION","SHEDDING/ SEPARATION",null,null,null,null,null,null,null,null,15,10,5]
[null,null,null,null,null,null,null,null,null,null,null,null,null,null,null,null,null,null,null,null,"SHEDDINGRACE/ COULOIR DE TRI ","PENNING/LOADING TRAILER -ENTREE PARC/BETALLIERE","PENNING/ENTREE EN PARC ",null,null,null,null,null,null,null,null,10,10,10]
[{"$f":"IF(I1=1,U26,IF(I1=2,V26,W26))","v":"SHEDDING/ SEPARATION"},null,null,null,null,null,null,null,null,null,{"$f":"IF(I1=1,AF26,IF(I1=2,AG26,AH26))","v":5},null,null,null,null,null,null,null,null,null,"PENNING/ENTREE EN PARC",null,"SINGLE/CROSS MALTESE",null,null,null,null,null,null,null,null,10,null,5]
[]
[]
[{"$f":"IF(I1=1,U27,IF(I1=2,V27,W27))","v":"PENNING/ENTREE EN PARC "},null,null,null,null,null,null,null,null,null,{"$f":"IF(I1=1,AF27,IF(I1=2,AG27,AH27))","v":10},null,null,null,null,null,null,null,null,null,null,null,null,100,{"$f":"X31*89.999/100","v":89.998999999999995},{"$f":"X31*79.999/100","v":79.998999999999995},{"$f":"X31*69.999/100","v":69.998999999999995},{"$f":"X31*59.999/100","v":59.999000000000002},0.1,null,null,100,{"$f":"AF31*89.999/100","v":89.998999999999995},{"$f":"AF31*79.999/100","v":79.998999999999995},{"$f":"AF31*69.999/100","v":69.998999999999995},{"$f":"AF31*59.999/100","v":59.999000000000002},0.1]
[]
[]
[{"$f":"IF(I1=1,U28,IF(I1=2,V28,W28))","v":"SINGLE/CROSS MALTESE"},null,null,null,null,null,null,null,null,null,{"$f":"IF(I1=1,AF28,IF(I1=2,AG28,AH28))","v":5}]
[]
[]
["POINTS TOTAL",null,null,null,null,null,null,null,null,{"$f":"SUM(J16:J36)","v":0},{"$f":"SUM(K16:K36)","v":100}]
[null,null,null,"CLASSEMENT"]
["GENERAL POINTS",{"$f":"IF((J37)=0,\"-\",K37-J37)","v":"-"},null,"EVALUATION",null,{"$f":"IF(B39=\"-\",\"-\",IF(B39>AG31,\"EXCELLENT\",IF(B39>AH31,\"TRES BON\",IF(B39>AI31,\"BON\",IF(B39>AJ31,\"Sans qualificatif\",IF(B39>0.1,\"Sans qualificatif \",\"éliminé \"))))))","v":"-"},null,null,null,{"$f":"'Fiche organisateur N2'!$N$20","v":"X"},{"$f":"'Rapport de Concours'!$D$38","v":0}]
["Observations :  "]
[{"$f":"'Rapport de Concours'!H44","v":"juge"},{"$f":"'Fiche organisateur N1'!$E$27","v":0},{"$f":"'Rapport de Concours'!K44","v":"Signature :"}]

{"sheet":"05","index":11,"n_rows":41,"n_cols":37,"rows_kept":41,"cut":false,"hidden":false,"merged":[[39,1,39,10],[12,0,12,10],[13,0,13,10],[14,1,14,8],[15,1,17,8],[18,1,20,8],[15,0,17,0],[15,10,17,10],[18,0,20,0],[18,10,20,10],[21,1,23,8],[24,1,26,8],[27,1,29,8],[30,1,32,8],[15,9,17,9],[18,9,20,9],[21,9,23,9],[33,0,35,0],[33,10,35,10],[36,1,36,8],[37,1,37,2],[24,10,26,10],[27,0,29,0],[27,10,29,10],[30,0,32,0],[30,10,32,10],[24,9,26,9],[27,9,29,9],[30,9,32,9],[38,1,38,2],[38,3,38,4],[33,9,35,9],[33,1,35,8],[37,3,37,10],[38,5,38,8],[4,7,4,9],[21,0,23,0],[21,10,23,10],[40,2,40,10],[6,2,6,3],[6,4,6,10],[7,4,7,10],[8,2,8,3],[8,4,8,10],[9,2,9,3],[9,4,9,10],[10,2,10,3],[10,4,10,10],[11,2,11,3],[11,4,11,10],[24,0,26,0]]}
[null,null,null,null,null,null,null,"IHT CS",{"$f":"'Fiche organisateur N1'!$E$32","v":3}]
[]
[null,"IHT COLLECTING STYLE"]
[]
[]
["ORGANISATION : ",{"$f":"'Fiche organisateur N1'!E15","v":0}]
["Lieu:  ",{"$f":"'Fiche organisateur N1'!E16","v":0},"Date : ",null,{"$f":"'Fiche organisateur N2'!$H$8","v":0}]
["Contact : ",{"$f":"'Fiche organisateur N1'!E18","v":0}]
["Propriétaire",{"$f":"'Fiche organisateur N2'!$C$21","v":0},"Races + Sexe",null,{"$f":"'Fiche organisateur N2'!$G$21","v":0}]
["Conducteur",{"$f":"'Fiche organisateur N2'!$D$21","v":0}]
["Nom chien",{"$f":"'Fiche organisateur N2'!$E$21","v":0}]
["Affixe",{"$f":"'Fiche organisateur N2'!$F$21","v":0},"Identifiant",null,{"$f":"'Fiche organisateur N2'!$I$21","v":0}]
[]
[]
["EXERCICES ","OBSERVATIONS",null,null,null,null,null,null,null,"MOINS","MAX"]
["OUTRUN/RECHERCHE",null,null,null,null,null,null,null,null,null,20]
[]
[]
["LIFT/ PRISE DE POSSESSION",null,null,null,null,null,null,null,null,null,10]
[]
[]
["FETCH/ AMENEE",null,null,null,null,null,null,null,null,null,20]
[]
[null,null,null,null,null,null,null,null,null,null,null,null,null,null,null,null,null,null,null,null,1,2,3]
[{"$f":"IF(I1=1,U25,IF(I1=2,V25,W25))","v":"DRIVE/ TRIANGLE"},null,null,null,null,null,null,null,null,null,{"$f":"IF(I1=1,AF25,IF(I1=2,AG25,AH25))","v":30},null,null,null,null,null,null,null,null,null,"DRIVE/POUSSE","DRIVE/ TRIANGLE","DRIVE/ TRIANGLE",null,null,null,null,null,null,null,null,15,30,30]
[null,null,null,null,null,null,null,null,null,null,null,null,null,null,null,null,null,null,null,null,"DRIVE/ TOGETHER","SHEDDING/ SEPARATION","SHEDDING/ SEPARATION",null,null,null,null,null,null,null,null,15,10,5]
[null,null,null,null,null,null,null,null,null,null,null,null,null,null,null,null,null,null,null,null,"SHEDDINGRACE/ COULOIR DE TRI ","PENNING/LOADING TRAILER -ENTREE PARC/BETALLIERE","PENNING/ENTREE EN PARC ",null,null,null,null,null,null,null,null,10,10,10]
[{"$f":"IF(I1=1,U26,IF(I1=2,V26,W26))","v":"SHEDDING/ SEPARATION"},null,null,null,null,null,null,null,null,null,{"$f":"IF(I1=1,AF26,IF(I1=2,AG26,AH26))","v":5},null,null,null,null,null,null,null,null,null,"PENNING/ENTREE EN PARC",null,"SINGLE/CROSS MALTESE",null,null,null,null,null,null,null,null,10,null,5]
[]
[]
[{"$f":"IF(I1=1,U27,IF(I1=2,V27,W27))","v":"PENNING/ENTREE EN PARC "},null,null,null,null,null,null,null,null,null,{"$f":"IF(I1=1,AF27,IF(I1=2,AG27,AH27))","v":10},null,null,null,null,null,null,null,null,null,null,null,null,null,{"$f":"X31*89.999/100","v":0},{"$f":"X31*79.999/100","v":0},{"$f":"X31*69.999/100","v":0},{"$f":"X31*59.999/100","v":0},0.1,null,null,100,{"$f":"AF31*89.999/100","v":89.998999999999995},{"$f":"AF31*79.999/100","v":79.998999999999995},{"$f":"AF31*69.999/100","v":69.998999999999995},{"$f":"AF31*59.999/100","v":59.999000000000002},0.1]
[]
[]
[{"$f":"IF(I1=1,U28,IF(I1=2,V28,W28))","v":"SINGLE/CROSS MALTESE"},null,null,null,null,null,null,null,null,null,{"$f":"IF(I1=1,AF28,IF(I1=2,AG28,AH28))","v":5}]
[]
[]
["POINTS TOTAL",null,null,null,null,null,null,null,null,{"$f":"SUM(J16:J36)","v":0},{"$f":"SUM(K16:K36)","v":100}]
[null,null,null,"CLASSEMENT"]
["GENERAL POINTS",{"$f":"IF((J37)=0,\"-\",K37-J37)","v":"-"},null,"EVALUATION",null,{"$f":"IF(B39=\"-\",\"-\",IF(B39>AG31,\"EXCELLENT\",IF(B39>AH31,\"TRES BON\",IF(B39>AI31,\"BON\",IF(B39>AJ31,\"Sans qualificatif\",IF(B39>0.1,\"Sans qualificatif \",\"éliminé \"))))))","v":"-"},null,null,null,{"$f":"'Fiche organisateur N2'!$N$21","v":"X"},{"$f":"'Rapport de Concours'!$D$38","v":0}]
["Observations :  "]
[{"$f":"'Rapport de Concours'!H44","v":"juge"},{"$f":"'Fiche organisateur N1'!$E$27","v":0},{"$f":"'Rapport de Concours'!K44","v":"Signature :"}]

{"sheet":"06","index":12,"n_rows":41,"n_cols":37,"rows_kept":41,"cut":false,"hidden":false,"merged":[[39,1,39,10],[12,0,12,10],[13,0,13,10],[14,1,14,8],[15,1,17,8],[18,1,20,8],[15,0,17,0],[15,10,17,10],[18,0,20,0],[18,10,20,10],[21,1,23,8],[24,1,26,8],[27,1,29,8],[30,1,32,8],[15,9,17,9],[18,9,20,9],[21,9,23,9],[33,0,35,0],[33,10,35,10],[36,1,36,8],[37,1,37,2],[24,10,26,10],[27,0,29,0],[27,10,29,10],[30,0,32,0],[30,10,32,10],[24,9,26,9],[27,9,29,9],[30,9,32,9],[38,1,38,2],[38,3,38,4],[33,9,35,9],[33,1,35,8],[37,3,37,10],[38,5,38,8],[4,7,4,9],[21,0,23,0],[21,10,23,10],[40,2,40,10],[6,2,6,3],[6,4,6,10],[7,4,7,10],[8,2,8,3],[8,4,8,10],[9,2,9,3],[9,4,9,10],[10,2,10,3],[10,4,10,10],[11,2,11,3],[11,4,11,10],[24,0,26,0]]}
[null,null,null,null,null,null,null,"IHT CS",{"$f":"'Fiche organisateur N1'!$E$32","v":3}]
[]
[null,"IHT COLLECTING STYLE"]
[]
[]
["ORGANISATION : ",{"$f":"'Fiche organisateur N1'!E15","v":0}]
["Lieu:  ",{"$f":"'Fiche organisateur N1'!E16","v":0},"Date : ",null,{"$f":"'Fiche organisateur N2'!$H$8","v":0}]
["Contact : ",{"$f":"'Fiche organisateur N1'!E18","v":0}]
["Propriétaire",{"$f":"'Fiche organisateur N2'!$C$22","v":0},"Races + Sexe",null,{"$f":"'Fiche organisateur N2'!$G$22","v":0}]
["Conducteur",{"$f":"'Fiche organisateur N2'!$D$22","v":0}]
["Nom chien",{"$f":"'Fiche organisateur N2'!$E$22","v":0}]
["Affixe",{"$f":"'Fiche organisateur N2'!$F$22","v":0},"Identifiant",null,{"$f":"'Fiche organisateur N2'!$I$22","v":0}]
[]
[]
["EXERCICES ","OBSERVATIONS",null,null,null,null,null,null,null,"MOINS","MAX"]
["OUTRUN/RECHERCHE",null,null,null,null,null,null,null,null,null,20]
[]
[]
["LIFT/ PRISE DE POSSESSION",null,null,null,null,null,null,null,null,null,10]
[]
[]
["FETCH/ AMENEE",null,null,null,null,null,null,null,null,null,20]
[]
[null,null,null,null,null,null,null,null,null,null,null,null,null,null,null,null,null,null,null,null,1,2,3]
[{"$f":"IF(I1=1,U25,IF(I1=2,V25,W25))","v":"DRIVE/ TRIANGLE"},null,null,null,null,null,null,null,null,null,{"$f":"IF(I1=1,AF25,IF(I1=2,AG25,AH25))","v":30},null,null,null,null,null,null,null,null,null,"DRIVE/POUSSE","DRIVE/ TRIANGLE","DRIVE/ TRIANGLE",null,null,null,null,null,null,null,null,15,30,30]
[null,null,null,null,null,null,null,null,null,null,null,null,null,null,null,null,null,null,null,null,"DRIVE/ TOGETHER","SHEDDING/ SEPARATION","SHEDDING/ SEPARATION",null,null,null,null,null,null,null,null,15,10,5]
[null,null,null,null,null,null,null,null,null,null,null,null,null,null,null,null,null,null,null,null,"SHEDDINGRACE/ COULOIR DE TRI ","PENNING/LOADING TRAILER -ENTREE PARC/BETALLIERE","PENNING/ENTREE EN PARC ",null,null,null,null,null,null,null,null,10,10,10]
[{"$f":"IF(I1=1,U26,IF(I1=2,V26,W26))","v":"SHEDDING/ SEPARATION"},null,null,null,null,null,null,null,null,null,{"$f":"IF(I1=1,AF26,IF(I1=2,AG26,AH26))","v":5},null,null,null,null,null,null,null,null,null,"PENNING/ENTREE EN PARC",null,"SINGLE/CROSS MALTESE",null,null,null,null,null,null,null,null,10,null,5]
[]
[]
[{"$f":"IF(I1=1,U27,IF(I1=2,V27,W27))","v":"PENNING/ENTREE EN PARC "},null,null,null,null,null,null,null,null,null,{"$f":"IF(I1=1,AF27,IF(I1=2,AG27,AH27))","v":10},null,null,null,null,null,null,null,null,null,null,null,null,null,{"$f":"X31*89.999/100","v":0},{"$f":"X31*79.999/100","v":0},{"$f":"X31*69.999/100","v":0},{"$f":"X31*59.999/100","v":0},0.1,null,null,100,{"$f":"AF31*89.999/100","v":89.998999999999995},{"$f":"AF31*79.999/100","v":79.998999999999995},{"$f":"AF31*69.999/100","v":69.998999999999995},{"$f":"AF31*59.999/100","v":59.999000000000002},0.1]
[]
[]
[{"$f":"IF(I1=1,U28,IF(I1=2,V28,W28))","v":"SINGLE/CROSS MALTESE"},null,null,null,null,null,null,null,null,null,{"$f":"IF(I1=1,AF28,IF(I1=2,AG28,AH28))","v":5}]
[]
[]
["POINTS TOTAL",null,null,null,null,null,null,null,null,{"$f":"SUM(J16:J36)","v":0},{"$f":"SUM(K16:K36)","v":100}]
[null,null,null,"CLASSEMENT"]
["GENERAL POINTS",{"$f":"IF((J37)=0,\"-\",K37-J37)","v":"-"},null,"EVALUATION",null,{"$f":"IF(B39=\"-\",\"-\",IF(B39>AG31,\"EXCELLENT\",IF(B39>AH31,\"TRES BON\",IF(B39>AI31,\"BON\",IF(B39>AJ31,\"Sans qualificatif\",IF(B39>0.1,\"Sans qualificatif \",\"éliminé \"))))))","v":"-"},null,null,null,{"$f":"'Fiche organisateur N2'!$N$22","v":"X"},{"$f":"'Rapport de Concours'!$D$38","v":0}]
["Observations :  "]
[{"$f":"'Rapport de Concours'!H44","v":"juge"},{"$f":"'Fiche organisateur N1'!$E$27","v":0},{"$f":"'Rapport de Concours'!K44","v":"Signature :"}]

{"sheet":"07","index":13,"n_rows":41,"n_cols":37,"rows_kept":41,"cut":false,"hidden":false,"merged":[[39,1,39,10],[12,0,12,10],[13,0,13,10],[14,1,14,8],[15,1,17,8],[18,1,20,8],[15,0,17,0],[15,10,17,10],[18,0,20,0],[18,10,20,10],[21,1,23,8],[24,1,26,8],[27,1,29,8],[30,1,32,8],[15,9,17,9],[18,9,20,9],[21,9,23,9],[33,0,35,0],[33,10,35,10],[36,1,36,8],[37,1,37,2],[24,10,26,10],[27,0,29,0],[27,10,29,10],[30,0,32,0],[30,10,32,10],[24,9,26,9],[27,9,29,9],[30,9,32,9],[38,1,38,2],[38,3,38,4],[33,9,35,9],[33,1,35,8],[37,3,37,10],[38,5,38,8],[4,7,4,9],[21,0,23,0],[21,10,23,10],[40,2,40,10],[6,2,6,3],[6,4,6,10],[7,4,7,10],[8,2,8,3],[8,4,8,10],[9,2,9,3],[9,4,9,10],[10,2,10,3],[10,4,10,10],[11,2,11,3],[11,4,11,10],[24,0,26,0]]}
[null,null,null,null,null,null,null,"IHT CS",{"$f":"'Fiche organisateur N1'!$E$32","v":3}]
[]
[null,"IHT COLLECTING STYLE"]
[]
[]
["ORGANISATION : ",{"$f":"'Fiche organisateur N1'!E15","v":0}]
["Lieu:  ",{"$f":"'Fiche organisateur N1'!E16","v":0},"Date : ",null,{"$f":"'Fiche organisateur N2'!$H$8","v":0}]
["Contact : ",{"$f":"'Fiche organisateur N1'!E18","v":0}]
["Propriétaire",{"$f":"'Fiche organisateur N2'!$C$23","v":0},"Races + Sexe",null,{"$f":"'Fiche organisateur N2'!$G$23","v":0}]
["Conducteur",{"$f":"'Fiche organisateur N2'!$D$23","v":0}]
["Nom chien",{"$f":"'Fiche organisateur N2'!$E$23","v":0}]
["Affixe",{"$f":"'Fiche organisateur N2'!$F$23","v":0},"Identifiant",null,{"$f":"'Fiche organisateur N2'!$I$23","v":0}]
[]
[]
["EXERCICES ","OBSERVATIONS",null,null,null,null,null,null,null,"MOINS","MAX"]
["OUTRUN/RECHERCHE",null,null,null,null,null,null,null,null,null,20]
[]
[]
["LIFT/ PRISE DE POSSESSION",null,null,null,null,null,null,null,null,null,10]
[]
[]
["FETCH/ AMENEE",null,null,null,null,null,null,null,null,null,20]
[]
[null,null,null,null,null,null,null,null,null,null,null,null,null,null,null,null,null,null,null,null,1,2,3]
[{"$f":"IF(I1=1,U25,IF(I1=2,V25,W25))","v":"DRIVE/ TRIANGLE"},null,null,null,null,null,null,null,null,null,{"$f":"IF(I1=1,AF25,IF(I1=2,AG25,AH25))","v":30},null,null,null,null,null,null,null,null,null,"DRIVE/POUSSE","DRIVE/ TRIANGLE","DRIVE/ TRIANGLE",null,null,null,null,null,null,null,null,15,30,30]
[null,null,null,null,null,null,null,null,null,null,null,null,null,null,null,null,null,null,null,null,"DRIVE/ TOGETHER","SHEDDING/ SEPARATION","SHEDDING/ SEPARATION",null,null,null,null,null,null,null,null,15,10,5]
[null,null,null,null,null,null,null,null,null,null,null,null,null,null,null,null,null,null,null,null,"SHEDDINGRACE/ COULOIR DE TRI ","PENNING/LOADING TRAILER -ENTREE PARC/BETALLIERE","PENNING/ENTREE EN PARC ",null,null,null,null,null,null,null,null,10,10,10]
[{"$f":"IF(I1=1,U26,IF(I1=2,V26,W26))","v":"SHEDDING/ SEPARATION"},null,null,null,null,null,null,null,null,null,{"$f":"IF(I1=1,AF26,IF(I1=2,AG26,AH26))","v":5},null,null,null,null,null,null,null,null,null,"PENNING/ENTREE EN PARC",null,"SINGLE/CROSS MALTESE",null,null,null,null,null,null,null,null,10,null,5]
[]
[]
[{"$f":"IF(I1=1,U27,IF(I1=2,V27,W27))","v":"PENNING/ENTREE EN PARC "},null,null,null,null,null,null,null,null,null,{"$f":"IF(I1=1,AF27,IF(I1=2,AG27,AH27))","v":10},null,null,null,null,null,null,null,null,null,null,null,null,null,{"$f":"X31*89.999/100","v":0},{"$f":"X31*79.999/100","v":0},{"$f":"X31*69.999/100","v":0},{"$f":"X31*59.999/100","v":0},0.1,null,null,100,{"$f":"AF31*89.999/100","v":89.998999999999995},{"$f":"AF31*79.999/100","v":79.998999999999995},{"$f":"AF31*69.999/100","v":69.998999999999995},{"$f":"AF31*59.999/100","v":59.999000000000002},0.1]
[]
[]
[{"$f":"IF(I1=1,U28,IF(I1=2,V28,W28))","v":"SINGLE/CROSS MALTESE"},null,null,null,null,null,null,null,null,null,{"$f":"IF(I1=1,AF28,IF(I1=2,AG28,AH28))","v":5}]
[]
[]
["POINTS TOTAL",null,null,null,null,null,null,null,null,{"$f":"SUM(J16:J36)","v":0},{"$f":"SUM(K16:K36)","v":100}]
[null,null,null,"CLASSEMENT"]
["GENERAL POINTS",{"$f":"IF((J37)=0,\"-\",K37-J37)","v":"-"},null,"EVALUATION",null,{"$f":"IF(B39=\"-\",\"-\",IF(B39>AG31,\"EXCELLENT\",IF(B39>AH31,\"TRES BON\",IF(B39>AI31,\"BON\",IF(B39>AJ31,\"Sans qualificatif\",IF(B39>0.1,\"Sans qualificatif \",\"éliminé \"))))))","v":"-"},null,null,null,{"$f":"'Fiche organisateur N2'!$N$23","v":"X"},{"$f":"'Rapport de Concours'!$D$38","v":0}]
["Observations :  "]
[{"$f":"'Rapport de Concours'!H44","v":"juge"},{"$f":"'Fiche organisateur N1'!$E$27","v":0},{"$f":"'Rapport de Concours'!K44","v":"Signature :"}]

{"sheet":"08","index":14,"n_rows":41,"n_cols":37,"rows_kept":41,"cut":false,"hidden":false,"merged":[[12,0,12,10],[13,0,13,10],[37,3,37,10],[30,10,32,10],[33,1,35,8],[33,10,35,10],[36,1,36,8],[30,0,32,0],[30,9,32,9],[33,0,35,0],[33,9,35,9],[21,0,23,0],[21,9,23,9],[24,0,26,0],[27,1,29,8],[27,10,29,10],[30,1,32,8],[38,5,38,8],[39,1,39,10],[10,4,10,10],[11,2,11,3],[11,4,11,10],[40,2,40,10],[37,1,37,2],[38,1,38,2],[38,3,38,4],[14,1,14,8],[15,1,17,8],[15,10,17,10],[18,1,20,8],[18,10,20,10],[21,1,23,8],[21,10,23,10],[24,1,26,8],[24,10,26,10],[24,9,26,9],[27,0,29,0],[27,9,29,9],[4,7,4,9],[15,0,17,0],[15,9,17,9],[18,0,20,0],[18,9,20,9],[6,2,6,3],[6,4,6,10],[7,4,7,10],[8,2,8,3],[8,4,8,10],[9,2,9,3],[9,4,9,10],[10,2,10,3]]}
[null,null,null,null,null,null,null,"IHT CS",{"$f":"'Fiche organisateur N1'!$E$32","v":3}]
[]
[null,"IHT COLLECTING STYLE"]
[]
[]
["ORGANISATION : ",{"$f":"'Fiche organisateur N1'!E15","v":0}]
["Lieu:  ",{"$f":"'Fiche organisateur N1'!E16","v":0},"Date : ",null,{"$f":"'Fiche organisateur N2'!$H$8","v":0}]
["Contact : ",{"$f":"'Fiche organisateur N1'!E18","v":0}]
["Propriétaire",{"$f":"'Fiche organisateur N2'!$C$24","v":0},"Races + Sexe",null,{"$f":"'Fiche organisateur N2'!$G$24","v":0}]
["Conducteur",{"$f":"'Fiche organisateur N2'!$D$24","v":0}]
["Nom chien",{"$f":"'Fiche organisateur N2'!$E$24","v":0}]
["Affixe",{"$f":"'Fiche organisateur N2'!$F$24","v":0},"Identifiant",null,{"$f":"'Fiche organisateur N2'!$I$24","v":0}]
[]
[]
["EXERCICES ","OBSERVATIONS",null,null,null,null,null,null,null,"MOINS","MAX"]
["OUTRUN/RECHERCHE",null,null,null,null,null,null,null,null,null,20]
[]
[]
["LIFT/ PRISE DE POSSESSION",null,null,null,null,null,null,null,null,null,10]
[]
[]
["FETCH/ AMENEE",null,null,null,null,null,null,null,null,null,20]
[]
[null,null,null,null,null,null,null,null,null,null,null,null,null,null,null,null,null,null,null,null,1,2,3]
[{"$f":"IF(I1=1,U25,IF(I1=2,V25,W25))","v":"DRIVE/ TRIANGLE"},null,null,null,null,null,null,null,null,null,{"$f":"IF(I1=1,AF25,IF(I1=2,AG25,AH25))","v":30},null,null,null,null,null,null,null,null,null,"DRIVE/POUSSE","DRIVE/ TRIANGLE","DRIVE/ TRIANGLE",null,null,null,null,null,null,null,null,15,30,30]
[null,null,null,null,null,null,null,null,null,null,null,null,null,null,null,null,null,null,null,null,"DRIVE/ TOGETHER","SHEDDING/ SEPARATION","SHEDDING/ SEPARATION",null,null,null,null,null,null,null,null,15,10,5]
[null,null,null,null,null,null,null,null,null,null,null,null,null,null,null,null,null,null,null,null,"SHEDDINGRACE/ COULOIR DE TRI ","PENNING/LOADING TRAILER -ENTREE PARC/BETALLIERE","PENNING/ENTREE EN PARC ",null,null,null,null,null,null,null,null,10,10,10]
[{"$f":"IF(I1=1,U26,IF(I1=2,V26,W26))","v":"SHEDDING/ SEPARATION"},null,null,null,null,null,null,null,null,null,{"$f":"IF(I1=1,AF26,IF(I1=2,AG26,AH26))","v":5},null,null,null,null,null,null,null,null,null,"PENNING/ENTREE EN PARC",null,"SINGLE/CROSS MALTESE",null,null,null,null,null,null,null,null,10,null,5]
[]
[]
[{"$f":"IF(I1=1,U27,IF(I1=2,V27,W27))","v":"PENNING/ENTREE EN PARC "},null,null,null,null,null,null,null,null,null,{"$f":"IF(I1=1,AF27,IF(I1=2,AG27,AH27))","v":10},null,null,null,null,null,null,null,null,null,null,null,null,null,{"$f":"X31*89.999/100","v":0},{"$f":"X31*79.999/100","v":0},{"$f":"X31*69.999/100","v":0},{"$f":"X31*59.999/100","v":0},0.1,null,null,100,{"$f":"AF31*89.999/100","v":89.998999999999995},{"$f":"AF31*79.999/100","v":79.998999999999995},{"$f":"AF31*69.999/100","v":69.998999999999995},{"$f":"AF31*59.999/100","v":59.999000000000002},0.1]
[]
[]
[{"$f":"IF(I1=1,U28,IF(I1=2,V28,W28))","v":"SINGLE/CROSS MALTESE"},null,null,null,null,null,null,null,null,null,{"$f":"IF(I1=1,AF28,IF(I1=2,AG28,AH28))","v":5}]
[]
[]
["POINTS TOTAL",null,null,null,null,null,null,null,null,{"$f":"SUM(J16:J36)","v":0},{"$f":"SUM(K16:K36)","v":100}]
[null,null,null,"CLASSEMENT"]
["GENERAL POINTS",{"$f":"IF((J37)=0,\"-\",K37-J37)","v":"-"},null,"EVALUATION",null,{"$f":"IF(B39=\"-\",\"-\",IF(B39>AG31,\"EXCELLENT\",IF(B39>AH31,\"TRES BON\",IF(B39>AI31,\"BON\",IF(B39>AJ31,\"Sans qualificatif\",IF(B39>0.1,\"Sans qualificatif \",\"éliminé \"))))))","v":"-"},null,null,null,{"$f":"'Fiche organisateur N2'!$N$24","v":"X"},{"$f":"'Rapport de Concours'!$D$38","v":0}]
["Observations :  "]
[{"$f":"'Rapport de Concours'!H44","v":"juge"},{"$f":"'Fiche organisateur N1'!$E$27","v":0},{"$f":"'Rapport de Concours'!K44","v":"Signature :"}]

{"sheet":"09","index":15,"n_rows":41,"n_cols":37,"rows_kept":41,"cut":false,"hidden":false,"merged":[[8,4,8,10],[9,2,9,3],[9,4,9,10],[10,2,10,3],[21,10,23,10],[10,4,10,10],[11,2,11,3],[11,4,11,10],[18,0,20,0],[18,9,20,9],[21,0,23,0],[21,9,23,9],[4,7,4,9],[12,0,12,10],[13,0,13,10],[14,1,14,8],[15,1,17,8],[15,10,17,10],[15,0,17,0],[15,9,17,9],[6,2,6,3],[6,4,6,10],[7,4,7,10],[8,2,8,3],[24,0,26,0],[24,9,26,9],[27,0,29,0],[27,9,29,9],[30,0,32,0],[30,9,32,9],[24,1,26,8],[27,1,29,8],[33,0,35,0],[33,9,35,9],[36,1,36,8],[33,1,35,8],[40,2,40,10],[37,3,37,10],[38,5,38,8],[39,1,39,10],[33,10,35,10],[37,1,37,2],[38,1,38,2],[38,3,38,4],[27,10,29,10],[30,1,32,8],[30,10,32,10],[18,1,20,8],[18,10,20,10],[21,1,23,8],[24,10,26,10]]}
[null,null,null,null,null,null,"IHT CS",{"$f":"'Fiche organisateur N1'!$E$32","v":3},{"$f":"'Fiche organisateur N1'!$E$32","v":3}]
[]
[null,"IHT COLLECTING STYLE"]
[]
[]
["ORGANISATION : ",{"$f":"'Fiche organisateur N1'!E15","v":0}]
["Lieu:  ",{"$f":"'Fiche organisateur N1'!E16","v":0},"Date : ",null,{"$f":"'Fiche organisateur N2'!$H$8","v":0}]
["Contact : ",{"$f":"'Fiche organisateur N1'!E18","v":0}]
["Propriétaire",{"$f":"'Fiche organisateur N2'!$C$25","v":0},"Races + Sexe",null,{"$f":"'Fiche organisateur N2'!$G$25","v":0}]
["Conducteur",{"$f":"'Fiche organisateur N2'!$D$25","v":0}]
["Nom chien",{"$f":"'Fiche organisateur N2'!$E$25","v":0}]
["Affixe",{"$f":"'Fiche organisateur N2'!$F$25","v":0},"Identifiant",null,{"$f":"'Fiche organisateur N2'!$I$25","v":0}]
[]
[]
["EXERCICES ","OBSERVATIONS",null,null,null,null,null,null,"MOINS","MAX"]
["OUTRUN/RECHERCHE",null,null,null,null,null,null,null,null,null,20]
[]
[]
["LIFT/ PRISE DE POSSESSION",null,null,null,null,null,null,null,null,null,10]
[]
[]
["FETCH/ AMENEE",null,null,null,null,null,null,null,null,null,20]
[]
[null,null,null,null,null,null,null,null,null,null,null,null,null,null,null,null,null,null,null,null,1,2,3]
[{"$f":"IF(H1=1,U25,IF(H1=2,V25,W25))","v":"DRIVE/ TRIANGLE"},null,null,null,null,null,null,null,null,null,{"$f":"IF(I1=1,AF25,IF(I1=2,AG25,AH25))","v":30},null,null,null,null,null,null,null,null,null,"DRIVE/POUSSE","DRIVE/ TRIANGLE","DRIVE/ TRIANGLE",null,null,null,null,null,null,null,null,15,30,30]
[null,null,null,null,null,null,null,null,null,null,null,null,null,null,null,null,null,null,null,null,"DRIVE/ TOGETHER","SHEDDING/ SEPARATION","SHEDDING/ SEPARATION",null,null,null,null,null,null,null,null,15,10,5]
[null,null,null,null,null,null,null,null,null,null,null,null,null,null,null,null,null,null,null,null,"SHEDDINGRACE/ COULOIR DE TRI ","PENNING/LOADING TRAILER -ENTREE PARC/BETALLIERE","PENNING/ENTREE EN PARC ",null,null,null,null,null,null,null,null,10,10,10]
[{"$f":"IF(H1=1,U26,IF(H1=2,V26,W26))","v":"SHEDDING/ SEPARATION"},null,null,null,null,null,null,null,null,null,{"$f":"IF(I1=1,AF26,IF(I1=2,AG26,AH26))","v":5},null,null,null,null,null,null,null,null,null,"PENNING/ENTREE EN PARC",null,"SINGLE/CROSS MALTESE",null,null,null,null,null,null,null,null,10,null,5]
[]
[]
[{"$f":"IF(H1=1,U27,IF(H1=2,V27,W27))","v":"PENNING/ENTREE EN PARC "},null,null,null,null,null,null,null,null,null,{"$f":"IF(I1=1,AF27,IF(I1=2,AG27,AH27))","v":10},null,null,null,null,null,null,null,null,null,null,null,null,100,{"$f":"X31*89.999/100","v":89.998999999999995},{"$f":"X31*79.999/100","v":79.998999999999995},{"$f":"X31*69.999/100","v":69.998999999999995},{"$f":"X31*59.999/100","v":59.999000000000002},0.1,null,null,100,{"$f":"AF31*89.999/100","v":89.998999999999995},{"$f":"AF31*79.999/100","v":79.998999999999995},{"$f":"AF31*69.999/100","v":69.998999999999995},{"$f":"AF31*59.999/100","v":59.999000000000002},0.1]
[]
[]
[{"$f":"IF(H1=1,U28,IF(H1=2,V28,W28))","v":"SINGLE/CROSS MALTESE"},null,null,null,null,null,null,null,null,null,{"$f":"IF(I1=1,AF28,IF(I1=2,AG28,AH28))","v":5}]
[]
[]
["POINTS TOTAL",null,null,null,null,null,null,null,{"$f":"SUM(I16:I36)","v":0},{"$f":"SUM(J16:J36)","v":0},{"$f":"SUM(K16:K36)","v":100}]
[null,null,null,"CLASSEMENT"]
["GENERAL POINTS",{"$f":"IF((J37)=0,\"-\",K37-J37)","v":"-"},null,"EVALUATION",null,{"$f":"IF(B39=\"-\",\"-\",IF(B39>AG31,\"EXCELLENT\",IF(B39>AH31,\"TRES BON\",IF(B39>AI31,\"BON\",IF(B39>AJ31,\"Sans qualificatif\",IF(B39>0.1,\"Sans qualificatif \",\"éliminé \"))))))","v":"-"},null,null,null,{"$f":"'Fiche organisateur N2'!$N$25","v":"X"},{"$f":"'Rapport de Concours'!$D$38","v":0}]
["Observations :  "]
[{"$f":"'Rapport de Concours'!H44","v":"juge"},{"$f":"'Fiche organisateur N1'!$E$27","v":0},{"$f":"'Rapport de Concours'!K44","v":"Signature :"}]

{"sheet":"10","index":16,"n_rows":41,"n_cols":37,"rows_kept":41,"cut":false,"hidden":false,"merged":[[8,4,8,10],[9,2,9,3],[9,4,9,10],[10,2,10,3],[21,10,23,10],[10,4,10,10],[11,2,11,3],[11,4,11,10],[18,0,20,0],[18,9,20,9],[21,0,23,0],[21,9,23,9],[4,7,4,9],[12,0,12,10],[13,0,13,10],[14,1,14,8],[15,1,17,8],[15,10,17,10],[15,0,17,0],[15,9,17,9],[6,2,6,3],[6,4,6,10],[7,4,7,10],[8,2,8,3],[24,0,26,0],[24,9,26,9],[27,0,29,0],[27,9,29,9],[30,0,32,0],[30,9,32,9],[24,1,26,8],[27,1,29,8],[33,0,35,0],[33,9,35,9],[36,1,36,8],[33,1,35,8],[40,2,40,10],[37,3,37,10],[38,5,38,8],[39,1,39,10],[33,10,35,10],[37,1,37,2],[38,1,38,2],[38,3,38,4],[27,10,29,10],[30,1,32,8],[30,10,32,10],[18,1,20,8],[18,10,20,10],[21,1,23,8],[24,10,26,10]]}
[null,null,null,null,null,null,"IHT CS",{"$f":"'Fiche organisateur N1'!$E$32","v":3},{"$f":"'Fiche organisateur N1'!$E$32","v":3}]
[]
[null,"IHT COLLECTING STYLE"]
[]
[]
["ORGANISATION : ",{"$f":"'Fiche organisateur N1'!E15","v":0}]
["Lieu:  ",{"$f":"'Fiche organisateur N1'!E16","v":0},"Date : ",null,{"$f":"'Fiche organisateur N2'!$H$8","v":0}]
["Contact : ",{"$f":"'Fiche organisateur N1'!E18","v":0}]
["Propriétaire",{"$f":"'Fiche organisateur N2'!$C$26","v":0},"Races + Sexe",null,{"$f":"'Fiche organisateur N2'!$G$26","v":0}]
["Conducteur",{"$f":"'Fiche organisateur N2'!$D$26","v":0}]
["Nom chien",{"$f":"'Fiche organisateur N2'!$E$26","v":0}]
["Affixe",{"$f":"'Fiche organisateur N2'!$F$26","v":0},"Identifiant",null,{"$f":"'Fiche organisateur N2'!$I$26","v":0}]
[]
[]
["EXERCICES ","OBSERVATIONS",null,null,null,null,null,null,"MOINS","MAX"]
["OUTRUN/RECHERCHE",null,null,null,null,null,null,null,null,null,20]
[]
[]
["LIFT/ PRISE DE POSSESSION",null,null,null,null,null,null,null,null,null,10]
[]
[]
["FETCH/ AMENEE",null,null,null,null,null,null,null,null,null,20]
[]
[null,null,null,null,null,null,null,null,null,null,null,null,null,null,null,null,null,null,null,null,1,2,3]
[{"$f":"IF(H1=1,U25,IF(H1=2,V25,W25))","v":"DRIVE/ TRIANGLE"},null,null,null,null,null,null,null,null,null,{"$f":"IF(I1=1,AF25,IF(I1=2,AG25,AH25))","v":30},null,null,null,null,null,null,null,null,null,"DRIVE/POUSSE","DRIVE/ TRIANGLE","DRIVE/ TRIANGLE",null,null,null,null,null,null,null,null,15,30,30]
[null,null,null,null,null,null,null,null,null,null,null,null,null,null,null,null,null,null,null,null,"DRIVE/ TOGETHER","SHEDDING/ SEPARATION","SHEDDING/ SEPARATION",null,null,null,null,null,null,null,null,15,10,5]
[null,null,null,null,null,null,null,null,null,null,null,null,null,null,null,null,null,null,null,null,"SHEDDINGRACE/ COULOIR DE TRI ","PENNING/LOADING TRAILER -ENTREE PARC/BETALLIERE","PENNING/ENTREE EN PARC ",null,null,null,null,null,null,null,null,10,10,10]
[{"$f":"IF(H1=1,U26,IF(H1=2,V26,W26))","v":"SHEDDING/ SEPARATION"},null,null,null,null,null,null,null,null,null,{"$f":"IF(I1=1,AF26,IF(I1=2,AG26,AH26))","v":5},null,null,null,null,null,null,null,null,null,"PENNING/ENTREE EN PARC",null,"SINGLE/CROSS MALTESE",null,null,null,null,null,null,null,null,10,null,5]
[]
[]
[{"$f":"IF(H1=1,U27,IF(H1=2,V27,W27))","v":"PENNING/ENTREE EN PARC "},null,null,null,null,null,null,null,null,null,{"$f":"IF(I1=1,AF27,IF(I1=2,AG27,AH27))","v":10},null,null,null,null,null,null,null,null,null,null,null,null,null,{"$f":"X31*89.999/100","v":0},{"$f":"X31*79.999/100","v":0},{"$f":"X31*69.999/100","v":0},{"$f":"X31*59.999/100","v":0},0.1,null,null,100,{"$f":"AF31*89.999/100","v":89.998999999999995},{"$f":"AF31*79.999/100","v":79.998999999999995},{"$f":"AF31*69.999/100","v":69.998999999999995},{"$f":"AF31*59.999/100","v":59.999000000000002},0.1]
[]
[]
[{"$f":"IF(H1=1,U28,IF(H1=2,V28,W28))","v":"SINGLE/CROSS MALTESE"},null,null,null,null,null,null,null,null,null,{"$f":"IF(I1=1,AF28,IF(I1=2,AG28,AH28))","v":5}]
[]
[]
["POINTS TOTAL",null,null,null,null,null,null,null,{"$f":"SUM(I16:I36)","v":0},{"$f":"SUM(J16:J36)","v":0},{"$f":"SUM(K16:K36)","v":100}]
[null,null,null,"CLASSEMENT"]
["GENERAL POINTS",{"$f":"IF((J37)=0,\"-\",K37-J37)","v":"-"},null,"EVALUATION",null,{"$f":"IF(B39=\"-\",\"-\",IF(B39>AG31,\"EXCELLENT\",IF(B39>AH31,\"TRES BON\",IF(B39>AI31,\"BON\",IF(B39>AJ31,\"Sans qualificatif\",IF(B39>0.1,\"Sans qualificatif \",\"éliminé \"))))))","v":"-"},null,null,null,{"$f":"'Fiche organisateur N2'!$N$26","v":"X"},{"$f":"'Rapport de Concours'!$D$38","v":0}]
["Observations :  "]
[{"$f":"'Rapport de Concours'!H44","v":"juge"},{"$f":"'Fiche organisateur N1'!$E$27","v":0},{"$f":"'Rapport de Concours'!K44","v":"Signature :"}]

{"sheet":"11","index":17,"n_rows":41,"n_cols":37,"rows_kept":41,"cut":false,"hidden":false,"merged":[[8,4,8,10],[9,2,9,3],[9,4,9,10],[10,2,10,3],[21,10,23,10],[10,4,10,10],[11,2,11,3],[11,4,11,10],[18,0,20,0],[18,9,20,9],[21,0,23,0],[21,9,23,9],[4,7,4,9],[12,0,12,10],[13,0,13,10],[14,1,14,8],[15,1,17,8],[15,10,17,10],[15,0,17,0],[15,9,17,9],[6,2,6,3],[6,4,6,10],[7,4,7,10],[8,2,8,3],[24,0,26,0],[24,9,26,9],[27,0,29,0],[27,9,29,9],[30,0,32,0],[30,9,32,9],[24,1,26,8],[27,1,29,8],[33,0,35,0],[33,9,35,9],[36,1,36,8],[33,1,35,8],[40,2,40,10],[37,3,37,10],[38,5,38,8],[39,1,39,10],[33,10,35,10],[37,1,37,2],[38,1,38,2],[38,3,38,4],[27,10,29,10],[30,1,32,8],[30,10,32,10],[18,1,20,8],[18,10,20,10],[21,1,23,8],[24,10,26,10]]}
[null,null,null,null,null,null,"IHT CS",{"$f":"'Fiche organisateur N1'!$E$32","v":3},{"$f":"'Fiche organisateur N1'!$E$32","v":3}]
[]
[null,"IHT COLLECTING STYLE"]
[]
[]
["ORGANISATION : ",{"$f":"'Fiche organisateur N1'!E15","v":0}]
["Lieu:  ",{"$f":"'Fiche organisateur N1'!E16","v":0},"Date : ",null,{"$f":"'Fiche organisateur N2'!$H$8","v":0}]
["Contact : ",{"$f":"'Fiche organisateur N1'!E18","v":0}]
["Propriétaire",{"$f":"'Fiche organisateur N2'!$C$27","v":0},"Races + Sexe",null,{"$f":"'Fiche organisateur N2'!$G$27","v":0}]
["Conducteur",{"$f":"'Fiche organisateur N2'!$D$27","v":0}]
["Nom chien",{"$f":"'Fiche organisateur N2'!$E$27","v":0}]
["Affixe",{"$f":"'Fiche organisateur N2'!$F$27","v":0},"Identifiant",null,{"$f":"'Fiche organisateur N2'!$I$27","v":0}]
[]
[]
["EXERCICES ","OBSERVATIONS",null,null,null,null,null,null,"MOINS","MAX"]
["OUTRUN/RECHERCHE",null,null,null,null,null,null,null,null,null,20]
[]
[]
["LIFT/ PRISE DE POSSESSION",null,null,null,null,null,null,null,null,null,10]
[]
[]
["FETCH/ AMENEE",null,null,null,null,null,null,null,null,null,20]
[]
[null,null,null,null,null,null,null,null,null,null,null,null,null,null,null,null,null,null,null,null,1,2,3]
[{"$f":"IF(H1=1,U25,IF(H1=2,V25,W25))","v":"DRIVE/ TRIANGLE"},null,null,null,null,null,null,null,null,null,{"$f":"IF(I1=1,AF25,IF(I1=2,AG25,AH25))","v":30},null,null,null,null,null,null,null,null,null,"DRIVE/POUSSE","DRIVE/ TRIANGLE","DRIVE/ TRIANGLE",null,null,null,null,null,null,null,null,15,30,30]
[null,null,null,null,null,null,null,null,null,null,null,null,null,null,null,null,null,null,null,null,"DRIVE/ TOGETHER","SHEDDING/ SEPARATION","SHEDDING/ SEPARATION",null,null,null,null,null,null,null,null,15,10,5]
[null,null,null,null,null,null,null,null,null,null,null,null,null,null,null,null,null,null,null,null,"SHEDDINGRACE/ COULOIR DE TRI ","PENNING/LOADING TRAILER -ENTREE PARC/BETALLIERE","PENNING/ENTREE EN PARC ",null,null,null,null,null,null,null,null,10,10,10]
[{"$f":"IF(H1=1,U26,IF(H1=2,V26,W26))","v":"SHEDDING/ SEPARATION"},null,null,null,null,null,null,null,null,null,{"$f":"IF(I1=1,AF26,IF(I1=2,AG26,AH26))","v":5},null,null,null,null,null,null,null,null,null,"PENNING/ENTREE EN PARC",null,"SINGLE/CROSS MALTESE",null,null,null,null,null,null,null,null,10,null,5]
[]
[]
[{"$f":"IF(H1=1,U27,IF(H1=2,V27,W27))","v":"PENNING/ENTREE EN PARC "},null,null,null,null,null,null,null,null,null,{"$f":"IF(I1=1,AF27,IF(I1=2,AG27,AH27))","v":10},null,null,null,null,null,null,null,null,null,null,null,null,null,{"$f":"X31*89.999/100","v":0},{"$f":"X31*79.999/100","v":0},{"$f":"X31*69.999/100","v":0},{"$f":"X31*59.999/100","v":0},0.1,null,null,100,{"$f":"AF31*89.999/100","v":89.998999999999995},{"$f":"AF31*79.999/100","v":79.998999999999995},{"$f":"AF31*69.999/100","v":69.998999999999995},{"$f":"AF31*59.999/100","v":59.999000000000002},0.1]
[]
[]
[{"$f":"IF(H1=1,U28,IF(H1=2,V28,W28))","v":"SINGLE/CROSS MALTESE"},null,null,null,null,null,null,null,null,null,{"$f":"IF(I1=1,AF28,IF(I1=2,AG28,AH28))","v":5}]
[]
[]
["POINTS TOTAL",null,null,null,null,null,null,null,{"$f":"SUM(I16:I36)","v":0},{"$f":"SUM(J16:J36)","v":0},{"$f":"SUM(K16:K36)","v":100}]
[null,null,null,"CLASSEMENT"]
["GENERAL POINTS",{"$f":"IF((J37)=0,\"-\",K37-J37)","v":"-"},null,"EVALUATION",null,{"$f":"IF(B39=\"-\",\"-\",IF(B39>AG31,\"EXCELLENT\",IF(B39>AH31,\"TRES BON\",IF(B39>AI31,\"BON\",IF(B39>AJ31,\"Sans qualificatif\",IF(B39>0.1,\"Sans qualificatif \",\"éliminé \"))))))","v":"-"},null,null,null,{"$f":"'Fiche organisateur N2'!$N$27","v":"X"},{"$f":"'Rapport de Concours'!$D$38","v":0}]
["Observations :  "]
[{"$f":"'Rapport de Concours'!H44","v":"juge"},{"$f":"'Fiche organisateur N1'!$E$27","v":0},{"$f":"'Rapport de Concours'!K44","v":"Signature :"}]

{"sheet":"12","index":18,"n_rows":41,"n_cols":37,"rows_kept":41,"cut":false,"hidden":false,"merged":[[8,4,8,10],[9,2,9,3],[9,4,9,10],[10,2,10,3],[21,10,23,10],[10,4,10,10],[11,2,11,3],[11,4,11,10],[18,0,20,0],[18,9,20,9],[21,0,23,0],[21,9,23,9],[4,7,4,9],[12,0,12,10],[13,0,13,10],[14,1,14,8],[15,1,17,8],[15,10,17,10],[15,0,17,0],[15,9,17,9],[6,2,6,3],[6,4,6,10],[7,4,7,10],[8,2,8,3],[24,0,26,0],[24,9,26,9],[27,0,29,0],[27,9,29,9],[30,0,32,0],[30,9,32,9],[24,1,26,8],[27,1,29,8],[33,0,35,0],[33,9,35,9],[36,1,36,8],[33,1,35,8],[40,2,40,10],[37,3,37,10],[38,5,38,8],[39,1,39,10],[33,10,35,10],[37,1,37,2],[38,1,38,2],[38,3,38,4],[27,10,29,10],[30,1,32,8],[30,10,32,10],[18,1,20,8],[18,10,20,10],[21,1,23,8],[24,10,26,10]]}
[null,null,null,null,null,null,"IHT CS",{"$f":"'Fiche organisateur N1'!$E$32","v":3},{"$f":"'Fiche organisateur N1'!$E$32","v":3}]
[]
[null,"IHT COLLECTING STYLE"]
[]
[]
["ORGANISATION : ",{"$f":"'Fiche organisateur N1'!E15","v":0}]
["Lieu:  ",{"$f":"'Fiche organisateur N1'!E16","v":0},"Date : ",null,{"$f":"'Fiche organisateur N2'!$H$8","v":0}]
["Contact : ",{"$f":"'Fiche organisateur N1'!E18","v":0}]
["Propriétaire",{"$f":"'Fiche organisateur N2'!$C$28","v":0},"Races + Sexe",null,{"$f":"'Fiche organisateur N2'!$G$28","v":0}]
["Conducteur",{"$f":"'Fiche organisateur N2'!$D$28","v":0}]
["Nom chien",{"$f":"'Fiche organisateur N2'!$E$28","v":0}]
["Affixe",{"$f":"'Fiche organisateur N2'!$F$28","v":0},"Identifiant",null,{"$f":"'Fiche organisateur N2'!$I$28","v":0}]
[]
[]
["EXERCICES ","OBSERVATIONS",null,null,null,null,null,null,"MOINS","MAX"]
["OUTRUN/RECHERCHE",null,null,null,null,null,null,null,null,null,20]
[]
[]
["LIFT/ PRISE DE POSSESSION",null,null,null,null,null,null,null,null,null,10]
[]
[]
["FETCH/ AMENEE",null,null,null,null,null,null,null,null,null,20]
[]
[null,null,null,null,null,null,null,null,null,null,null,null,null,null,null,null,null,null,null,null,1,2,3]
[{"$f":"IF(H1=1,U25,IF(H1=2,V25,W25))","v":"DRIVE/ TRIANGLE"},null,null,null,null,null,null,null,null,null,{"$f":"IF(I1=1,AF25,IF(I1=2,AG25,AH25))","v":30},null,null,null,null,null,null,null,null,null,"DRIVE/POUSSE","DRIVE/ TRIANGLE","DRIVE/ TRIANGLE",null,null,null,null,null,null,null,null,15,30,30]
[null,null,null,null,null,null,null,null,null,null,null,null,null,null,null,null,null,null,null,null,"DRIVE/ TOGETHER","SHEDDING/ SEPARATION","SHEDDING/ SEPARATION",null,null,null,null,null,null,null,null,15,10,5]
[null,null,null,null,null,null,null,null,null,null,null,null,null,null,null,null,null,null,null,null,"SHEDDINGRACE/ COULOIR DE TRI ","PENNING/LOADING TRAILER -ENTREE PARC/BETALLIERE","PENNING/ENTREE EN PARC ",null,null,null,null,null,null,null,null,10,10,10]
[{"$f":"IF(H1=1,U26,IF(H1=2,V26,W26))","v":"SHEDDING/ SEPARATION"},null,null,null,null,null,null,null,null,null,{"$f":"IF(I1=1,AF26,IF(I1=2,AG26,AH26))","v":5},null,null,null,null,null,null,null,null,null,"PENNING/ENTREE EN PARC",null,"SINGLE/CROSS MALTESE",null,null,null,null,null,null,null,null,10,null,5]
[]
[]
[{"$f":"IF(H1=1,U27,IF(H1=2,V27,W27))","v":"PENNING/ENTREE EN PARC "},null,null,null,null,null,null,null,null,null,{"$f":"IF(I1=1,AF27,IF(I1=2,AG27,AH27))","v":10},null,null,null,null,null,null,null,null,null,null,null,null,null,{"$f":"X31*89.999/100","v":0},{"$f":"X31*79.999/100","v":0},{"$f":"X31*69.999/100","v":0},{"$f":"X31*59.999/100","v":0},0.1,null,null,100,{"$f":"AF31*89.999/100","v":89.998999999999995},{"$f":"AF31*79.999/100","v":79.998999999999995},{"$f":"AF31*69.999/100","v":69.998999999999995},{"$f":"AF31*59.999/100","v":59.999000000000002},0.1]
[]
[]
[{"$f":"IF(H1=1,U28,IF(H1=2,V28,W28))","v":"SINGLE/CROSS MALTESE"},null,null,null,null,null,null,null,null,null,{"$f":"IF(I1=1,AF28,IF(I1=2,AG28,AH28))","v":5}]
[]
[]
["POINTS TOTAL",null,null,null,null,null,null,null,{"$f":"SUM(I16:I36)","v":0},{"$f":"SUM(J16:J36)","v":0},{"$f":"SUM(K16:K36)","v":100}]
[null,null,null,"CLASSEMENT"]
["GENERAL POINTS",{"$f":"IF((J37)=0,\"-\",K37-J37)","v":"-"},null,"EVALUATION",null,{"$f":"IF(B39=\"-\",\"-\",IF(B39>AG31,\"EXCELLENT\",IF(B39>AH31,\"TRES BON\",IF(B39>AI31,\"BON\",IF(B39>AJ31,\"Sans qualificatif\",IF(B39>0.1,\"Sans qualificatif \",\"éliminé \"))))))","v":"-"},null,null,null,{"$f":"'Fiche organisateur N2'!$N$28","v":"X"},{"$f":"'Rapport de Concours'!$D$38","v":0}]
["Observations :  "]
[{"$f":"'Rapport de Concours'!H44","v":"juge"},{"$f":"'Fiche organisateur N1'!$E$27","v":0},{"$f":"'Rapport de Concours'!K44","v":"Signature :"}]

{"sheet":"13","index":19,"n_rows":41,"n_cols":37,"rows_kept":41,"cut":false,"hidden":false,"merged":[[8,4,8,10],[9,2,9,3],[9,4,9,10],[10,2,10,3],[21,10,23,10],[10,4,10,10],[11,2,11,3],[11,4,11,10],[18,0,20,0],[18,9,20,9],[21,0,23,0],[21,9,23,9],[4,7,4,9],[12,0,12,10],[13,0,13,10],[14,1,14,8],[15,1,17,8],[15,10,17,10],[15,0,17,0],[15,9,17,9],[6,2,6,3],[6,4,6,10],[7,4,7,10],[8,2,8,3],[24,0,26,0],[24,9,26,9],[27,0,29,0],[27,9,29,9],[30,0,32,0],[30,9,32,9],[24,1,26,8],[27,1,29,8],[33,0,35,0],[33,9,35,9],[36,1,36,8],[33,1,35,8],[40,2,40,10],[37,3,37,10],[38,5,38,8],[39,1,39,10],[33,10,35,10],[37,1,37,2],[38,1,38,2],[38,3,38,4],[27,10,29,10],[30,1,32,8],[30,10,32,10],[18,1,20,8],[18,10,20,10],[21,1,23,8],[24,10,26,10]]}
[null,null,null,null,null,null,"IHT CS",{"$f":"'Fiche organisateur N1'!$E$32","v":3},{"$f":"'Fiche organisateur N1'!$E$32","v":3}]
[]
[null,"IHT COLLECTING STYLE"]
[]
[]
["ORGANISATION : ",{"$f":"'Fiche organisateur N1'!E15","v":0}]
["Lieu:  ",{"$f":"'Fiche organisateur N1'!E16","v":0},"Date : ",null,{"$f":"'Fiche organisateur N2'!$H$8","v":0}]
["Contact : ",{"$f":"'Fiche organisateur N1'!E18","v":0}]
["Propriétaire",{"$f":"'Fiche organisateur N2'!$C$29","v":0},"Races + Sexe",null,{"$f":"'Fiche organisateur N2'!$G$29","v":0}]
["Conducteur",{"$f":"'Fiche organisateur N2'!$D$29","v":0}]
["Nom chien",{"$f":"'Fiche organisateur N2'!$E$29","v":0}]
["Affixe",{"$f":"'Fiche organisateur N2'!$F$29","v":0},"Identifiant",null,{"$f":"'Fiche organisateur N2'!$I$29","v":0}]
[]
[]
["EXERCICES ","OBSERVATIONS",null,null,null,null,null,null,"MOINS","MAX"]
["OUTRUN/RECHERCHE",null,null,null,null,null,null,null,null,null,20]
[]
[]
["LIFT/ PRISE DE POSSESSION",null,null,null,null,null,null,null,null,null,10]
[]
[]
["FETCH/ AMENEE",null,null,null,null,null,null,null,null,null,20]
[]
[null,null,null,null,null,null,null,null,null,null,null,null,null,null,null,null,null,null,null,null,1,2,3]
[{"$f":"IF(H1=1,U25,IF(H1=2,V25,W25))","v":"DRIVE/ TRIANGLE"},null,null,null,null,null,null,null,null,null,{"$f":"IF(I1=1,AF25,IF(I1=2,AG25,AH25))","v":30},null,null,null,null,null,null,null,null,null,"DRIVE/POUSSE","DRIVE/ TRIANGLE","DRIVE/ TRIANGLE",null,null,null,null,null,null,null,null,15,30,30]
[null,null,null,null,null,null,null,null,null,null,null,null,null,null,null,null,null,null,null,null,"DRIVE/ TOGETHER","SHEDDING/ SEPARATION","SHEDDING/ SEPARATION",null,null,null,null,null,null,null,null,15,10,5]
[null,null,null,null,null,null,null,null,null,null,null,null,null,null,null,null,null,null,null,null,"SHEDDINGRACE/ COULOIR DE TRI ","PENNING/LOADING TRAILER -ENTREE PARC/BETALLIERE","PENNING/ENTREE EN PARC ",null,null,null,null,null,null,null,null,10,10,10]
[{"$f":"IF(H1=1,U26,IF(H1=2,V26,W26))","v":"SHEDDING/ SEPARATION"},null,null,null,null,null,null,null,null,null,{"$f":"IF(I1=1,AF26,IF(I1=2,AG26,AH26))","v":5},null,null,null,null,null,null,null,null,null,"PENNING/ENTREE EN PARC",null,"SINGLE/CROSS MALTESE",null,null,null,null,null,null,null,null,10,null,5]
[]
[]
[{"$f":"IF(H1=1,U27,IF(H1=2,V27,W27))","v":"PENNING/ENTREE EN PARC "},null,null,null,null,null,null,null,null,null,{"$f":"IF(I1=1,AF27,IF(I1=2,AG27,AH27))","v":10},null,null,null,null,null,null,null,null,null,null,null,null,null,{"$f":"X31*89.999/100","v":0},{"$f":"X31*79.999/100","v":0},{"$f":"X31*69.999/100","v":0},{"$f":"X31*59.999/100","v":0},0.1,null,null,100,{"$f":"AF31*89.999/100","v":89.998999999999995},{"$f":"AF31*79.999/100","v":79.998999999999995},{"$f":"AF31*69.999/100","v":69.998999999999995},{"$f":"AF31*59.999/100","v":59.999000000000002},0.1]
[]
[]
[{"$f":"IF(H1=1,U28,IF(H1=2,V28,W28))","v":"SINGLE/CROSS MALTESE"},null,null,null,null,null,null,null,null,null,{"$f":"IF(I1=1,AF28,IF(I1=2,AG28,AH28))","v":5}]
[]
[]
["POINTS TOTAL",null,null,null,null,null,null,null,{"$f":"SUM(I16:I36)","v":0},{"$f":"SUM(J16:J36)","v":0},{"$f":"SUM(K16:K36)","v":100}]
[null,null,null,"CLASSEMENT"]
["GENERAL POINTS",{"$f":"IF((J37)=0,\"-\",K37-J37)","v":"-"},null,"EVALUATION",null,{"$f":"IF(B39=\"-\",\"-\",IF(B39>AG31,\"EXCELLENT\",IF(B39>AH31,\"TRES BON\",IF(B39>AI31,\"BON\",IF(B39>AJ31,\"Sans qualificatif\",IF(B39>0.1,\"Sans qualificatif \",\"éliminé \"))))))","v":"-"},null,null,null,{"$f":"'Fiche organisateur N2'!$N$29","v":"X"},{"$f":"'Rapport de Concours'!$D$38","v":0}]
["Observations :  "]
[{"$f":"'Rapport de Concours'!H44","v":"juge"},{"$f":"'Fiche organisateur N1'!$E$27","v":0},{"$f":"'Rapport de Concours'!K44","v":"Signature :"}]

{"sheet":"14","index":20,"n_rows":41,"n_cols":37,"rows_kept":41,"cut":false,"hidden":false,"merged":[[8,4,8,10],[9,2,9,3],[9,4,9,10],[10,2,10,3],[21,10,23,10],[10,4,10,10],[11,2,11,3],[11,4,11,10],[18,0,20,0],[18,9,20,9],[21,0,23,0],[21,9,23,9],[4,7,4,9],[12,0,12,10],[13,0,13,10],[14,1,14,8],[15,1,17,8],[15,10,17,10],[15,0,17,0],[15,9,17,9],[6,2,6,3],[6,4,6,10],[7,4,7,10],[8,2,8,3],[24,0,26,0],[24,9,26,9],[27,0,29,0],[27,9,29,9],[30,0,32,0],[30,9,32,9],[24,1,26,8],[27,1,29,8],[33,0,35,0],[33,9,35,9],[36,1,36,8],[33,1,35,8],[40,2,40,10],[37,3,37,10],[38,5,38,8],[39,1,39,10],[33,10,35,10],[37,1,37,2],[38,1,38,2],[38,3,38,4],[27,10,29,10],[30,1,32,8],[30,10,32,10],[18,1,20,8],[18,10,20,10],[21,1,23,8],[24,10,26,10]]}
[null,null,null,null,null,"IHT CS",null,{"$f":"'Fiche organisateur N1'!$E$32","v":3},{"$f":"'Fiche organisateur N1'!$E$32","v":3}]
[]
[null,"IHT COLLECTING STYLE"]
[]
[]
["ORGANISATION : ",{"$f":"'Fiche organisateur N1'!E15","v":0}]
["Lieu:  ",{"$f":"'Fiche organisateur N1'!E16","v":0},"Date : ",null,{"$f":"'Fiche organisateur N2'!$H$8","v":0}]
["Contact : ",{"$f":"'Fiche organisateur N1'!E18","v":0}]
["Propriétaire",{"$f":"'Fiche organisateur N2'!$C$30","v":0},"Races + Sexe",null,{"$f":"'Fiche organisateur N2'!$G$30","v":0}]
["Conducteur",{"$f":"'Fiche organisateur N2'!$D$30","v":0}]
["Nom chien",{"$f":"'Fiche organisateur N2'!$E$30","v":0}]
["Affixe",{"$f":"'Fiche organisateur N2'!$F$30","v":0},"Identifiant",null,{"$f":"'Fiche organisateur N2'!$I$30","v":0}]
[]
[]
["EXERCICES ","OBSERVATIONS",null,null,null,null,null,null,"MOINS","MAX"]
["OUTRUN/RECHERCHE",null,null,null,null,null,null,null,null,null,20]
[]
[]
["LIFT/ PRISE DE POSSESSION",null,null,null,null,null,null,null,null,null,10]
[]
[]
["FETCH/ AMENEE",null,null,null,null,null,null,null,null,null,20]
[]
[null,null,null,null,null,null,null,null,null,null,null,null,null,null,null,null,null,null,null,null,1,2,3]
[{"$f":"IF(H1=1,U25,IF(H1=2,V25,W25))","v":"DRIVE/ TRIANGLE"},null,null,null,null,null,null,null,null,null,{"$f":"IF(I1=1,AF25,IF(I1=2,AG25,AH25))","v":30},null,null,null,null,null,null,null,null,null,"DRIVE/POUSSE","DRIVE/ TRIANGLE","DRIVE/ TRIANGLE",null,null,null,null,null,null,null,null,15,30,30]
[null,null,null,null,null,null,null,null,null,null,null,null,null,null,null,null,null,null,null,null,"DRIVE/ TOGETHER","SHEDDING/ SEPARATION","SHEDDING/ SEPARATION",null,null,null,null,null,null,null,null,15,10,5]
[null,null,null,null,null,null,null,null,null,null,null,null,null,null,null,null,null,null,null,null,"SHEDDINGRACE/ COULOIR DE TRI ","PENNING/LOADING TRAILER -ENTREE PARC/BETALLIERE","PENNING/ENTREE EN PARC ",null,null,null,null,null,null,null,null,10,10,10]
[{"$f":"IF(H1=1,U26,IF(H1=2,V26,W26))","v":"SHEDDING/ SEPARATION"},null,null,null,null,null,null,null,null,null,{"$f":"IF(I1=1,AF26,IF(I1=2,AG26,AH26))","v":5},null,null,null,null,null,null,null,null,null,"PENNING/ENTREE EN PARC",null,"SINGLE/CROSS MALTESE",null,null,null,null,null,null,null,null,10,null,5]
[]
[]
[{"$f":"IF(H1=1,U27,IF(H1=2,V27,W27))","v":"PENNING/ENTREE EN PARC "},null,null,null,null,null,null,null,null,null,{"$f":"IF(I1=1,AF27,IF(I1=2,AG27,AH27))","v":10},null,null,null,null,null,null,null,null,null,null,null,null,null,{"$f":"X31*89.999/100","v":0},{"$f":"X31*79.999/100","v":0},{"$f":"X31*69.999/100","v":0},{"$f":"X31*59.999/100","v":0},0.1,null,null,100,{"$f":"AF31*89.999/100","v":89.998999999999995},{"$f":"AF31*79.999/100","v":79.998999999999995},{"$f":"AF31*69.999/100","v":69.998999999999995},{"$f":"AF31*59.999/100","v":59.999000000000002},0.1]
[]
[]
[{"$f":"IF(H1=1,U28,IF(H1=2,V28,W28))","v":"SINGLE/CROSS MALTESE"},null,null,null,null,null,null,null,null,null,{"$f":"IF(I1=1,AF28,IF(I1=2,AG28,AH28))","v":5}]
[]
[]
["POINTS TOTAL",null,null,null,null,null,null,null,{"$f":"SUM(I16:I36)","v":0},{"$f":"SUM(J16:J36)","v":0},{"$f":"SUM(K16:K36)","v":100}]
[null,null,null,"CLASSEMENT"]
["GENERAL POINTS",{"$f":"IF((J37)=0,\"-\",K37-J37)","v":"-"},null,"EVALUATION",null,{"$f":"IF(B39=\"-\",\"-\",IF(B39>AG31,\"EXCELLENT\",IF(B39>AH31,\"TRES BON\",IF(B39>AI31,\"BON\",IF(B39>AJ31,\"Sans qualificatif\",IF(B39>0.1,\"Sans qualificatif \",\"éliminé \"))))))","v":"-"},null,null,null,{"$f":"'Fiche organisateur N2'!$N$30","v":"X"},{"$f":"'Rapport de Concours'!$D$38","v":0}]
["Observations :  "]
[{"$f":"'Rapport de Concours'!H44","v":"juge"},{"$f":"'Fiche organisateur N1'!$E$27","v":0},{"$f":"'Rapport de Concours'!K44","v":"Signature :"}]

{"sheet":"15","index":21,"n_rows":41,"n_cols":37,"rows_kept":41,"cut":false,"hidden":false,"merged":[[8,4,8,10],[9,2,9,3],[9,4,9,10],[10,2,10,3],[21,10,23,10],[10,4,10,10],[11,2,11,3],[11,4,11,10],[18,0,20,0],[18,9,20,9],[21,0,23,0],[21,9,23,9],[4,7,4,9],[12,0,12,10],[13,0,13,10],[14,1,14,8],[15,1,17,8],[15,10,17,10],[15,0,17,0],[15,9,17,9],[6,2,6,3],[6,4,6,10],[7,4,7,10],[8,2,8,3],[24,0,26,0],[24,9,26,9],[27,0,29,0],[27,9,29,9],[30,0,32,0],[30,9,32,9],[24,1,26,8],[27,1,29,8],[33,0,35,0],[33,9,35,9],[36,1,36,8],[33,1,35,8],[40,2,40,10],[37,3,37,10],[38,5,38,8],[39,1,39,10],[33,10,35,10],[37,1,37,2],[38,1,38,2],[38,3,38,4],[27,10,29,10],[30,1,32,8],[30,10,32,10],[18,1,20,8],[18,10,20,10],[21,1,23,8],[24,10,26,10]]}
[null,null,null,null,null,null,"IHT CS",{"$f":"'Fiche organisateur N1'!$E$32","v":3},{"$f":"'Fiche organisateur N1'!$E$32","v":3}]
[]
[null,"IHT COLLECTING STYLE"]
[]
[]
["ORGANISATION : ",{"$f":"'Fiche organisateur N1'!E15","v":0}]
["Lieu:  ",{"$f":"'Fiche organisateur N1'!E16","v":0},"Date : ",null,{"$f":"'Fiche organisateur N2'!$H$8","v":0}]
["Contact : ",{"$f":"'Fiche organisateur N1'!E18","v":0}]
["Propriétaire",{"$f":"'Fiche organisateur N2'!$C$31","v":0},"Races + Sexe",null,{"$f":"'Fiche organisateur N2'!$G$31","v":0}]
["Conducteur",{"$f":"'Fiche organisateur N2'!$D$31","v":0}]
["Nom chien",{"$f":"'Fiche organisateur N2'!$E$31","v":0}]
["Affixe",{"$f":"'Fiche organisateur N2'!$F$31","v":0},"Identifiant",null,{"$f":"'Fiche organisateur N2'!$I$31","v":0}]
[]
[]
["EXERCICES ","OBSERVATIONS",null,null,null,null,null,null,"MOINS","MAX"]
["OUTRUN/RECHERCHE",null,null,null,null,null,null,null,null,null,20]
[]
[]
["LIFT/ PRISE DE POSSESSION",null,null,null,null,null,null,null,null,null,10]
[]
[]
["FETCH/ AMENEE",null,null,null,null,null,null,null,null,null,20]
[]
[null,null,null,null,null,null,null,null,null,null,null,null,null,null,null,null,null,null,null,null,1,2,3]
[{"$f":"IF(H1=1,U25,IF(H1=2,V25,W25))","v":"DRIVE/ TRIANGLE"},null,null,null,null,null,null,null,null,null,{"$f":"IF(I1=1,AF25,IF(I1=2,AG25,AH25))","v":30},null,null,null,null,null,null,null,null,null,"DRIVE/POUSSE","DRIVE/ TRIANGLE","DRIVE/ TRIANGLE",null,null,null,null,null,null,null,null,15,30,30]
[null,null,null,null,null,null,null,null,null,null,null,null,null,null,null,null,null,null,null,null,"DRIVE/ TOGETHER","SHEDDING/ SEPARATION","SHEDDING/ SEPARATION",null,null,null,null,null,null,null,null,15,10,5]
[null,null,null,null,null,null,null,null,null,null,null,null,null,null,null,null,null,null,null,null,"SHEDDINGRACE/ COULOIR DE TRI ","PENNING/LOADING TRAILER -ENTREE PARC/BETALLIERE","PENNING/ENTREE EN PARC ",null,null,null,null,null,null,null,null,10,10,10]
[{"$f":"IF(H1=1,U26,IF(H1=2,V26,W26))","v":"SHEDDING/ SEPARATION"},null,null,null,null,null,null,null,null,null,{"$f":"IF(I1=1,AF26,IF(I1=2,AG26,AH26))","v":5},null,null,null,null,null,null,null,null,null,"PENNING/ENTREE EN PARC",null,"SINGLE/CROSS MALTESE",null,null,null,null,null,null,null,null,10,null,5]
[]
[]
[{"$f":"IF(H1=1,U27,IF(H1=2,V27,W27))","v":"PENNING/ENTREE EN PARC "},null,null,null,null,null,null,null,null,null,{"$f":"IF(I1=1,AF27,IF(I1=2,AG27,AH27))","v":10},null,null,null,null,null,null,null,null,null,null,null,null,null,{"$f":"X31*89.999/100","v":0},{"$f":"X31*79.999/100","v":0},{"$f":"X31*69.999/100","v":0},{"$f":"X31*59.999/100","v":0},0.1,null,null,100,{"$f":"AF31*89.999/100","v":89.998999999999995},{"$f":"AF31*79.999/100","v":79.998999999999995},{"$f":"AF31*69.999/100","v":69.998999999999995},{"$f":"AF31*59.999/100","v":59.999000000000002},0.1]
[]
[]
[{"$f":"IF(H1=1,U28,IF(H1=2,V28,W28))","v":"SINGLE/CROSS MALTESE"},null,null,null,null,null,null,null,null,null,{"$f":"IF(I1=1,AF28,IF(I1=2,AG28,AH28))","v":5}]
[]
[]
["POINTS TOTAL",null,null,null,null,null,null,null,{"$f":"SUM(I16:I36)","v":0},{"$f":"SUM(J16:J36)","v":0},{"$f":"SUM(K16:K36)","v":100}]
[null,null,null,"CLASSEMENT"]
["GENERAL POINTS",{"$f":"IF((J37)=0,\"-\",K37-J37)","v":"-"},null,"EVALUATION",null,{"$f":"IF(B39=\"-\",\"-\",IF(B39>AG31,\"EXCELLENT\",IF(B39>AH31,\"TRES BON\",IF(B39>AI31,\"BON\",IF(B39>AJ31,\"Sans qualificatif\",IF(B39>0.1,\"Sans qualificatif \",\"éliminé \"))))))","v":"-"},null,null,null,{"$f":"'Fiche organisateur N2'!$N$31","v":"X"},{"$f":"'Rapport de Concours'!$D$38","v":0}]
["Observations :  "]
[{"$f":"'Rapport de Concours'!H44","v":"juge"},{"$f":"'Fiche organisateur N1'!$E$27","v":0},{"$f":"'Rapport de Concours'!K44","v":"Signature :"}]

{"sheet":"16","index":22,"n_rows":41,"n_cols":37,"rows_kept":41,"cut":false,"hidden":false,"merged":[[39,1,39,10],[18,10,20,10],[21,1,23,8],[21,10,23,10],[24,1,26,8],[24,10,26,10],[30,10,32,10],[33,1,35,8],[33,10,35,10],[37,1,37,2],[38,1,38,2],[38,3,38,4],[38,5,38,8],[36,1,36,8],[4,7,4,9],[12,0,12,10],[13,0,13,10],[14,1,14,8],[15,1,17,8],[15,10,17,10],[15,0,17,0],[15,9,17,9],[18,0,20,0],[18,9,20,9],[21,0,23,0],[21,9,23,9],[24,0,26,0],[24,9,26,9],[18,1,20,8],[27,0,29,0],[27,9,29,9],[30,0,32,0],[30,9,32,9],[33,0,35,0],[33,9,35,9],[27,1,29,8],[40,2,40,10],[37,3,37,10],[2,1,2,10],[6,2,6,3],[6,4,6,10],[7,4,7,10],[8,2,8,3],[8,4,8,10],[9,2,9,3],[9,4,9,10],[10,2,10,3],[10,4,10,10],[11,2,11,3],[11,4,11,10],[27,10,29,10],[30,1,32,8]]}
[null,null,null,null,null,null,"IHT CS",{"$f":"'Fiche organisateur N1'!$E$32","v":3},{"$f":"'Fiche organisateur N1'!$E$32","v":3}]
[null,"IHT COLLECTING STYLE"]
[]
[]
[]
["ORGANISATION : ",{"$f":"'Fiche organisateur N1'!E15","v":0}]
["Lieu:  ",{"$f":"'Fiche organisateur N1'!E16","v":0},"Date : ",null,{"$f":"'Fiche organisateur N2'!$H$8","v":0}]
["Contact : ",{"$f":"'Fiche organisateur N1'!E18","v":0}]
["Propriétaire",{"$f":"'Fiche organisateur N2'!$C$32","v":0},"Races + Sexe",null,{"$f":"'Fiche organisateur N2'!$G$32","v":0}]
["Conducteur",{"$f":"'Fiche organisateur N2'!$D$32","v":0}]
["Nom chien",{"$f":"'Fiche organisateur N2'!$E$32","v":0}]
["Affixe",{"$f":"'Fiche organisateur N2'!$F$32","v":0},"Identifiant",null,{"$f":"'Fiche organisateur N2'!$I$32","v":0}]
[]
[]
["EXERCICES ","OBSERVATIONS",null,null,null,null,null,null,"MOINS","MAX"]
["OUTRUN/RECHERCHE",null,null,null,null,null,null,null,null,null,20]
[]
[]
["LIFT/ PRISE DE POSSESSION",null,null,null,null,null,null,null,null,null,10]
[]
[]
["FETCH/ AMENEE",null,null,null,null,null,null,null,null,null,20]
[]
[null,null,null,null,null,null,null,null,null,null,null,null,null,null,null,null,null,null,null,null,1,2,3]
[{"$f":"IF(H1=1,U25,IF(H1=2,V25,W25))","v":"DRIVE/ TRIANGLE"},null,null,null,null,null,null,null,null,null,{"$f":"IF(I1=1,AF25,IF(I1=2,AG25,AH25))","v":30},null,null,null,null,null,null,null,null,null,"DRIVE/POUSSE","DRIVE/ TRIANGLE","DRIVE/ TRIANGLE",null,null,null,null,null,null,null,null,15,30,30]
[null,null,null,null,null,null,null,null,null,null,null,null,null,null,null,null,null,null,null,null,"DRIVE/ TOGETHER","SHEDDING/ SEPARATION","SHEDDING/ SEPARATION",null,null,null,null,null,null,null,null,15,10,5]
[null,null,null,null,null,null,null,null,null,null,null,null,null,null,null,null,null,null,null,null,"SHEDDINGRACE/ COULOIR DE TRI ","PENNING/LOADING TRAILER -ENTREE PARC/BETALLIERE","PENNING/ENTREE EN PARC ",null,null,null,null,null,null,null,null,10,10,10]
[{"$f":"IF(H1=1,U26,IF(H1=2,V26,W26))","v":"SHEDDING/ SEPARATION"},null,null,null,null,null,null,null,null,null,{"$f":"IF(I1=1,AF26,IF(I1=2,AG26,AH26))","v":5},null,null,null,null,null,null,null,null,null,"PENNING/ENTREE EN PARC",null,"SINGLE/CROSS MALTESE",null,null,null,null,null,null,null,null,10,null,5]
[]
[]
[{"$f":"IF(H1=1,U27,IF(H1=2,V27,W27))","v":"PENNING/ENTREE EN PARC "},null,null,null,null,null,null,null,null,null,{"$f":"IF(I1=1,AF27,IF(I1=2,AG27,AH27))","v":10},null,null,null,null,null,null,null,null,null,null,null,null,null,{"$f":"X31*89.999/100","v":0},{"$f":"X31*79.999/100","v":0},{"$f":"X31*69.999/100","v":0},{"$f":"X31*59.999/100","v":0},0.1,null,null,100,{"$f":"AF31*89.999/100","v":89.998999999999995},{"$f":"AF31*79.999/100","v":79.998999999999995},{"$f":"AF31*69.999/100","v":69.998999999999995},{"$f":"AF31*59.999/100","v":59.999000000000002},0.1]
[]
[]
[{"$f":"IF(H1=1,U28,IF(H1=2,V28,W28))","v":"SINGLE/CROSS MALTESE"},null,null,null,null,null,null,null,null,null,{"$f":"IF(I1=1,AF28,IF(I1=2,AG28,AH28))","v":5}]
[]
[]
["POINTS TOTAL",null,null,null,null,null,null,null,{"$f":"SUM(I16:I36)","v":0},{"$f":"SUM(J16:J36)","v":0},{"$f":"SUM(K16:K36)","v":100}]
[null,null,null,"CLASSEMENT"]
["GENERAL POINTS",{"$f":"IF((J37)=0,\"-\",K37-J37)","v":"-"},null,"EVALUATION",null,{"$f":"IF(B39=\"-\",\"-\",IF(B39>AG31,\"EXCELLENT\",IF(B39>AH31,\"TRES BON\",IF(B39>AI31,\"BON\",IF(B39>AJ31,\"Sans qualificatif\",IF(B39>0.1,\"Sans qualificatif \",\"éliminé \"))))))","v":"-"},null,null,null,{"$f":"'Fiche organisateur N2'!$N$32","v":"X"},{"$f":"'Rapport de Concours'!$D$38","v":0}]
["Observations :  "]
[{"$f":"'Rapport de Concours'!H44","v":"juge"},{"$f":"'Fiche organisateur N1'!$E$27","v":0},{"$f":"'Rapport de Concours'!K44","v":"Signature :"}]

{"sheet":"17","index":23,"n_rows":41,"n_cols":37,"rows_kept":41,"cut":false,"hidden":false,"merged":[[39,1,39,10],[18,10,20,10],[21,1,23,8],[21,10,23,10],[24,1,26,8],[24,10,26,10],[30,10,32,10],[33,1,35,8],[33,10,35,10],[37,1,37,2],[38,1,38,2],[38,3,38,4],[38,5,38,8],[36,1,36,8],[4,7,4,9],[12,0,12,10],[13,0,13,10],[14,1,14,8],[15,1,17,8],[15,10,17,10],[15,0,17,0],[15,9,17,9],[18,0,20,0],[18,9,20,9],[21,0,23,0],[21,9,23,9],[24,0,26,0],[24,9,26,9],[18,1,20,8],[27,0,29,0],[27,9,29,9],[30,0,32,0],[30,9,32,9],[33,0,35,0],[33,9,35,9],[27,1,29,8],[40,2,40,10],[37,3,37,10],[2,1,2,10],[6,2,6,3],[6,4,6,10],[7,4,7,10],[8,2,8,3],[8,4,8,10],[9,2,9,3],[9,4,9,10],[10,2,10,3],[10,4,10,10],[11,2,11,3],[11,4,11,10],[27,10,29,10],[30,1,32,8]]}
[null,null,null,null,null,null,"IHT TS",{"$f":"'Fiche organisateur N1'!$E$32","v":3},{"$f":"'Fiche organisateur N1'!$E$32","v":3}]
[null,"IHT COLLECTING STYLE"]
[]
[]
[]
["ORGANISATION : ",{"$f":"'Fiche organisateur N1'!E15","v":0}]
["Lieu:  ",{"$f":"'Fiche organisateur N1'!E16","v":0},"Date : ",null,{"$f":"'Fiche organisateur N2'!$H$8","v":0}]
["Contact : ",{"$f":"'Fiche organisateur N1'!E18","v":0}]
["Propriétaire",{"$f":"'Fiche organisateur N2'!$C$33","v":0},"Races + Sexe",null,{"$f":"'Fiche organisateur N2'!$G$33","v":0}]
["Conducteur",{"$f":"'Fiche organisateur N2'!$D$33","v":0}]
["Nom chien",{"$f":"'Fiche organisateur N2'!$E$33","v":0}]
["Affixe",{"$f":"'Fiche organisateur N2'!$F$33","v":0},"Identifiant",null,{"$f":"'Fiche organisateur N2'!$I$33","v":0}]
[]
[]
["EXERCICES ","OBSERVATIONS",null,null,null,null,null,null,"MOINS","MAX"]
["OUTRUN/RECHERCHE",null,null,null,null,null,null,null,null,null,20]
[]
[]
["LIFT/ PRISE DE POSSESSION",null,null,null,null,null,null,null,null,null,10]
[]
[]
["FETCH/ AMENEE",null,null,null,null,null,null,null,null,null,20]
[]
[null,null,null,null,null,null,null,null,null,null,null,null,null,null,null,null,null,null,null,null,1,2,3]
[{"$f":"IF(H1=1,U25,IF(H1=2,V25,W25))","v":"DRIVE/ TRIANGLE"},null,null,null,null,null,null,null,null,null,{"$f":"IF(I1=1,AF25,IF(I1=2,AG25,AH25))","v":30},null,null,null,null,null,null,null,null,null,"DRIVE/POUSSE","DRIVE/ TRIANGLE","DRIVE/ TRIANGLE",null,null,null,null,null,null,null,null,15,30,30]
[null,null,null,null,null,null,null,null,null,null,null,null,null,null,null,null,null,null,null,null,"DRIVE/ TOGETHER","SHEDDING/ SEPARATION","SHEDDING/ SEPARATION",null,null,null,null,null,null,null,null,15,10,5]
[null,null,null,null,null,null,null,null,null,null,null,null,null,null,null,null,null,null,null,null,"SHEDDINGRACE/ COULOIR DE TRI ","PENNING/LOADING TRAILER -ENTREE PARC/BETALLIERE","PENNING/ENTREE EN PARC ",null,null,null,null,null,null,null,null,10,10,10]
[{"$f":"IF(H1=1,U26,IF(H1=2,V26,W26))","v":"SHEDDING/ SEPARATION"},null,null,null,null,null,null,null,null,null,{"$f":"IF(I1=1,AF26,IF(I1=2,AG26,AH26))","v":5},null,null,null,null,null,null,null,null,null,"PENNING/ENTREE EN PARC",null,"SINGLE/CROSS MALTESE",null,null,null,null,null,null,null,null,10,null,5]
[]
[]
[{"$f":"IF(H1=1,U27,IF(H1=2,V27,W27))","v":"PENNING/ENTREE EN PARC "},null,null,null,null,null,null,null,null,null,{"$f":"IF(I1=1,AF27,IF(I1=2,AG27,AH27))","v":10},null,null,null,null,null,null,null,null,null,null,null,null,null,{"$f":"X31*89.999/100","v":0},{"$f":"X31*79.999/100","v":0},{"$f":"X31*69.999/100","v":0},{"$f":"X31*59.999/100","v":0},0.1,null,null,100,{"$f":"AF31*89.999/100","v":89.998999999999995},{"$f":"AF31*79.999/100","v":79.998999999999995},{"$f":"AF31*69.999/100","v":69.998999999999995},{"$f":"AF31*59.999/100","v":59.999000000000002},0.1]
[]
[]
[{"$f":"IF(H1=1,U28,IF(H1=2,V28,W28))","v":"SINGLE/CROSS MALTESE"},null,null,null,null,null,null,null,null,null,{"$f":"IF(I1=1,AF28,IF(I1=2,AG28,AH28))","v":5}]
[]
[]
["POINTS TOTAL",null,null,null,null,null,null,null,{"$f":"SUM(I16:I36)","v":0},{"$f":"SUM(J16:J36)","v":0},{"$f":"SUM(K16:K36)","v":100}]
[null,null,null,"CLASSEMENT"]
["GENERAL POINTS",{"$f":"IF((J37)=0,\"-\",K37-J37)","v":"-"},null,"EVALUATION",null,{"$f":"IF(B39=\"-\",\"-\",IF(B39>AG31,\"EXCELLENT\",IF(B39>AH31,\"TRES BON\",IF(B39>AI31,\"BON\",IF(B39>AJ31,\"Sans qualificatif\",IF(B39>0.1,\"Sans qualificatif \",\"éliminé \"))))))","v":"-"},null,null,null,{"$f":"'Fiche organisateur N2'!$N$33","v":"X"},{"$f":"'Rapport de Concours'!$D$38","v":0}]
["Observations :  "]
[{"$f":"'Rapport de Concours'!H44","v":"juge"},{"$f":"'Fiche organisateur N1'!$E$27","v":0},{"$f":"'Rapport de Concours'!K44","v":"Signature :"}]

{"sheet":"18","index":24,"n_rows":41,"n_cols":37,"rows_kept":41,"cut":false,"hidden":false,"merged":[[39,1,39,10],[18,10,20,10],[21,1,23,8],[21,10,23,10],[24,1,26,8],[24,10,26,10],[30,10,32,10],[33,1,35,8],[33,10,35,10],[37,1,37,2],[38,1,38,2],[38,3,38,4],[38,5,38,8],[36,1,36,8],[4,7,4,9],[12,0,12,10],[13,0,13,10],[14,1,14,8],[15,1,17,8],[15,10,17,10],[15,0,17,0],[15,9,17,9],[18,0,20,0],[18,9,20,9],[21,0,23,0],[21,9,23,9],[24,0,26,0],[24,9,26,9],[18,1,20,8],[27,0,29,0],[27,9,29,9],[30,0,32,0],[30,9,32,9],[33,0,35,0],[33,9,35,9],[27,1,29,8],[40,2,40,10],[37,3,37,10],[2,1,2,10],[6,2,6,3],[6,4,6,10],[7,4,7,10],[8,2,8,3],[8,4,8,10],[9,2,9,3],[9,4,9,10],[10,2,10,3],[10,4,10,10],[11,2,11,3],[11,4,11,10],[27,10,29,10],[30,1,32,8]]}
[null,null,null,null,null,null,"IHT TS",{"$f":"'Fiche organisateur N1'!$E$32","v":3},{"$f":"'Fiche organisateur N1'!$E$32","v":3}]
[null,"IHT COLLECTING STYLE"]
[]
[]
[null,"IHT TS "]
["ORGANISATION : ",{"$f":"'Fiche organisateur N1'!E15","v":0}]
["Lieu:  ",{"$f":"'Fiche organisateur N1'!E16","v":0},"Date : ",null,{"$f":"'Fiche organisateur N2'!$H$8","v":0}]
["Contact : ",{"$f":"'Fiche organisateur N1'!E18","v":0}]
["Propriétaire",{"$f":"'Fiche organisateur N2'!$C$34","v":0},"Races + Sexe",null,{"$f":"'Fiche organisateur N2'!$G$34","v":0}]
["Conducteur",{"$f":"'Fiche organisateur N2'!$D$34","v":0}]
["Nom chien",{"$f":"'Fiche organisateur N2'!$E$34","v":0}]
["Affixe",{"$f":"'Fiche organisateur N2'!$F$34","v":0},"Identifiant",null,{"$f":"'Fiche organisateur N2'!$I$34","v":0}]
[]
[]
["EXERCICES ","OBSERVATIONS",null,null,null,null,null,null,"MOINS","MAX"]
["OUTRUN/RECHERCHE",null,null,null,null,null,null,null,null,null,20]
[]
[]
["LIFT/ PRISE DE POSSESSION",null,null,null,null,null,null,null,null,null,10]
[]
[]
["FETCH/ AMENEE",null,null,null,null,null,null,null,null,null,20]
[]
[null,null,null,null,null,null,null,null,null,null,null,null,null,null,null,null,null,null,null,null,1,2,3]
[{"$f":"IF(H1=1,U25,IF(H1=2,V25,W25))","v":"DRIVE/ TRIANGLE"},null,null,null,null,null,null,null,null,null,{"$f":"IF(I1=1,AF25,IF(I1=2,AG25,AH25))","v":30},null,null,null,null,null,null,null,null,null,"DRIVE/POUSSE","DRIVE/ TRIANGLE","DRIVE/ TRIANGLE",null,null,null,null,null,null,null,null,15,30,30]
[null,null,null,null,null,null,null,null,null,null,null,null,null,null,null,null,null,null,null,null,"DRIVE/ TOGETHER","SHEDDING/ SEPARATION","SHEDDING/ SEPARATION",null,null,null,null,null,null,null,null,15,10,5]
[null,null,null,null,null,null,null,null,null,null,null,null,null,null,null,null,null,null,null,null,"SHEDDINGRACE/ COULOIR DE TRI ","PENNING/LOADING TRAILER -ENTREE PARC/BETALLIERE","PENNING/ENTREE EN PARC ",null,null,null,null,null,null,null,null,10,10,10]
[{"$f":"IF(H1=1,U26,IF(H1=2,V26,W26))","v":"SHEDDING/ SEPARATION"},null,null,null,null,null,null,null,null,null,{"$f":"IF(I1=1,AF26,IF(I1=2,AG26,AH26))","v":5},null,null,null,null,null,null,null,null,null,"PENNING/ENTREE EN PARC",null,"SINGLE/CROSS MALTESE",null,null,null,null,null,null,null,null,10,null,5]
[]
[]
[{"$f":"IF(H1=1,U27,IF(H1=2,V27,W27))","v":"PENNING/ENTREE EN PARC "},null,null,null,null,null,null,null,null,null,{"$f":"IF(I1=1,AF27,IF(I1=2,AG27,AH27))","v":10},null,null,null,null,null,null,null,null,null,null,null,null,null,{"$f":"X31*89.999/100","v":0},{"$f":"X31*79.999/100","v":0},{"$f":"X31*69.999/100","v":0},{"$f":"X31*59.999/100","v":0},0.1,null,null,100,{"$f":"AF31*89.999/100","v":89.998999999999995},{"$f":"AF31*79.999/100","v":79.998999999999995},{"$f":"AF31*69.999/100","v":69.998999999999995},{"$f":"AF31*59.999/100","v":59.999000000000002},0.1]
[]
[]
[{"$f":"IF(H1=1,U28,IF(H1=2,V28,W28))","v":"SINGLE/CROSS MALTESE"},null,null,null,null,null,null,null,null,null,{"$f":"IF(I1=1,AF28,IF(I1=2,AG28,AH28))","v":5}]
[]
[]
["POINTS TOTAL",null,null,null,null,null,null,null,{"$f":"SUM(I16:I36)","v":0},{"$f":"SUM(J16:J36)","v":0},{"$f":"SUM(K16:K36)","v":100}]
[null,null,null,"CLASSEMENT"]
["GENERAL POINTS",{"$f":"IF((J37)=0,\"-\",K37-J37)","v":"-"},null,"EVALUATION",null,{"$f":"IF(B39=\"-\",\"-\",IF(B39>AG31,\"EXCELLENT\",IF(B39>AH31,\"TRES BON\",IF(B39>AI31,\"BON\",IF(B39>AJ31,\"Sans qualificatif\",IF(B39>0.1,\"Sans qualificatif \",\"éliminé \"))))))","v":"-"},null,null,null,{"$f":"'Fiche organisateur N2'!$N$34","v":"X"},{"$f":"'Rapport de Concours'!$D$38","v":0}]
["Observations :  "]
[{"$f":"'Rapport de Concours'!H44","v":"juge"},{"$f":"'Fiche organisateur N1'!$E$27","v":0},{"$f":"'Rapport de Concours'!K44","v":"Signature :"}]